Workbook

Sheet DESIGN INPUTS AND CALCULATIONS
A1: UCC28180 DESIGN CALCULATOR TOOL | E1: 备注
A2: TI Literature Number: | B2: SLUC506 | C2: Rev C
A3: UCC28180 CONTINUOUS CURRENT CONDUCTION MODE PFC CONTROLLER WITH PROGRAMMABLE SWITCHING FREQUENCY
A4: Please enter design parameters into the | B4: shaded | C4: cells;
A5: Calculated results will be in RED
A6: Be sure to ENABLE EDITING before attempting to use this design calculator
A7: This spreadsheet guides the user through the design process of a CONTINUOUS CONDUCTION MODE PFC BOOST CONVERTER using the UCC28180. User interaction is required in order to get the best possible results. Enter the desired specification where prompted, the highlighted cells are for user inputs; calculations for the design are based upon the inputs.
A12: WHERE APPLICABLE, A RECOMMENDED VALUE IS GIVEN THAT WILL BE THE BEST CHOICE TO MEET THE GIVEN SPECIFICATION. IT IS IN THE BEST INTEREST OF THE USER TO USE A VALUE AS CLOSE AS POSSIBLE TO THE SUGGESTED RECOMMENDED VALUE. FOR ACCURATE RESULTS, THE USER MUST ENTER THE ACTUAL VALUE USED IN THE APPROPRIATE CELL.
A17: Disclaimer
A18: This product is designed as an aid for customers of Texas Instruments. No warranties, either expressed or implied, with respect to this software or its fitness for any particular purpose, are claimed by Texas Instruments or the author. The software is licensed solely on an "as is" basis. The entire risk as to its quality and performance is with the customer.
A22: INPUT: | G22: =1.15/1.13 -> 1.017699115
A23: Minimum Input Voltage from AC Line: | B23: VACIN(min) | C23: 172 | D23: VRMS | G23: =1.38 -> 1.38
A24: Maximum Input Voltage from AC Line: | B24: VACIN(max) | C24: =220*1.2-1.2 -> 262.8 | D24: VRMS | F24: =Vacin_max*SQRT(2) -> 371.6553242 | G24: =G23/G22 -> 1.356
A25: Minimum Line Frequency: | B25: fLINE(min): | C25: 49 | D25: Hz
A26: Maximum Line Frequency: | B26: fLINE(max): | C26: 51 | D26: Hz
A27: Minimum Rectified AC Line Voltage: | B27: VIN_PEAK(min) | C27: =SQRT(2)*Vacin_min -> 243.2447327 | D27: V
A28: Maximum Rectified AC Line Voltage: | B28: VIN_PEAK(max) | C28: =SQRT(2)*Vacin_max -> 371.6553242 | D28: V
A31: OUTPUT:
A32: Maximum Output Power of PFC Stage: | B32: POUT(max) | C32: 1200 | D32: W
A33: Output Voltage (Note: Must be > VIN_RECTIFIED(max)): | B33: VOUT | C33: =Vout_nom -> 371.9117647 | D33: V | E33: =IF(Vout<=Vin_peak_max,"OUTPUT VOLTAGE MUST BE GREATER THAN RECTIFIED MAXIMUM INPUT VOLTAGE"," ") -> 
A34: Target Power Factor, VIN(nom), Full Load: | B34: PF | C34: 0.99 | E34: =IF(PF>=0.999,"ENTER VALUE LESS THAN 0.999"," ") -> 
A35: Predicted Efficiency: | B35: h | C35: 0.96 | E35: =IF(eff>=0.97,"ENTER VALUE LESS THAN 0.97"," ") -> 
A36: Maximum Ambient Temperature: | B36: TAMB(max) | C36: 65 | D36: °C
A37: Maximum Average Output Current of PFC Stage: | B37: IOUT | C37: =Pout/Vout -> 3.226571767 | D37: A
A38: Desired Switching Frequency: | B38: fSW(target) | C38: 48.624 | D38: kHz | E38: =IF(fSW_target<18,"fsw must not be less than 18 kHz",IF(fSW_target>250,"fsw must not be greater than 250 kHz","")) -> 
A39: Recommended Resistor value on FREQ to Set the Switching Frequency, fSW: | B39: RFREQ(recommended) | C39: =data!F233 -> 44.2 | D39: kΩ
A40: Actual Value For RFREQ Used: | B40: RFREQ = | C40: 44.2 | D40: kΩ | F40: 44.2 | G40: 48.624k
A41: Resultant Switching Frequency, fSW: | B41: fSW | C41: =((32.7*kOhms*65*kHz*(1*MegOhm+Rfreq*kOhms))/(Rfreq*kOhms*(1*MegOhm+32.7*kOhms)))/kHz -> 48.62373903 | D41: kHz | F41: 45.3 | G41: 47.493k
A42: =IF(Vout>=Vin_peak_max,IF(PF<1,IF(eff<0.97,"","DO NOT PROCEED. ENTER EFFICIENCY LESS < 0.97"),"DO NOT PROCEED. ENTER PF < 1"),"DO NOT PROCEED. OUTPUT VOLTAGE MUST BE > RECTIFIED MAXIMUM INPUT VOLTAGE") -> 
A44: Line Current:
A45: Maximum Input Power Drawn from the Line: | B45: PIN(max) | C45: =Pout/eff -> 1250 | D45: W
A46: Maximum RMS AC Line Current: | B46: IIN_RMS(max) | C46: =Pout/(eff*Vacin_min*PF) -> 7.340850364 | D46: A | F46: =C48/10-1 -> -0.3390912643 | G46: =91*100/191 -> 47.64397906
A47: Maximum Peak AC Line Current, assuming sinusoidal: | B47: IIN_PEAK(max) | C47: =SQRT(2)*Iin_rms_max -> 10.38153014 | D47: A | G47: =43.8*2 -> 87.6
A48: Maximum Average AC Line Current, assuming sinusoidal: | B48: IIN_AVG(max) | C48: =(2*Iin_peak_max)/PI() -> 6.609087357 | D48: A
A49: Minimum Input Fuse Rating: | B49: IFUSE | C49: =1.39*Iin_rms_max -> 10.20378201 | D49: A
A52: BRIDGE RECTIFIER:
A53: Bridge Rectifier Forward Voltage, at IIN_PEAK(max): | B53: VF_BRIDGE | C53: 0.95 | D53: V
A54: Bridge Rectifier Thermal Resistance, Junction to Case: | B54: RqJC(Bridge) | C54: 2.2 | D54: °C/W
A55: Case to Heatsink Thermal Resistance: | B55: RθCHS(Bridge) | C55: 0.7 | D55: °C/W
A56: Bridge Rectifier Maximum Junction Temperature: | B56: TJ(max) | C56: 125 | D56: °C
A57: Bridge Rectifier Minimum Average Current Rating: | B57: IBRIDGE(rated) | C57: =1.5*Iin_avg_max -> 9.913631036 | D57: A
A58: Bridge Rectifier Minimum DC Blocking Voltage Rating: | B58: VDC_BLOCKING(rated) | C58: =Vin_peak_max*1.1 -> 408.8208566 | D58: V
A59: Bridge Rectifier Power Dissipation: | B59: PBRIDGE | C59: =2*Vf_bridge*Iin_avg_max -> 12.55726598 | D59: W
A60: Required Heat Sink Thermal Impedance: | B60: RqHS_AMB(Bridge) | C60: =((Tj_bridge-Tamb)/Pbridge)-Rjc_bridge-Rchs_bridge -> 1.878110148 | D60: °C/W
A63: INPUT CAPACITOR:
A64: Inductor Peak-to-Peak Current Ripple Factor (i.e. 0.2 for 20%, 0.3 for 30%). Percentage of minimum input, maximum load, inductor current at 50% duty cycle operating point, not recommended to be > 0.4: | B64: LI_ripple_factor(target) | C64: 0.4 | D64: =IF(L_I_ripple_factor>0.4,"Lower ripple current factor is recommended","") ->  | G64: =C76/0.5-1 -> -0.07904118629
A65: Maximum High Frequency Voltage Ripple Factor (i.e. 0.03 for 3%, 0.09 for 9%): | B65: VCin_ripple_factor | C65: 0.05
A66: Target Maximum Allowable Inductor Current Ripple: | B66: IRIPPLE(target) | C66: =L_I_ripple_factor*Iin_peak_max -> 4.152612058 | D66: A
A67: Maximum Inductor Voltage Ripple: | B67: VIN_RIPPLE | C67: =V_ripplefactor*Vin_peak_min -> 12.16223664 | D67: V
A68: Recommended Input Capacitor Value: | B68: CIN(recommended) | C68: =data!F228 -> 0.82 | D68: mF
A69: Actual Value of Input Capacitor Used: | B69: CIN | C69: 1 | D69: =data!G228 -> µF
A70: Required Minimum Voltage Rating for CIN: | B70: VCIN(rating) | C70: =Vrated -> 408.8208566 | D70: V
A73: BOOST INDUCTOR DESIGN:
A74: Maximum Duty Cycle: | B74: DUTY(max) | C74: =(Vout-Vin_peak_min)/Vout -> 0.3459611773
A75: Maximum Inductor Peak Current: | B75: IL_PEAK(max) | C75: =Iin_peak_max+(Iripple/2) -> 12.45783617 | D75: A
A76: Minimum Recommended Boost Inductor Value: | B76: LBST(recommended) | C76: =((Vout*0.5*(1-0.5))/(fsw*kHz*Iripple))/mH -> 0.4604794069 | D76: mH
A77: Actual Boost Inductor Value Used: | B77: LBST(actual) = | C77: 0.468 | D77: mH
A78: Actual Maximum Inductor Ripple Current: | B78: IRIPPLE(actual) | C78: =(Vout*0.5*(1-0.5))/((fsw*kHz)*(Lbst*mH)) -> 4.085881062 | D78: A | F78: 电感值
A79: Actual Maximum Inductor Peak Current: | B79: IL_PEAK(actual) | C79: =Iin_peak_max+(Iripple_actual/2) -> 12.42447068 | D79: A | E79: =Il_peak_actual/SQRT(2) -> 8.785427467 | F79: 10 | G79: =1-E79/F79 -> 0.1214572533
A80: Resultant Inductor Current Ripple Factor: | B80: LI_ripple_factor(actual) | C80: =Iripple_actual/(SQRT(2)*Iin_rms_max) -> 0.3935721426
I81: ☆ | J81: ☆
F82: TI推荐参数 | G82: TI推荐参数 | H82: 重庆平伟实业 | I82: ZJ-FAIRCHILD | J82: 华微TO2472L | K82: 华微TO220MF | L82: 杨杰TO247（10.88） | M82: 杨杰TO220_SIC | N82: WEEN | O82: WEEN | P82: MCC
A83: BOOST DIODE: | F83: CREE | G83: wang | I83: FFH30S60S | J83: 30F60W | K83: 20F60UMF | L83: MUR3060PL | M83: YJD106510PG1 | N83: BYC30W-600PT2 | O83: BYC30W-600PT2 | P83: MUR3060BL
A84: Forward Voltage Drop, at IL_PEAK(max),125°C: | B84: VF | C84: 1.2 | D84: V | F84: 1.65 | G84: 1.4 | H84: 1.2 | I84: 1.6 | J84: 2 | K84: 2 | L84: =2 -> 2 | M84: 1.625 | N84: 1.38 | O84: 1.2 | P84: 1.3
A85: Reverse Recovery Charge:25℃ | B85: QRR | C85: 25 | D85: nC | F85: 62 | G85: 20 | I85: 34 | J85: 23 | K85: 34 | L85: 106.7 | M85: 22.8 | N85: 51 | O85: 47
A86: Boost Diode Maximum Junction Temperature: | B86: TJ(max) | C86: 175 | D86: °C | F86: 125 | G86: 125 | H86: 125 | I86: 125 | J86: 120 | K86: =150*0.8 -> 120 | L86: =175*0.8 -> 140 | M86: =175*0.8 -> 140 | N86: =175*0.8 -> 140 | O86: =175*0.8 -> 140
A87: Boost Diode Thermal Resistance, Junction to Case: | B87: RqJC(Diode) | C87: 2.37 | D87: °C/W | F87: 0.8 | G87: 1.2 | H87: 1 | I87: 1.1 | J87: 0.8 | K87: 0.8 | L87: 1 | M87: 1 | N87: 1 | O87: 1
A88: Boost Diode Thermal Resistance, Case to Heatsink: | B88: RqCHS(Diode) | C88: 0.7 | D88: °C/W | F88: 0.7 | G88: 0.7 | H88: 0.7 | I88: 0.7 | J88: 0.7 | K88: 0.7 | L88: 0.7 | M88: 0.7 | N88: 0.8 | O88: 0.8
A89: Boost Diode Conduction Losses: | B89: PDIODE(cond) | C89: =Vf*Iout -> 3.871886121 | D89: W | F89: =F84*Iout -> 5.323843416 | G89: 4.517200474 | H89: 3.871886121 | I89: 5.162514828 | J89: 6.453143535 | K89: 6.453143535 | L89: =L84*Iout -> 6.453143535 | M89: =M84*Iout -> 5.243179122 | N89: =N84*Iout -> 4.452669039 | O89: =O84*Iout -> 3.871886121
A90: Reverse Recovery Losses: | B90: PREVERSE | C90: =(65*10^3)*Vout*(Qrr*10^-9) -> 0.6043566176 | D90: W | F90: =(65*10^3)*Vout*(F85*10^-9) -> 1.498804412 | G90: 0.4834852941 | H90: 0 | I90: 0.821925 | J90: 0.5560080882 | K90: 0.821925 | L90: =(65*10^3)*Vout*(L85*10^-9) -> 2.579394044 | M90: =(65*10^3)*Vout*(M85*10^-9) -> 0.5511732353 | N90: =(65*10^3)*Vout*(N85*10^-9) -> 1.2328875 | O90: =(65*10^3)*Vout*(O85*10^-9) -> 1.136190441
A91: Total Boost Diode Losses: | B91: PDIODE(total) | C91: =Pdiode_cond+(Pdiode_reverse/2) -> 4.17406443 | D91: W | F91: =F89+(F90/2) -> 6.073245622 | G91: 4.758943122 | H91: 3.871886121 | I91: 5.573477328 | J91: 6.731147579 | K91: 6.864106035 | L91: 7.742840557 | M91: 5.51876574 | N91: 5.069112789 | O91: 4.439981342
A92: Required Heat Sink Thermal Impedance: | B92: RqHS_AMB(Diode) | C92: =((Tj_diode-Tamb)/Pdiode)-Rth_diode-Rth_case_hs -> 23.28321085 | D92: °C/W | F92: =((F86-Tamb)/F91)-F87-F88 -> 8.379396246 | G92: 10.70784138 | H92: 13.79632353 | I92: 8.965272104 | J92: 6.670969267 | K92: 6.512696733 | L92: =((L86-Tamb)/L91)-L87-L88 -> 7.986367612 | M92: =((M86-Tamb)/M91)-M87-M88 -> 11.88999522 | N92: =((N86-Tamb)/N91)-N87-N88 -> 12.9954885 | O92: =((O86-Tamb)/O91)-O87-O88 -> 15.09196288
A93: Required Diode Blocking Voltage: | B93: VBLOCKING | C93: =Vout*1.1 -> 409.1029412 | D93: V | F93: =Vout*1.1 -> 409.1029412 | G93: 409.1029412 | H93: 409.1029412 | I93: 409.1029412 | J93: 409.1029412 | K93: 409.1029412 | L93: 409.1029412 | M93: 409.1029412 | N93: 409.1029412 | O93: 409.1029412
F95: TI推荐参数 | G95: TI推荐参数 | H95: 重庆平伟实业☆ | I95: 丽隽 | J95: 华微 | K95: 美的MCC
A96: SWITCHING ELEMENT: | F96: infineon | G96: wang | H96: 20N65YS | J96: TT040U065EQ | K96: MSJW20N65
A97: VCC Bias Voltage to the UCC28180: | B97: VCC | C97: 15.2 | D97: V | F97: 16.2 | G97: 16.2 | H97: 16.2 | I97: 16.2 | J97: 16.2 | K97: 16.2
A98: Gate-Source Voltage: | B98: VGS | C98: =IF(VCC>=15.2,15.2,VCC-1.25) -> 15.2 | D98: V | F98: =IF(VCC>=15.2,15.2,VCC-1.25) -> 15.2 | G98: =IF(VCC>=15.2,15.2,VCC-1.25) -> 15.2 | H98: =IF(VCC>=15.2,15.2,VCC-1.25) -> 15.2 | I98: =IF(VCC>=15.2,15.2,VCC-1.25) -> 15.2 | J98: =IF(VCC>=15.2,15.2,VCC-1.25) -> 15.2 | K98: =IF(VCC>=15.2,15.2,VCC-1.25) -> 15.2
A99: Drain-Source RMS Current: | B99: IDS_RMS | C99: =(Pout/Vin_peak_min)*SQRT((2-(16*Vin_peak_min/(3*PI()*Vout)))) -> 4.65320388 | D99: A | F99: =(Pout/Vin_peak_min)*SQRT((2-(16*Vin_peak_min/(3*PI()*Vout)))) -> 4.65320388 | G99: =(Pout/Vin_peak_min)*SQRT((2-(16*Vin_peak_min/(3*PI()*Vout)))) -> 4.65320388 | H99: =(Pout/Vin_peak_min)*SQRT((2-(16*Vin_peak_min/(3*PI()*Vout)))) -> 4.65320388 | I99: =(Pout/Vin_peak_min)*SQRT((2-(16*Vin_peak_min/(3*PI()*Vout)))) -> 4.65320388 | J99: =(Pout/Vin_peak_min)*SQRT((2-(16*Vin_peak_min/(3*PI()*Vout)))) -> 4.65320388 | K99: =(Pout/Vin_peak_min)*SQRT((2-(16*Vin_peak_min/(3*PI()*Vout)))) -> 4.65320388
A100: FET On-Resistance at TJ = 125°C: | B100: RDSon | C100: 0.05 | D100: W | F100: 0.095 | G100: 0.145 | H100: 0.145 | I100: 0.089 | J100: =2/40 -> 0.05 | K100: =0.15 -> 0.15
A101: FET Gate Charge at VGS: | B101: Qg | C101: 79.2 | D101: nC | F101: 45 | G101: 42 | H101: 25 | I101: 45 | J101: 79.2 | K101: 39
A102: FET Rise Time: | B102: tr | C102: 86 | D102: ns | F102: 12 | G102: 10 | H102: 3 | I102: 13 | J102: 86 | K102: 59
A103: FET Fall Time: | B103: tf | C103: 54 | D103: ns | F103: 7 | G103: 6 | H103: 9 | I103: 13 | J103: 54 | K103: 44
A104: FET Output Capacitance: | B104: COSS | C104: 193 | D104: pF | F104: 33 | G104: 62 | H104: 113 | I104: 97 | J104: 193 | K104: 61
A105: FET Maximum Junction Temperature: | B105: TJ(max) | C105: 125 | D105: °C | F105: 125 | G105: 125 | H105: 125 | I105: 125 | J105: 125 | K105: 125
A106: FET Thermal Resistance, Junction to Case: | B106: RqJC(FET) | C106: 0.44 | D106: °C/W | F106: 0.98 | G106: 1.135 | H106: 0.83 | I106: 0.39 | J106: 0.44 | K106: 0.44
A107: FET Thermal Resistance, Case to Heatsink: | B107: RqCHS(FET) | C107: 0.7 | D107: °C/W | F107: 0.7 | G107: 0.7 | H107: 0.83 | I107: 0.83 | J107: 0.7 | K107: 0.7
A108: Gate Drive Losses (actually dissipated in the gate drive circuitry): | B108: PGATE | C108: =Vgs*Qg*(nC)*fsw*kHz -> 0.05853520199 | D108: W | F108: =F98*F101*(nC)*fsw*kHz -> 0.0332586375 | G108: =G98*G101*(nC)*fsw*kHz -> 0.031041395 | H108: =H98*H101*(nC)*fsw*kHz -> 0.01847702083 | I108: =I98*I101*(nC)*fsw*kHz -> 0.0332586375 | J108: =J98*J101*(nC)*fsw*kHz -> 0.05853520199 | K108: =K98*K101*(nC)*fsw*kHz -> 0.0288241525
A109: FET Conduction Losses: | B109: PCOND | C109: =(Ids_rms^2)*(Rds_on) -> 1.082615317 | D109: W | F109: =(Ids_rms^2)*(F100) -> 2.056969103 | G109: =(Ids_rms^2)*(G100) -> 3.13958442 | H109: =(Ids_rms^2)*(H100) -> 3.13958442 | I109: =(Ids_rms^2)*(I100) -> 1.927055265 | J109: =(Ids_rms^2)*(J100) -> 1.082615317 | K109: =(Ids_rms^2)*(K100) -> 3.247845952
A110: FET Switching Losses: | B110: PSW | C110: =((fsw*kHz)/2)*(((tr_FET+tf_FET)*ns*Vout*Iin_peak_max)+(Coss*picoF*Vout^2)) -> 13.790599 | D110: W | F110: =((fsw*kHz)/2)*(((F102+F103)*ns*Vout*Iin_peak_max)+(F104*picoF*Vout^2)) -> 1.894472203 | G110: =((fsw*kHz)/2)*(((G102+G103)*ns*Vout*Iin_peak_max)+(G104*picoF*Vout^2)) -> 1.710387416 | H110: =((fsw*kHz)/2)*(((H102+H103)*ns*Vout*Iin_peak_max)+(H104*picoF*Vout^2)) -> 1.506415295 | I110: =((fsw*kHz)/2)*(((I102+I103)*ns*Vout*Iin_peak_max)+(I104*picoF*Vout^2)) -> 2.766769134 | J110: =((fsw*kHz)/2)*(((J102+J103)*ns*Vout*Iin_peak_max)+(J104*picoF*Vout^2)) -> 13.790599 | K110: =((fsw*kHz)/2)*(((K102+K103)*ns*Vout*Iin_peak_max)+(K104*picoF*Vout^2)) -> 9.873579703
A111: FET Losses, Total: | B111: PFET | C111: =P_FETcond+P_FETsw -> 14.87321432 | D111: W | F111: =F109+F110 -> 3.951441306 | G111: 4.849971836 | H111: 4.645999715 | I111: 4.693824399 | J111: 14.87321432 | K111: 13.12142565
A112: Required Heat Sink Thermal Impedance: | B112: RqHS_AMB(FET) | C112: =((Tj_FET-Tamb)/P_FET)-Rth_jc_FET-Rth_CHS_FET -> 2.894097721 | D112: °C/W | F112: =((Tj_FET-Tamb)/P_FET)-Rth_jc_FET-Rth_CHS_FET -> 2.894097721 | G112: =((Tj_FET-Tamb)/P_FET)-Rth_jc_FET-Rth_CHS_FET -> 2.894097721 | H112: =((Tj_FET-Tamb)/P_FET)-Rth_jc_FET-Rth_CHS_FET -> 2.894097721 | I112: =((Tj_FET-Tamb)/P_FET)-Rth_jc_FET-Rth_CHS_FET -> 2.894097721 | J112: =((Tj_FET-Tamb)/P_FET)-Rth_jc_FET-Rth_CHS_FET -> 2.894097721 | K112: =((Tj_FET-Tamb)/P_FET)-Rth_jc_FET-Rth_CHS_FET -> 2.894097721
F114: =C99/13-1 -> -0.64206124
A115: CURRENT SENSE RESISTOR:
A116: Ideal Value for RSENSE, for 110% Inductor SOC Threshold: | B116: RSENSE(ideal) | C116: =0.259/(Il_peak_actual*1.1) -> 0.01895087136 | D116: W
A117: Actual Value for RSENSE: Current Sense Resistor: | B117: RSENSE | C117: 0.019 | D117: W | E117: =IF(Rsense>0.259/I_Lpeak,"DECREASE Rsense","") -> 
A118: ICOMP Voltage at Vin_Min, ICOMP to be <5.7V to avoid ICOMP amp saturation | B118: ICOMP | C118: =VCOMP!Z7 -> 6 | D118: V | E118: =IF(C118>5.7,"DECREASE Rsense","") -> DECREASE Rsense | F118: ICOMP 电压在 Vin_Min，ICOMP 为 <5.7V，以避免 ICOMP 电流饱和
A119: Inductor Current at Soft Over-Current Threshold: | B119: IOVERCURRENT_SOC | C119: =0.259/Rsense -> 13.63157895 | D119: A
A120: Power Dissipated in RSENSE: | B120: PRsense | C120: =(Iin_rms_max^2)*Rsense -> 1.023873597 | D120: W | F120: =SQRT(3/0.01)*2.5 -> 43.30127019
A121: Theoretical Output Over-Current Inception Point: | B121: IOUT_OVERCURRENT | C121: =(((Isoc-((Vout*Dmax*(1-Dmax))/(fsw*kHz*Lbst*mH)/2))*Vacin_min*PF)/(SQRT(2))*eff)/Vout -> 3.662003848 | D121: A
A122: Maximum ISENSE Peak Current Limit Threshold: | B122: IPCL | C122: =0.438/Rsense -> 23.05263158 | D122: A
A123: Resistance of Thermistor at 25°C: | B123: RTHERM | C123: 120 | D123: W
A124: Maximum Inrush Current: | B124: IINRUSH | C124: =Vin_peak_max/C123 -> 3.097127702 | D124: A
A125: Recommended ISENSE Series Resistor: | B125: RISENSE | C125: 220 | D125: W | H125: =0.012*1.01 -> 0.01212
A126: Recommended ISENSE Filter Capacitor: | B126: CISENSE | C126: 2000 | D126: =data!G276 -> pF | F126: =data!F276 -> 1800 | J126: =data!F276 -> 1800
A129: OUTPUT CAPACITOR:
A130: Required Minimum Output Voltage: | B130: VOUT_HOLDUP(min) | C130: 160 | D130: V | E130: =IF(Vout_holdup>Vout,"ENTER A LOWER VALUE FOR THE MINIMUM HOLDUP VOLTAGE","") -> 
A131: Desired Number of Line Cycles For Output Holdup Time (typ one line cycle): | B131: NHOLD_UP | C131: 1
A132: Minimum Output Voltage Holdup Time: | B132: tHold_UP(min) | C132: =Nholdup*((1/fline_min)/ms) -> 20.40816327 | D132: ms
A133: Recommended Minimum Output Capacitor Value: | B133: COUT(recommended) | C133: =data!F236 -> 470 | D133: =data!G236 -> µF
A134: Actual Output Capacitor Value: | B134: COUT | C134: 470 | D134: =data!G236 -> µF | E134: =IF(Cout<C133,"INCREASE OUTPUT CAPACITANCE TO AT LEAST MINIMUM RECOMMENDED VALUE","") ->  | F134: =Cout_rcmd/0.9 -> 522.2222222
A135: Output Voltage Peak to Peak Ripple: | B135: VOUT_RIPPLEpp | C135: =Iout/(PI()*2*2*fline_min*Cout*uF) -> 11.14904138 | D135: V
A136: =IF(Vout_ripplepp>=0.04*Vout,"OUTPUT CAPACITOR must be sized larger so OVP/UVD is not triggered","Good! Output voltage peak-peak ripple is less than 5% VOUT") -> Good! Output voltage peak-peak ripple is less than 5% VOUT | F136: =Vout_ripplepp/380 -> 0.02933958258
A137: Output Capacitor Ripple Current at Twice Line Frequency: | B137: ICout_2fline | C137: =Iout/SQRT(2) -> 2.281530777 | D137: ARMS
A138: Output Capacitor High Frequency Ripple Current: | B138: ICout_HF | C138: =Iout*SQRT(((16*Vout)/(3*PI()*Vin_peak_min))-1.5) -> 3.377351779 | D138: ARMS
A139: Total Output Capacitor Ripple Current: | B139: ICout_RMS(total) | C139: =SQRT((Icout_2fline^2)+(Icout_HF^2)) -> 4.07576836 | D139: ARMS
A140: =IF(Vout_ripplepp>0.04*Vout,"OUTPUT CAPACITOR MUST BE INCREASED TO PREVENT OVP DURING NORMAL OPERATING RANGE","") -> 
A142: OUTPUT VOLTAGE SET POINT:
A143: Recommended Value for the Top Divider Resistor: | B143: RFB1(recommended) | C143: 1 | D143: MW
A144: Actual Value of the Top Divider Resistor: | B144: RFB1(actual) | C144: 0.998 | D144: MW | E144: =IF(R_fb1<0.953,"RECOMMENDED VALUE IS GREATER THAN OR EQUAL TO 1M","") -> 
A145: Recommended Value for the Bottom Divider Resistor (E48 Series): | B145: RFB2(recommended) | C145: =data!F242 -> 13.3 | D145: kW
A146: Actual Value of the Bottom Divider Resistor: | B146: RFB2(actual) | C146: =13.3+0.3 -> 13.6 | D146: kW | F146: =0.91+12.7 -> 13.61
A147: Actual Nominal Output Voltage: | B147: VOUT | C147: =VREF*((R_fb1*MegOhm)+(R_fb2*kOhms))/(R_fb2*kOhms) -> 371.9117647 | D147: V | E147: =IF(Vout_min<Vin_peak_max,"DO NOT PROCEED WITHOUT ADJUSTING THE RESISTOR DIVIDER IN ORDER TO ACHIEVE THE DESIRED OUTPUT VOLTAGE",IF(Vout_nom>1.1*Vout,"ADJUST BOTTOM DIVIDER RESISTOR FOR DESIRED OUTPUT VOLTAGE","")) -> DO NOT PROCEED WITHOUT ADJUSTING THE RESISTOR DIVIDER IN ORDER TO ACHIEVE THE DESIRED OUTPUT VOLTAGE
A148: Minimum Output Voltage with respect to VREF: | B148: VOUT(min) | C148: =VREFmin*((R_fb1*MegOhm)+(R_fb2*kOhms))/(R_fb2*kOhms) -> 366.705 | D148: V
A149: Maximum Output Voltage with respect to VREF: | B149: VOUT(max) | C149: =VREFmax*((R_fb1*MegOhm)+(R_fb2*kOhms))/(R_fb2*kOhms) -> 377.1185294 | D149: V
A150: OVP Set Point: Typical DC Output Voltage to Trigger OVP: | B150: VOVP | C150: =(VREF*1.09)*((R_fb1*MegOhm)+(R_fb2*kOhms))/(R_fb2*kOhms) -> 405.3838235 | D150: V
A151: UVD Set Point: Typical DC Output Voltage to Trigger UVD: | B151: VUVD | C151: =(VREF*0.95)*((R_fb1*MegOhm)+(R_fb2*kOhms))/(R_fb2*kOhms) -> 353.3161765 | D151: V
A152: Recommended Value for Filter Capacitor on VSENSE: | B152: CVSENSE | C152: =data!F245 -> 680 | D152: =data!G245 -> pF
A153: Power Dissipated in Voltage Divider: | B153: PRfB1+RFB2 | C153: =(Vout_nom^2)/((R_fb1*MegOhm)+(R_fb2*kOhms)) -> 0.1367322664 | D153: W
A154: =IF(Vout_min<Vin_peak_max,"DO NOT PROCEED UNTIL RFB2 IS DECREASED SO MINIMUM OUTPUT VOLTAGE > MAXIMUM RECTIFIED INPUT VOLTAGE","") -> DO NOT PROCEED UNTIL RFB2 IS DECREASED SO MINIMUM OUTPUT VOLTAGE > MAXIMUM RECTIFIED INPUT VOLTAGE
A156: COMPENSATION:
A180: The Loop will be Optimized at a Selected Specific Line Voltage. For a Wide Input Range, Optimization is Recommended at the Mean of Min and Max Input. For a Design with a Specific Nominal Line Voltage, Optimize at that Nominal Voltage. VCOMP at Any Line Voltage or as a Function of Load is Shown at Right | F180: To Determine VCOMP for a Specific Line Voltage at Full Load:
A181: Line Voltage for Optimized Loop Design: | B181: VINnom | C181: 220 | D181: V | G181: Enter Line Voltage for VCOMP calculation | I181: VLINE | J181: 220 | K181: VRMS
A182: Open Loop Transfer Function for Current Loop: | G182: Resultant VCOMP at Full Load | I182: VCOMP at VLINE | J182: =VCOMP!B44 -> 2.559585974 | K182: V
A183: Product of the Voltage Loop Variables: | B183: M1M2 | C183: =M1M2 -> 0.155290386 | D183: V/ms | G183: Resultant ICOMP at Full Load | I183: VCOMP at VLINE | J183: =VCOMP!B45 -> 6 | K183: V | L183: =IF(J183>5.7,"DECREASE Rsense","") -> DECREASE Rsense
A184: VCOMP Voltage at VINnom: | B184: VCOMP | C184: =data!H69 -> 2.559585974 | D184: V | F184: To Determine VCOMP at Selected Line Voltage and at a Specific Load, enter a value from 1 to 100 for 1% to 100% load:
A185: Internal Current Loop Gain Factor M1: | B185: M1 | C185: =IF(Vcomp<1,(0.068),IF(Vcomp<2,(0.156*Vcomp-0.0088),IF(Vcomp<4.5,(0.313*Vcomp-0.401),IF(Vcomp<5,1.007,"VCOMP MUST BE <5")))) -> 0.4001504099
A186: Internal Voltage Loop PWM Ramp Slope M2: | B186: M2 | C186: =IF(Vcomp<=0.5,0,IF(Vcomp<4.6,(((fsw*kHz)/ftyp)*0.1223*(Vcomp-0.5)^2),IF(Vcomp<5,(((fsw*kHz)/ftyp)*2.056),"VCOMP MUST BE <5"))) -> 0.3880800373 | D186: V/ms | G186: Percentage of Full Load for VCOMP Calculation: | I186: % of Full Load: | J186: 100 | K186: %
A187: Non-Linear Gain Voltage Loop Variable M3: | B187: M3 | C187: =IF(Vcomp<0.5,(0),IF(Vcomp<1,((fsw*kHz)/ftyp)*(0.0166328*Vcomp-0.0083164),IF(Vcomp<2,((fsw*kHz)/ftyp)*(0.0572364*Vcomp^2-0.0596824*Vcomp+0.0155321),IF(Vcomp<4.5,((fsw*kHz)/ftyp)*(0.1148397*Vcomp^2-0.1746444*Vcomp+0.058612275),IF(Vcomp<4.6,((fsw*kHz)/ftyp)*(0.24631222*Vcomp-0.1231561),IF(Vcomp<5,0,"VCOMP MUST BE <5")))))) -> 0.2722667246 | D187: V/ms | G187: Resultant VCOMP at Selected Load | I187: VCOMP at %load selected | J187: =VCOMP!E45 -> 2.559585974 | K187: V
A188: Maximum Recommended ICOMP Capacitor Value: | B188: CICOMPmax(recommended) | C188: =data!F252 -> 6800 | D188: =data!G252 -> pF
A189: Minimum Recommended ICOMP Capacitor Value: | B189: CICOMPmin(recommended) | C189: =data!F257 -> 3300 | D189: =data!G257 -> pF
A190: Actual Value Used for ICOMP Capacitor: | B190: CICOMP(actual) | C190: 680 | D190: pF
A191: Resultant Actual Current Averaging Pole Frequency: | B191: fIAVG(actual) | C191: =((gmi*M_1)/(K_1*2*PI()*Cicomp*picoF))/kHz -> 12.71042435 | D191: kHz
A256: Open Loop Transfer Function for Voltage Loop:
A257: PWM to Power Stage Pole: | B257: fPWM_PS(pole) | C257: =1/((2*PI()*K_1*2.5*Rsense*(Vout_nom^3)*(Cout*uF))/(K_FQ*(M1M2/us)*(Vacin_nom^2))) -> 2.9883136 | D257: Hz
A258: Desired Voltage Loop Crossover Frequency ( fV < 20Hz): | B258: fV | C258: 10 | D258: Hz
A259: Open Loop Voltage Gain at Desired fV: | B259: GVLdB(fV) | C259: =20*LOG(IMABS(IMPRODUCT((R_fb2*kOhms)/((R_fb1*MegOhm)+(R_fb2*kOhms)),IMDIV((M_3*Vout_nom)/(M1M2),COMPLEX(1,(2*PI()*fv)/(2*PI()*fPWM_PSpole)))))) -> 7.993447697 | D259: dB | E259: =IF(fv>20,"SET CROSSOVER FREQUENCY TO LESS THAN 20Hz","") -> 
A260: Recommended Value for the Voltage Compensation Capacitor: | B260: CVCOMP(recommended) | C260: =data!F262 -> 6.8 | D260: =data!G262 -> µF
A261: Actual Value Used for CVCOMP Capacitor: | B261: CVCOMP(actual) | C261: 10 | D261: mF
A262: Recommended Value for the Voltage Compensation Resistor: | B262: RVCOMP(recommended) | C262: =data!F267 -> 5.36 | D262: kW
A263: Actual Value Used for RVCOMP Resistor: | B263: RVCOMP(actual) | C263: 5.11 | D263: kW
A264: Resultant Value of Voltage Compensation Zero: | B264: fZERO | C264: =1/(2*PI()*(Rvcomp*kOhms)*(Cvcomp*uF)) -> 3.114578143 | D264: Hz | E264: =IF(Rvcomp>1.1*C262,"USE A SMALLER VALUE FOR VCOMP RESISTOR",IF(Rvcomp<0.9*C262,"USE A LARGER VALUE FOR VCOMP RESISTOR","")) -> 
A265: Desired Voltage Compensation Pole (fPole < 50Hz): | B265: fPOLE | C265: 20 | D265: Hz
A266: Recommended Value for the Parallel Voltage Compensation Capacitor: | B266: CVCOMP_P(recommended) | C266: =data!F271 -> 1.8 | D266: =data!G271 -> µF | E266: =IF(fpole>50,"POLE MUST BE < 50Hz","") -> 
A267: Actual Value for the Parallel Voltage Compensation Capacitor: | B267: CVCOMP_P(actual) | C267: 1.68 | D267: mF | E267: =IF(Cvcomp_p<C266*0.75,"USE LARGER PARALLEL CAPACITOR ON VCOMP",IF(Cvcomp_p>1.25*C266,"USE SMALLER PARALLEL CAPACITOR ON VCOMP","")) -> 
C268: 10

Sheet SCHEMATIC
A1: Typical Schematic for a PFC Continuous Conduction Mode Boost Converter Using the UCC28180
B38: RECOMMENDED BILL OF MATERIALS
B39: Reference Designator | C39: Description/Comments
B40: FUSE | C40: Type: | D40: Fast Acting
C41: Voltage Rating: | D41: =IF(Vacin_max<270,250,350) -> 250 | E41: ='DESIGN INPUTS AND CALCULATIONS'!D24 -> VRMS
C42: Current Rating: | D42: =Ifuse -> 10.20378201 | E42: ='DESIGN INPUTS AND CALCULATIONS'!D49 -> A
B43: BRIDGE | C43: DC Blocking Voltage: | D43: =Vrated -> 408.8208566 | E43: ='DESIGN INPUTS AND CALCULATIONS'!D58 -> V
C44: Current Rating: | D44: =Ibridge -> 9.913631036 | E44: ='DESIGN INPUTS AND CALCULATIONS'!D57 -> A
C45: Power Dissipation: | D45: =Pbridge -> 12.55726598 | E45: ='DESIGN INPUTS AND CALCULATIONS'!D59 -> W
B46: CIN | C46: Type: | D46: Film Capacitor, X2
C47: Value: | D47: =IF(Cin="",Cin_rcmd,Cin) -> 1 | E47: =data!G228 -> µF
C48: Volatge Rating: | D48: =Vacin_max -> 262.8 | E48: VRMS
B49: LBST | C49: Inductor Value: | D49: =IF(Lbst="",Lbst_rcmd,Lbst) -> 0.468 | E49: ='DESIGN INPUTS AND CALCULATIONS'!D77 -> mH
C50: Peak Current Rating: | D50: =Il_peak_actual -> 12.42447068 | E50: ='DESIGN INPUTS AND CALCULATIONS'!D79 -> A
C51: Ripple Current: | D51: =Iripple_actual -> 4.085881062 | E51: ='DESIGN INPUTS AND CALCULATIONS'!D78 -> A
C52: Maximum Duty Cycle: | D52: =Dmax -> 0.3459611773
B53: DBOOST | C53: Type: | D53: Diode, Low Reverse Recovery Charge, Schottky
C54: Average Current Rating: | D54: =Iin_avg_max -> 6.609087357 | E54: ='DESIGN INPUTS AND CALCULATIONS'!D48 -> A
C55: Volatge Rating: | D55: =Vdiode_blocking -> 409.1029412 | E55: ='DESIGN INPUTS AND CALCULATIONS'!D33 -> V
C56: Power Dissipation: | D56: =Pdiode -> 4.17406443 | E56: ='DESIGN INPUTS AND CALCULATIONS'!D91 -> W
B57: QFET | C57: Type: | D57: MOSFET, Nchannel
C58: RMS Drain Current Rating: | D58: =Ids_rms -> 4.65320388 | E58: ='DESIGN INPUTS AND CALCULATIONS'!D99 -> A
C59: Peak Current Rating: | D59: =Il_peak_actual -> 12.42447068 | E59: ='DESIGN INPUTS AND CALCULATIONS'!D79 -> A
C60: Voltage Rating: | D60: =Vin_peak_max -> 371.6553242 | E60: ='DESIGN INPUTS AND CALCULATIONS'!D28 -> V
C61: Power Dissipation: | D61: =P_FET -> 14.87321432 | E61: ='DESIGN INPUTS AND CALCULATIONS'!D111 -> W
B62: RSENSE | C62: Type: | D62: Resistor, Low Inductance
C63: Value: | D63: =IF(Rsense="",Rsense_ideal,Rsense) -> 0.019 | E63: W
C64: Power Dissipation: | D64: =P_Rsense -> 1.023873597 | E64: ='DESIGN INPUTS AND CALCULATIONS'!D120 -> W
B65: RISENSE | C65: Type: | D65: Resistor, Chip, 1/16W
C66: Value: | D66: =Risense -> 220 | E66: W
B67: CISENSE | C67: Type: | D67: Capacitor, Ceramic, 100V, X7R, ±10%
C68: Value: | D68: =Cisense -> 2000 | E68: ='DESIGN INPUTS AND CALCULATIONS'!D126 -> pF
B69: COUT | C69: Type: | D69: Capacitor, Aluminum, ±20%
C70: Value: | D70: =IF(Cout="",Cout_rcmd,Cout) -> 470 | E70: ='DESIGN INPUTS AND CALCULATIONS'!D133 -> µF
C71: Voltage Rating: | D71: =Vovp -> 405.3838235 | E71: V
C72: 2 x fLINE Ripple Current Rating: | D72: =Icout_2fline -> 2.281530777 | E72: ARMS
C73: HF Ripple Current Rating: | D73: =Icout_HF -> 3.377351779 | E73: ARMS
B74: RFB1 | C74: Type: | D74: Resistor, Chip, Total Voltage Rating 400V, ±1%
C75: Value: | D75: =IF(R_fb1="",Rfb1_rcmd,R_fb1) -> 0.998 | E75: MW
B76: RFB2 | C76: Type: | D76: Resistor, Chip, 1/10W, ±1%
C77: Value: | D77: =IF(R_fb2="",R_fb2_rcmd,R_fb2) -> 13.6 | E77: kW
B78: CVSENSE | C78: Type: | D78: Capacitor, Ceramic, 50V, X7R, ±10%
C79: Value: | D79: =Cvsense -> 680 | E79: pF
B80: CICOMP | C80: Type: | D80: Capacitor, Ceramic, 50V, X7R, ±10%
C81: Recommended Values: | D81: =Cicomp_minrcmd -> 3300 | E81: pF min
D82: =Cicomp_maxrcmd -> 6800 | E82: pF min
B83: CVCOMP | C83: Type: | D83: Capacitor, Ceramic, 10V, X5R, ±10%
C84: Value: | D84: =IF(Cvcomp="",Cvcomp_rcmd,Cvcomp) -> 10 | E84: mF
B85: RVCOMP | C85: Type: | D85: Resistor, Chip, 1/10W, ±1%
C86: Value: | D86: =IF(Rvcomp="",Rvcomp_rcmd,Rvcomp) -> 5.11 | E86: kW
B87: CVCOMP_P | C87: Type: | D87: Capacitor, Ceramic, 10V, X5R, ±10%
C88: Value: | D88: =IF(Cvcomp_p="",Cvcomp_p_rcmd,Cvcomp_p) -> 1.68 | E88: mF
B89: RFREQ | C89: Type: | D89: Resistor, Chip, 1/10W, ±1%
C90: Value: | D90: =IF(Rfreq="",Rfreq_rcmd,Rfreq) -> 44.2 | E90: kΩ
B91: CVCC | C91: Type: | D91: Ceramic, Low ESR/ESL, placed close to the VCC and GND pins with short traces
C92: Values: | D92: 0.1 | E92: mF min
D93: 1 | E93: mF max
B94: DSTART | C94: Type: | D94: Diode, Switching
C95: Average Current Rating: | D95: =Iinrush -> 3.097127702 | E95: A
C96: Volatge Rating: | D96: =Vovp -> 405.3838235 | E96: V
B97: DTURNOFF | C97: Type: | D97: Diode, Schottky
C98: Average Current Rating: | D98: 2 | E98: A
C99: Volatge Rating: | D99: 40 | E99: V
B100: RGATE | C100: Type: | D100: Resistor, Chip, 1/10W, ±1%
C101: Value: | D101: As Needed
B102: RGATE2 | C102: Type: | D102: Resistor, Chip, 1/10W, ±1%
C103: Value: | D103: 10 | E103: kΩ

Sheet data (hidden)
A2: Data for M1M2 vs VCOMP table
A4: VCOMP | B4: M1 | C4: M2 | D4: M1M2
A5: 0 | B5: =IF(A5<1,(0.068),IF(A5<2,(0.156*A5-0.088),IF(A5<4.5,(0.313*A5-0.401),IF(A5<=5,1.007,"VCOMP MUST BE < 5")))) -> 0.068 | C5: =IF(A5<=0.5,0,IF(A5<4.6,((fSW_target/65)*0.1223*(A5-0.5)^2),IF(A5<=5,((fSW_target/65)*2.056),"VCOMP MUST BE < 5"))) -> 0 | D5: =B5*C5 -> 0 | G5: mV factor | H5: =10^-3 -> 0.001
A6: =A5+0.05 -> 0.05 | B6: =IF(A6<1,(0.068),IF(A6<2,(0.156*A6-0.088),IF(A6<4.5,(0.313*A6-0.401),IF(A6<=5,1.007,"VCOMP MUST BE < 5")))) -> 0.068 | C6: 0 | D6: =B6*C6 -> 0 | G6: uF factor | H6: =(10^-6) -> 1e-06
A7: =A6+0.05 -> 0.1 | B7: 0.068 | C7: 0 | D7: 0 | G7: kHz factor | H7: =10^3 -> 1000
A8: 0.15 | B8: 0.068 | C8: 0 | D8: 0 | G8: mΩ factor | H8: =10^-3 -> 0.001
A9: 0.2 | B9: 0.068 | C9: 0 | D9: 0 | G9: ms factor | H9: =10^-3 -> 0.001
A10: 0.25 | B10: 0.068 | C10: 0 | D10: 0 | G10: mA factor | H10: =10^-3 -> 0.001
A11: 0.3 | B11: 0.068 | C11: 0 | D11: 0 | G11: us factor | H11: =10^-6 -> 1e-06
A12: 0.35 | B12: 0.068 | C12: 0 | D12: 0 | G12: uH factor | H12: =10^-6 -> 1e-06
A13: 0.4 | B13: 0.068 | C13: 0 | D13: 0 | G13: ns factor | H13: =10^-9 -> 1e-09
A14: 0.45 | B14: 0.068 | C14: 0 | D14: 0 | G14: mW factor | H14: =10^-3 -> 0.001
A15: 0.5 | B15: 0.068 | C15: 0 | D15: 0 | G15: pF factor | H15: =10^-12 -> 1e-12
A16: 0.55 | B16: 0.068 | C16: 0.0002287198154 | D16: 1.555294745e-05 | G16: MHz factor | H16: =10^6 -> 1000000
A17: 0.6 | B17: 0.068 | C17: 0.0009148792615 | D17: 6.221178978e-05 | G17: uA factor | H17: =10^-6 -> 1e-06
A18: 0.65 | B18: 0.068 | C18: 0.002058478338 | D18: 0.000139976527 | G18: kΩ factor | H18: =10^3 -> 1000
A19: 0.7 | B19: 0.068 | C19: 0.003659517046 | D19: 0.0002488471591 | G19: nC factor | H19: =10^-9 -> 1e-09
A20: 0.75 | B20: 0.068 | C20: 0.005717995385 | D20: 0.0003888236862 | G20: nF factor | H20: =10^-9 -> 1e-09
A21: 0.8 | B21: 0.068 | C21: 0.008233913354 | D21: 0.0005599061081 | G21: uC factor | H21: =10^-6 -> 1e-06
A22: 0.85 | B22: 0.068 | C22: 0.01120727095 | D22: 0.0007620944249 | G22: MΩ factor | H22: =10^6 -> 1000000
A23: 0.9 | B23: 0.068 | C23: 0.01463806818 | D23: 0.0009953886366 | G23: mH factor | H23: =10^-3 -> 0.001
A24: 0.95 | B24: 0.068 | C24: 0.01852630505 | D24: 0.001259788743
A25: 1 | B25: 0.068 | C25: 0.02287198154 | D25: 0.001555294745
A26: 1.05 | B26: 0.0758 | C26: 0.02767509766 | D26: 0.002097772403
A27: 1.1 | B27: 0.0836 | C27: 0.03293565342 | D27: 0.002753420626
A28: 1.15 | B28: 0.0914 | C28: 0.0386536488 | D28: 0.0035329435
A29: 1.2 | B29: 0.0992 | C29: 0.04482908382 | D29: 0.004447045114
A30: 1.25 | B30: 0.107 | C30: 0.05146195846 | D30: 0.005506429555
A31: 1.3 | B31: 0.1148 | C31: 0.05855227274 | D31: 0.00672180091 | G31: K1 | H31: 7
A32: 1.35 | B32: 0.1226 | C32: 0.06610002665 | D32: 0.008103863267 | G32: KFQ | H32: =1/(fsw*kHz) -> 2.056608603e-05
A33: 1.4 | B33: 0.1304 | C33: 0.07410522018 | D33: 0.009663320712 | G33: fTYP | H33: =65*kHz -> 65000 | J33: VINnom | K33: =(Vacin_min+Vacin_max)/2 -> 217.4
A34: 1.45 | B34: 0.1382 | C34: 0.08256785335 | D34: 0.01141087733
A35: 1.5 | B35: 0.146 | C35: 0.09148792615 | D35: 0.01335723722 | G35: M1M2 | H35: =(Iout*(Vout_nom^2)*2.5*Rsense*K_1)/(eff*(VINnom^2)*K_FQ)*us -> 0.155290386 | J35: M1M2 | K35: =(Iout*(Vout_nom^2)*2.5*Rsense*K_1)/(eff*(Vacin_nom^2)*K_FQ)*us -> 0.1590269947
A36: 1.55 | B36: 0.1538 | C36: 0.1008654386 | D36: 0.01551310445
A37: 1.6 | B37: 0.1616 | C37: =IF(A37<=0.5,0,IF(A37<4.6,((fSW_target/65)*0.1223*(A37-0.5)^2),IF(A37<=5,((fSW_target/65)*2.056),"VCOMP MUST BE < 5"))) -> 0.1107003906 | D37: 0.01788918313 | G37: VCOMP1 | H37: =(1*10^-9*(5*10^8*SQRT(fsw*kHz)+(1.09655978*10^10)*SQRT(ftyp)*SQRT(M1M2)))/SQRT(fsw*kHz) -> 5.496168763 | J37: VCOMP1 | K37: =(1*10^-9*(5*10^8*SQRT(fsw*kHz)+(1.09655978*10^10)*SQRT(ftyp)*SQRT(M1M2)))/SQRT(fsw*kHz) -> 5.496168763
A38: 1.65 | B38: 0.1694 | C38: 0.1209927823 | D38: 0.02049617733
A39: 1.7 | B39: 0.1772 | C39: 0.1317426137 | D39: 0.02334479114 | G39: a1 | H39: 0.156 | J39: a1 | K39: 0.156
A40: 1.75 | B40: 0.185 | C40: 0.1429498846 | D40: 0.02644572865 | G40: b1 | H40: 0.088 | J40: b1 | K40: 0.088
A41: 1.8 | B41: 0.1928 | C41: 0.1546145952 | D41: 0.02980969395 | G41: c1 | H41: 0.1223 | J41: c1 | K41: 0.1223
A42: 1.85 | B42: 0.2006 | C42: 0.1667367454 | D42: 0.03344739113 | G42: d1 | H42: 0.5 | J42: d1 | K42: 0.5
A43: 1.9 | B43: 0.2084 | C43: 0.1793163353 | D43: 0.03736952427 | G43: K1V2 | H43: =(b_1^3/(27*a_1^3))-(d_1^3/27)+SQRT((ftyp)^2*M1M2^2/(4*a_1^2*c_1^2*(fsw*kHz)^2))+(b_1^3*(ftyp)*M1M2/(27*a_1^4*c_1*(fsw*kHz))-(d_1^3*(ftyp)*M1M2/(27*a_1*c_1*(fsw*kHz)))+(b_1*d_1^2*(ftyp)*M1M2/(9*a_1^2*c_1*(fsw*kHz)))-(b_1^2*d_1*(ftyp)*M1M2/(9*a_1^3*c_1*(fsw*kHz)))) -> 5.442495897 | J43: K1V2 | K43: =(b_1^3/(27*a_1^3))-(d_1^3/27)+SQRT((ftyp)^2*M1M2^2/(4*a_1^2*c_1^2*(fsw*kHz)^2))+(b_1^3*(ftyp)*M1M2/(27*a_1^4*c_1*(fsw*kHz))-(d_1^3*(ftyp)*M1M2/(27*a_1*c_1*(fsw*kHz)))+(b_1*d_1^2*(ftyp)*M1M2/(9*a_1^2*c_1*(fsw*kHz)))-(b_1^2*d_1*(ftyp)*M1M2/(9*a_1^3*c_1*(fsw*kHz)))) -> 5.442495897
A44: 1.95 | B44: 0.2162 | C44: 0.1923533647 | D44: 0.04158679746 | G44: K2V2 | H44: =(b_1*d_1^2/(9*a_1))-(b_1^2*d_1/(9*a_1^2))+(ftyp*M1M2/(2*a_1*c_1*fsw*kHz)) -> 5.438362167 | J44: K2V2 | K44: =(b_1*d_1^2/(9*a_1))-(b_1^2*d_1/(9*a_1^2))+(ftyp*M1M2/(2*a_1*c_1*fsw*kHz)) -> 5.438362167
A45: 2 | B45: 0.225 | C45: 0.2058478338 | D45: 0.04631576262 | G45: K3V2 | H45: =(d_1^2/9)+(b_1^2/(9*a_1^2))-(2*b_1*d_1/(9*a_1)) -> 0.0004565709694 | J45: K3V2 | K45: =(d_1^2/9)+(b_1^2/(9*a_1^2))-(2*b_1*d_1/(9*a_1)) -> 0.0004565709694
A46: 2.05 | B46: 0.24065 | C46: 0.2197997426 | D46: 0.05289480805 | G46: K4V2 | H46: =((b_1*c_1*fsw*kHz)+(2*a_1*c_1*d_1*fsw*kHz))/(3*a_1*c_1*fsw*kHz) -> 0.5213675214 | J46: K4V2 | K46: =((b_1*c_1*fsw*kHz)+(2*a_1*c_1*d_1*fsw*kHz))/(3*a_1*c_1*fsw*kHz) -> 0.5213675214
A47: 2.1 | B47: 0.2563 | C47: 0.234209091 | D47: 0.06002779001 | G47: VCOMP2 | H47: =(K_1V2+K_2V2)^(1/3)+(K_3V2/(K_1V2^(1/3)))+K_4V2 -> 2.737548637 | J47: VCOMP2 | K47: =(K_1V2+K_2V2)^(1/3)+(K_3V2/(K_1V2^(1/3)))+K_4V2 -> 2.737548637
A48: 2.15 | B48: 0.27195 | C48: 0.249075879 | D48: 0.06773618528
A49: 2.2 | B49: 0.2876 | C49: 0.2644001066 | D49: 0.07604147065 | G49: a2 | H49: 0.313 | J49: a2 | K49: 0.313
A50: 2.25 | B50: 0.30325 | C50: 0.2801817738 | D50: 0.08496512292 | G50: b2 | H50: 0.401 | J50: b2 | K50: 0.401
A51: 2.3 | B51: 0.3189 | C51: 0.2964208807 | D51: 0.09452861887 | G51: c2 | H51: 0.1223 | J51: c2 | K51: 0.1223
A52: 2.35 | B52: 0.33455 | C52: 0.3131174273 | D52: 0.1047534353 | G52: d2 | H52: 0.5 | J52: d2 | K52: 0.5
A53: 2.4 | B53: 0.3502 | C53: 0.3302714134 | D53: 0.115661049 | G53: K1V3 | H53: =(b_2^3/(27*a_2^3))-(d_2^3/27) -> 0.07325223506 | J53: K1V3 | K53: =(b_2^3/(27*a_2^3))-(d_2^3/27) -> 0.07325223506
A54: 2.45 | B54: 0.36585 | C54: 0.3478828392 | D54: 0.1272729367 | G54: K2V3 | H54: =(ftyp^2*M1M2^2/(4*a_2^2*c_2^2*(fsw*kHz)^2))+(b_2^3*ftyp*M1M2/(27*a_2^4*c_2*(fsw*kHz)))-(d_2^3*ftyp*M1M2/(27*a_2*c_2*(fsw*kHz)))+(b_2*d_2^2*ftyp*M1M2/(9*a_2^2*c_2*(fsw*kHz)))-(b_2^2*d_2*ftyp*M1M2/(9*a_2^3*c_2*(fsw*kHz))) -> 7.447941057 | J54: K2V3 | K54: =(ftyp^2*M1M2^2/(4*a_2^2*c_2^2*(fsw*kHz)^2))+(b_2^3*ftyp*M1M2/(27*a_2^4*c_2*(fsw*kHz)))-(d_2^3*ftyp*M1M2/(27*a_2*c_2*(fsw*kHz)))+(b_2*d_2^2*ftyp*M1M2/(9*a_2^2*c_2*(fsw*kHz)))-(b_2^2*d_2*ftyp*M1M2/(9*a_2^3*c_2*(fsw*kHz))) -> 7.447941057
A55: 2.5 | B55: 0.3815 | C55: 0.3659517046 | D55: 0.1396105753 | G55: K3V3 | H55: =(b_2*d_2^2/(9*a_2))-(b_2^2*d_2/(9*a_2^2))+(ftyp*M1M2/(2*a_2*c_2*(fsw*kHz))) -> 2.655896481 | J55: K3V3 | K55: =(b_2*d_2^2/(9*a_2))-(b_2^2*d_2/(9*a_2^2))+(ftyp*M1M2/(2*a_2*c_2*(fsw*kHz))) -> 2.655896481
A56: 2.55 | B56: 0.39715 | C56: 0.3844780097 | D56: 0.1526954415 | G56: K4V3 | H56: =(d_2^2/9)+(b_2^2/(9*a_2^2))-(2*b_2*d_2/(9*a_2)) -> 0.06779950801 | J56: K4V3 | K56: =(d_2^2/9)+(b_2^2/(9*a_2^2))-(2*b_2*d_2/(9*a_2)) -> 0.06779950801
A57: 2.6 | B57: 0.4128 | C57: 0.4034617543 | D57: 0.1665490122 | G57: K5V3 | H57: =(b_2*c_2*(fsw*kHz)+2*a_2*c_2*d_2*(fsw*kHz))/(3*a_2*c_2*(fsw*kHz)) -> 0.7603833866 | J57: K5V3 | K57: =(b_2*c_2*(fsw*kHz)+2*a_2*c_2*d_2*(fsw*kHz))/(3*a_2*c_2*(fsw*kHz)) -> 0.7603833866
A58: 2.65 | B58: 0.42845 | C58: 0.4229029386 | D58: 0.1811927641 | G58: VCOMP3 | H58: =((K_1V3+SQRT(K_2V3)+K_3V3)^(1/3))+(K_4V3/((K_1V3+SQRT(K_2V3)+K_3V3)^(1/3)))+K_5V3 -> 2.559585974 | J58: VCOMP3 | K58: =((K_1V3+SQRT(K_2V3)+K_3V3)^(1/3))+(K_4V3/((K_1V3+SQRT(K_2V3)+K_3V3)^(1/3)))+K_5V3 -> 2.559585974
A59: 2.7 | B59: 0.4441 | C59: 0.4428015626 | D59: 0.1966481739
A60: 2.75 | B60: 0.45975 | C60: 0.4631576262 | D60: 0.2129367186 | G60: a3 | H60: 1.007 | J60: a3 | K60: 1.007
A61: 2.8 | B61: 0.4754 | C61: 0.4839711294 | D61: 0.2300798749 | G61: b3 | H61: 0.1223 | J61: b3 | K61: 0.1223
A62: 2.85 | B62: 0.49105 | C62: 0.5052420722 | D62: 0.2480991195 | G62: c3 | H62: 0.5 | J62: c3 | K62: 0.5
A63: 2.9 | B63: 0.5067 | C63: 0.5269704546 | D63: 0.2670159294 | G63: VCOMP4 | H63: =c_3+(SQRT(ftyp)*SQRT(M1M2)/(SQRT(a_3)*SQRT(b_3)*SQRT(fsw*kHz))) -> 1.79830528 | J63: VCOMP4 | K63: =c_3+(SQRT(ftyp)*SQRT(M1M2)/(SQRT(a_3)*SQRT(b_3)*SQRT(fsw*kHz))) -> 1.79830528
A64: 2.95 | B64: 0.52235 | C64: 0.5491562767 | D64: 0.2868517812
A65: 3 | B65: 0.538 | C65: 0.5717995385 | D65: 0.3076281517 | G65: a4 | H65: 1.007 | J65: a4 | K65: 1.007
A66: 3.05 | B66: 0.55365 | C66: 0.5949002398 | D66: 0.3293665178 | G66: b4 | H66: 2.056 | J66: b4 | K66: 2.056
A67: 3.1 | B67: 0.5693 | C67: 0.6184583808 | D67: 0.3520883562 | G67: VCOMP5 | H67: =(a_4*(fsw*kHz)*b_4/ftyp) -> 1.548772312 | J67: VCOMP5 | K67: =(a_4*(fsw*kHz)*b_4/ftyp) -> 1.548772312
A68: 3.15 | B68: 0.58495 | C68: 0.6424739614 | D68: 0.3758151437
A69: 3.2 | B69: 0.6006 | C69: =IF(A69<=0.5,0,IF(A69<4.6,((fSW_target/65)*0.1223*(A69-0.5)^2),IF(A69<=5,((fSW_target/65)*2.056),"VCOMP MUST BE < 5"))) -> 0.6669469817 | D69: 0.4005683572 | G69: VCOMP = | H69: =IF(VCOMP1>=0.5,IF(VCOMP1<1,VCOMP1,IF(VCOMP2>=1,IF(VCOMP2<2,VCOMP2,IF(VCOMP3>=2,IF(VCOMP3<4.5,VCOMP3,IF(VCOMP4>=4.5,IF(VCOMP4<4.6,VCOMP4,VCOMP5)))))))) -> 2.559585974 | J69: VCOMP = | K69: =IF(VCOMP1>=0.5,IF(VCOMP1<1,VCOMP1,IF(VCOMP2>=1,IF(VCOMP2<2,VCOMP2,IF(VCOMP3>=2,IF(VCOMP3<4.5,VCOMP3,IF(VCOMP4>=4.5,IF(VCOMP4<4.6,VCOMP4,VCOMP5)))))))) -> 2.559585974
A70: 3.25 | B70: =IF(A70<1,(0.068),IF(A70<2,(0.156*A70-0.088),IF(A70<4.5,(0.313*A70-0.401),IF(A70<=5,1.007,"VCOMP MUST BE < 5")))) -> 0.61625 | C70: 0.6918774415 | D70: =B70*C70 -> 0.4263694733
A71: =A70+0.05 -> 3.3 | B71: 0.6319 | C71: 0.717265341 | D71: 0.453239969
A72: 3.35 | B72: 0.64755 | C72: 0.7431106802 | D72: 0.481201321
A73: 3.4 | B73: 0.6632 | C73: 0.769413459 | D73: 0.510275006
A74: 3.45 | B74: 0.67885 | C74: 0.7961736774 | D74: 0.5404825009
A75: 3.5 | B75: 0.6945 | C75: 0.8233913354 | D75: 0.5718452824
A76: 3.55 | B76: 0.71015 | C76: 0.851066433 | D76: 0.6043848274
A77: 3.6 | B77: 0.7258 | C77: 0.8791989703 | D77: 0.6381226127
A78: 3.65 | B78: 0.74145 | C78: 0.9077889473 | D78: 0.6730801149
A79: 3.7 | B79: 0.7571 | C79: 0.9368363638 | D79: 0.709278811
A80: 3.75 | B80: 0.77275 | C80: 0.96634122 | D80: 0.7467401778
A81: 3.8 | B81: 0.7884 | C81: 0.9963035158 | D81: 0.7854856919
A82: 3.85 | B82: 0.80405 | C82: 1.026723251 | D82: 0.8255368302
A83: 3.9 | B83: 0.8197 | C83: 1.057600426 | D83: 0.8669150695
A84: 3.95 | B84: 0.83535 | C84: 1.088935041 | D84: 0.9096418865
A85: 4 | B85: 0.851 | C85: 1.120727095 | D85: 0.9537387582
A86: 4.05 | B86: 0.86665 | C86: 1.152976589 | D86: 0.9992271612
A87: 4.1 | B87: 0.8823 | C87: 1.185683523 | D87: 1.046128572
A88: 4.15 | B88: 0.89795 | C88: 1.218847896 | D88: 1.094464468
A89: =A88+0.05 -> 4.2 | B89: 0.9136 | C89: 1.252469709 | D89: 1.144256326
A90: 4.25 | B90: 0.92925 | C90: 1.286548962 | D90: 1.195525623
A91: 4.3 | B91: 0.9449 | C91: 1.321085654 | D91: 1.248293834
A92: 4.35 | B92: 0.96055 | C92: 1.356079785 | D92: 1.302582438
A93: 4.4 | B93: 0.9762 | C93: 1.391531357 | D93: 1.358412911
A94: 4.45 | B94: 0.99185 | C94: 1.427440368 | D94: 1.415806729
A95: 4.5 | B95: 1.0075 | C95: 1.463806818 | D95: 1.47478537
A96: 4.55 | B96: 1.007 | C96: 1.500630709 | D96: 1.511135124
A97: 4.6 | B97: 1.007 | C97: 1.537912039 | D97: 1.548677423
A98: 4.65 | B98: 1.007 | C98: 1.538014523 | D98: 1.548780625
A99: 4.7 | B99: 1.007 | C99: 1.538014523 | D99: 1.548780625
A100: 4.75 | B100: 1.007 | C100: 1.538014523 | D100: 1.548780625
A101: 4.8 | B101: 1.007 | C101: 1.538014523 | D101: 1.548780625
A102: 4.85 | B102: 1.007 | C102: 1.538014523 | D102: 1.548780625
A103: 4.9 | B103: 1.007 | C103: 1.538014523 | D103: 1.548780625
A104: 4.95 | B104: 1.007 | C104: 1.538014523 | D104: 1.548780625
A105: 5 | B105: 1.007 | C105: 1.538014523 | D105: 1.548780625
A110: Data For Current Averaging Bode Plot | G110: Data For Open Loop Voltage Bode Plot | P110: Data for Closed Loop Voltage Bode Plot
A111: Log scale converter | G111: Log scale converter | O111: Total Open Loop Phase | P111: EA Gain | R111: Total Closed Voltage Loop Bode Plot
B112: frequency | C112: w | D112: Gain | F112: Phase | H112: frequency | I112: w | J112: Voltage Feedback Gain | K112: PWM to Power Stage Gain | M112: Total Open Loop Gain | Q112: dB | S112: dB | T112: Phase Margin
B113: Hz | C113: rad | E113: dB | F113: degrees | H113: Hz | I113: rad | J113: V/V | L113: dB | N113: dB | O113: degrees | W113: 1+sRVCOMPCVCOMP | X113: s(CVCOMP+CVCOMP_P) | Y113: 1+S(rvcompcvcompcvcomp_p/CVCOMP+CVCOMPP)
A114: 1 | B114: =10^A114 -> 10 | C114: =2*PI()*B114 -> 62.83185307 | D114: =IMDIV((K_1*2.5*Rsense*Vout_nom)/(K_FQ*M_1*(M_2/us)*Lbst*mH),IMPRODUCT((COMPLEX(0,C114*1)),COMPLEX(1,(C114/(2*PI()*fiavg*kHz))))) -> -1.03597507845172-1316.76828676073i | E114: =20*LOG(IMABS(D114)) -> 62.39018986 | F114: =IMARGUMENT(D114)*180/(PI()) -> -90.04507778 | G114: -2 | H114: =10^G114 -> 0.01 | I114: =2*PI()*H114 -> 0.06283185307 | J114: =(R_fb2*kOhms)/((R_fb1*MegOhm)+(R_fb2*kOhms)) -> 0.01344404903 | K114: =IMDIV(((M_3/us)*Vout_nom)/(M1M2/us),COMPLEX(1,(I114/(2*PI()*fPWM_PSpole)))) -> 652.056232890282-2.18202076560808i | L114: =20*LOG(IMABS(K114)) -> 56.28574965 | M114: =IMPRODUCT(J114,K114) -> 8.76627596610103-0.0293351941600136i | N114: =20*LOG(IMABS(M114)) -> 18.8563514 | O114: =180/PI()*IMARGUMENT(M114) -> -0.1917321049 | P114: =IMPRODUCT(gmv,IMDIV((COMPLEX(1,I114*(Rvcomp*kOhms)*(Cvcomp*uF))),IMPRODUCT((COMPLEX(0,data!I114*((Cvcomp*uF)+(Cvcomp_p*uF)))),(COMPLEX(1,I114*((Rvcomp*kOhms)*(Cvcomp*uF)*(Cvcomp_p*uF))/((Cvcomp*uF)+(Cvcomp_p*uF))))))) -> 0.20976022923656-76.30726136635i | Q114: =20*LOG(IMABS(P114)) -> 37.65135016 | R114: =IMPRODUCT((M114),(P114)) -> -0.399672271800484-668.936664711875i | S114: =20*LOG(IMABS(R114)) -> 56.50770156 | T114: =(180/PI()*IMARGUMENT(R114))+180 -> 89.96576726 | W114: =COMPLEX(1,I114*('DESIGN INPUTS AND CALCULATIONS'!C263*10^3)*('DESIGN INPUTS AND CALCULATIONS'!C261*10^-6)) -> 1+0.00321070769196877i | X114: =COMPLEX(0,data!I114*(('DESIGN INPUTS AND CALCULATIONS'!C261*10^-6)+('DESIGN INPUTS AND CALCULATIONS'!C267*10^-6))) -> 7.33876043878576E-07i | Y114: =COMPLEX(1,I114*(('DESIGN INPUTS AND CALCULATIONS'!C263*10^3)*('DESIGN INPUTS AND CALCULATIONS'!C261*10^-6)*('DESIGN INPUTS AND CALCULATIONS'!C267*10^-6))/(('DESIGN INPUTS AND CALCULATIONS'!C261*10^-6)+('DESIGN INPUTS AND CALCULATIONS'!C267*10^-6))) -> 1+0.0004618141200777i
A115: 1.1 | B115: =10^A115 -> 12.58925412 | C115: 79.1006165 | D115: -1.03597470338775-1045.94585008964i | E115: 60.39018828 | F115: =180/PI()*IMARGUMENT(D115) -> -90.05674955 | G115: -1.9 | H115: =10^G115 -> 0.01258925412 | I115: =2*PI()*H115 -> 0.0791006165 | J115: 0.01344404903 | K115: 652.051962165678-2.74698339905422i | L115: 56.2857212 | M115: 8.76621855027006-0.0369305795048807i | N115: 18.85632295 | O115: -0.2413758921 | P115: =IMPRODUCT(gmv,IMDIV((COMPLEX(1,I115*(Rvcomp*kOhms)*(Cvcomp*uF))),IMPRODUCT((COMPLEX(0,data!I115*((Cvcomp*uF)+(Cvcomp_p*uF)))),(COMPLEX(1,I115*((Rvcomp*kOhms)*(Cvcomp*uF)*(Cvcomp_p*uF))/((Cvcomp*uF)+(Cvcomp_p*uF))))))) -> 0.209760203070762-60.6130572234001i | Q115: 35.6513758 | R115: -0.399671545555332-531.355053186207i | S115: 54.50769876 | T115: 89.9569036
A116: 1.2 | B116: 15.84893192 | C116: 99.5817762 | D116: -1.03597410895197-830.823843997118i | E116: 58.39018579 | F116: -90.07144344 | G116: -1.8 | H116: 0.01584893192 | I116: 0.0995817762 | J116: 0.01344404903 | K116: 652.045193637921-3.45821130902876i | L116: 56.28567612 | M116: 8.76612755385102-0.046492362398963i | N116: 18.85627787 | O116: -0.3038731929 | P116: =IMPRODUCT(gmv,IMDIV((COMPLEX(1,I116*(Rvcomp*kOhms)*(Cvcomp*uF))),IMPRODUCT((COMPLEX(0,data!I116*((Cvcomp*uF)+(Cvcomp_p*uF)))),(COMPLEX(1,I116*((Rvcomp*kOhms)*(Cvcomp*uF)*(Cvcomp_p*uF))/((Cvcomp*uF)+(Cvcomp_p*uF))))))) -> 0.20976016160078-48.146719404209i | Q116: 33.65141645 | R116: -0.399670394552828-422.07003584222i | S116: 52.50769432 | T116: 89.94574498
A117: 1.3 | B117: 19.95262315 | C117: 125.3660286 | D117: -1.03597316683614-659.946237212802i | E117: 56.39018184 | F117: -90.08994193 | G117: -1.7 | H117: 0.01995262315 | I117: 0.1253660286 | J117: 0.01344404903 | K117: 652.034466532188-4.35355847265006i | L117: 56.28560467 | M117: 8.76598333811559-0.0585294535666673i | N117: 18.85620642 | O117: -0.3825515866 | P117: =IMPRODUCT(gmv,IMDIV((COMPLEX(1,I117*(Rvcomp*kOhms)*(Cvcomp*uF))),IMPRODUCT((COMPLEX(0,data!I117*((Cvcomp*uF)+(Cvcomp_p*uF)))),(COMPLEX(1,I117*((Rvcomp*kOhms)*(Cvcomp*uF)*(Cvcomp_p*uF))/((Cvcomp*uF)+(Cvcomp_p*uF))))))) -> 0.209760095875323-38.2443699611565i | Q117: 31.65148086 | R117: -0.399668570383345-335.261787000018i | S117: 50.50768728 | T117: 89.93169722
A118: 1.4 | B118: 25.11886432 | C118: 157.8264792 | D118: -1.03597167368671-524.213174067972i | E118: 54.39017558 | F118: -90.11323013 | G118: -1.6 | H118: 0.02511886432 | I118: 0.1578264792 | J118: 0.01344404903 | K118: 652.017465938305-5.48066249107778i | L118: 56.28549143 | M118: 8.76575478129786-0.0736822952537145i | N118: 18.85609319 | O118: -0.481599728 | P118: =IMPRODUCT(gmv,IMDIV((COMPLEX(1,I118*(Rvcomp*kOhms)*(Cvcomp*uF))),IMPRODUCT((COMPLEX(0,data!I118*((Cvcomp*uF)+(Cvcomp_p*uF)))),(COMPLEX(1,I118*((Rvcomp*kOhms)*(Cvcomp*uF)*(Cvcomp_p*uF))/((Cvcomp*uF)+(Cvcomp_p*uF))))))) -> 0.209759991707575-30.3786726772635i | Q118: 29.65158294 | R118: -0.399665679386404-266.307450867847i | S118: 48.50767613 | T118: 89.9140124
A119: 1.5 | B119: 31.6227766 | C119: 198.6917653 | D119: -1.03596930721314-416.396373998819i | E119: 52.39016566 | F119: -90.14254818 | G119: -1.5 | H119: 0.0316227766 | I119: 0.1986917653 | J119: 0.01344404903 | K119: 651.990523628652-6.89946017597837i | L119: 56.28531197 | M119: 8.76539256756588-0.0927566808949244i | N119: 18.85591373 | O119: -0.6062897846 | P119: =IMPRODUCT(gmv,IMDIV((COMPLEX(1,I119*(Rvcomp*kOhms)*(Cvcomp*uF))),IMPRODUCT((COMPLEX(0,data!I119*((Cvcomp*uF)+(Cvcomp_p*uF)))),(COMPLEX(1,I119*((Rvcomp*kOhms)*(Cvcomp*uF)*(Cvcomp_p*uF))/((Cvcomp*uF)+(Cvcomp_p*uF))))))) -> 0.209759826613034-24.1307504896798i | Q119: 27.65174473 | R119: -0.399661097758474-211.534957617328i | S119: 46.50765846 | T119: 89.89174902
A120: 1.6 | B120: 39.81071706 | C120: 250.1381125 | D120: -1.03596555662743-330.754199249231i | E120: 50.39014994 | F120: -90.17945731 | G120: -1.4 | H120: 0.03981071706 | I120: 0.2501381125 | J120: 0.01344404903 | K120: 651.94782750612-8.68533693969473i | L120: 56.28502756 | M120: 8.76481855880111-0.116766095670075i | N120: 18.85562932 | O120: -0.7632569549 | P120: =IMPRODUCT(gmv,IMDIV((COMPLEX(1,I120*(Rvcomp*kOhms)*(Cvcomp*uF))),IMPRODUCT((COMPLEX(0,data!I120*((Cvcomp*uF)+(Cvcomp_p*uF)))),(COMPLEX(1,I120*((Rvcomp*kOhms)*(Cvcomp*uF)*(Cvcomp_p*uF))/((Cvcomp*uF)+(Cvcomp_p*uF))))))) -> 0.209759564956352-19.167878758609i | Q120: 25.65200113 | R120: -0.399653837104656-168.027472281735i | S120: 44.50763045 | T120: 89.86372208
A121: 1.7 | B121: 50.11872336 | C121: 314.9052262 | D121: -1.0359596124053-262.725891725062i | E121: 48.39012502 | F121: -90.22592294 | G121: -1.3 | H121: 0.05011872336 | I121: 0.3149052262 | J121: 0.01344404903 | K121: 651.880170165541-10.9330566632665i | L121: 56.28457684 | M121: 8.76390897019704-0.146984549842254i | N121: 18.8551786 | O121: -0.9608503348 | P121: =IMPRODUCT(gmv,IMDIV((COMPLEX(1,I121*(Rvcomp*kOhms)*(Cvcomp*uF))),IMPRODUCT((COMPLEX(0,data!I121*((Cvcomp*uF)+(Cvcomp_p*uF)))),(COMPLEX(1,I121*((Rvcomp*kOhms)*(Cvcomp*uF)*(Cvcomp_p*uF))/((Cvcomp*uF)+(Cvcomp_p*uF))))))) -> 0.209759150259797-15.2257664668799i | Q121: 23.65240747 | R121: -0.399642331594885-133.46806267149i | S121: 42.50758607 | T121: 89.82844023
A122: 1.8 | B122: 63.09573445 | C122: 396.4421916 | D122: -1.03595019158785-208.688695998211i | E122: 46.39008553 | F122: -90.28441927 | G122: -1.2 | H122: 0.06309573445 | I122: 0.3964421916 | J122: 0.01344404903 | K122: 651.772969266991-13.7616394049411i | L122: 56.28386259 | M122: 8.76246775606075-0.18501215491024i | N122: 18.85446434 | O122: -1.209572589 | P122: =IMPRODUCT(gmv,IMDIV((COMPLEX(1,I122*(Rvcomp*kOhms)*(Cvcomp*uF))),IMPRODUCT((COMPLEX(0,data!I122*((Cvcomp*uF)+(Cvcomp_p*uF)))),(COMPLEX(1,I122*((Rvcomp*kOhms)*(Cvcomp*uF)*(Cvcomp_p*uF))/((Cvcomp*uF)+(Cvcomp_p*uF))))))) -> 0.209758493013407-12.0944817593978i | Q122: 21.6530514 | R122: -0.399624101238905-106.016314313791i | S122: 40.50751574 | T122: 89.78402696
A123: 1.9 | B123: 79.43282347 | C123: 499.0911493 | D123: -1.03593526094936-165.764934376606i | E123: 44.39002293 | F123: -90.35806092 | G123: -1.1 | H123: 0.07943282347 | I123: 0.4990911493 | J123: 0.01344404903 | K123: 651.603139496195-17.3203632835667i | L123: 56.28273082 | M123: 8.7601845562952-0.232855813223118i | N123: 18.85333257 | O123: -1.522629388 | P123: =IMPRODUCT(gmv,IMDIV((COMPLEX(1,I123*(Rvcomp*kOhms)*(Cvcomp*uF))),IMPRODUCT((COMPLEX(0,data!I123*((Cvcomp*uF)+(Cvcomp_p*uF)))),(COMPLEX(1,I123*((Rvcomp*kOhms)*(Cvcomp*uF)*(Cvcomp_p*uF))/((Cvcomp*uF)+(Cvcomp_p*uF))))))) -> 0.209757451356515-9.60727230605458i | Q123: 19.65407175 | R123: -0.399595219741095-84.2103217255371i | S123: 38.50740432 | T123: 89.72812183
A124: 2 | B124: 100 | C124: 628.3185307 | D124: -1.03591159836363-131.668760087496i | E124: 42.38992373 | F124: -90.45076856 | G124: -1 | H124: 0.1 | I124: 0.6283185307 | J124: 0.01344404903 | K124: 651.334158663771-21.7960443879901i | L124: 56.28093769 | M124: 8.75656836479563-0.29302708943917i | N124: 18.85153944 | O124: -1.916612999 | P124: =IMPRODUCT(gmv,IMDIV((COMPLEX(1,I124*(Rvcomp*kOhms)*(Cvcomp*uF))),IMPRODUCT((COMPLEX(0,data!I124*((Cvcomp*uF)+(Cvcomp_p*uF)))),(COMPLEX(1,I124*((Rvcomp*kOhms)*(Cvcomp*uF)*(Cvcomp_p*uF))/((Cvcomp*uF)+(Cvcomp_p*uF))))))) -> 0.20975580046279-7.63168513151565i | Q124: 17.65568838 | R124: -0.399549474939369-66.8888367244137i | S124: 36.50722782 | T124: 89.65775715
A125: 2.1 | B125: 125.8925412 | C125: 791.006165 | D125: -1.03587409790679-104.58442762916i | E125: 40.38976651 | F125: -90.56747715 | G125: -0.9 | H125: 0.1258925412 | I125: 0.791006165 | J125: 0.01344404903 | K125: 650.908307361658-27.4216537695908i | L125: 56.27809728 | M125: 8.75084319901-0.368658057796i | N125: 18.84869904 | O125: -2.412346737 | P125: =IMPRODUCT(gmv,IMDIV((COMPLEX(1,I125*(Rvcomp*kOhms)*(Cvcomp*uF))),IMPRODUCT((COMPLEX(0,data!I125*((Cvcomp*uF)+(Cvcomp_p*uF)))),(COMPLEX(1,I125*((Rvcomp*kOhms)*(Cvcomp*uF)*(Cvcomp_p*uF))/((Cvcomp*uF)+(Cvcomp_p*uF))))))) -> 0.209753184025794-6.06251301015483i | Q125: 15.65824928 | R125: -0.399477047783849-53.1294279452625i | S125: 34.50694832 | T125: 89.56920452
A126: 2.2 | B126: 158.4893192 | C126: 995.817762 | D126: -1.03581466924923-83.0695977571142i | E126: 38.38951735 | F126: -90.71439775 | G126: -0.8 | H126: 0.1584893192 | I126: 0.995817762 | J126: 0.01344404903 | K126: 650.23451800723-34.4860814194137i | L126: 56.27359934 | M126: 8.74178474189235-0.46363256949785i | N126: 18.8442011 | O126: -3.03591602 | P126: =IMPRODUCT(gmv,IMDIV((COMPLEX(1,I126*(Rvcomp*kOhms)*(Cvcomp*uF))),IMPRODUCT((COMPLEX(0,data!I126*((Cvcomp*uF)+(Cvcomp_p*uF)))),(COMPLEX(1,I126*((Rvcomp*kOhms)*(Cvcomp*uF)*(Cvcomp_p*uF))/((Cvcomp*uF)+(Cvcomp_p*uF))))))) -> 0.209749037386312-4.81619179538308i | Q126: 13.66230481 | R126: -0.399362442637651-42.19935843606i | S126: 32.50650591 | T126: 89.45778561
A127: 2.3 | B127: 199.5262315 | C127: 1253.660286 | D127: -1.03572049514094-65.978527770165i | E127: 36.38912248 | F127: -90.89934622 | G127: -0.7 | H127: 0.1995262315 | I127: 1.253660286 | J127: 0.01344404903 | K127: 649.169486566306-43.344293338627i | L127: 56.26648012 | M127: 8.72746640698076-0.582722804868847i | N127: 18.83708187 | O127: -3.819902971 | P127: =IMPRODUCT(gmv,IMDIV((COMPLEX(1,I127*(Rvcomp*kOhms)*(Cvcomp*uF))),IMPRODUCT((COMPLEX(0,data!I127*((Cvcomp*uF)+(Cvcomp_p*uF)))),(COMPLEX(1,I127*((Rvcomp*kOhms)*(Cvcomp*uF)*(Cvcomp_p*uF))/((Cvcomp*uF)+(Cvcomp_p*uF))))))) -> 0.209742465741452-3.82635031960205i | Q127: 11.66872433 | R127: -0.39918126677348-33.5165655936039i | S127: 30.5058062 | T127: 89.31764129
A128: 2.4 | B128: 251.1886432 | C128: 1578.264792 | D128: -1.03557127430985-52.4010567535798i | E128: 34.38849673 | F128: -91.13215543 | G128: -0.6 | H128: 0.2511886432 | I128: 1.578264792 | J128: 0.01344404903 | K128: 647.488653548413-54.4259465778949i | L128: 56.25522076 | M128: 8.70486920547488-0.731705094364737i | N128: 18.82582252 | O128: -4.804815681 | P128: =IMPRODUCT(gmv,IMDIV((COMPLEX(1,I128*(Rvcomp*kOhms)*(Cvcomp*uF))),IMPRODUCT((COMPLEX(0,data!I128*((Cvcomp*uF)+(Cvcomp_p*uF)))),(COMPLEX(1,I128*((Rvcomp*kOhms)*(Cvcomp*uF)*(Cvcomp_p*uF))/((Cvcomp*uF)+(Cvcomp_p*uF))))))) -> 0.209732051229718-3.04027587848552i | Q128: 9.678878354 | R128: -0.398895274411429-26.618665881113i | S128: 28.50470087 | T128: 89.14145565
A129: 2.5 | B129: 316.227766 | C129: 1986.917653 | D129: -1.03533486328664-41.6141366298631i | E129: 32.38750516 | F129: -91.42519076 | G129: -0.5 | H129: 0.316227766 | I129: 1.986917653 | J129: 0.01344404903 | K129: 644.842469148705-68.2381840599429i | L129: 56.23743546 | M129: 8.66929377265951-0.917397492304488i | N129: 18.80803722 | O129: -6.040643011 | P129: =IMPRODUCT(gmv,IMDIV((COMPLEX(1,I129*(Rvcomp*kOhms)*(Cvcomp*uF))),IMPRODUCT((COMPLEX(0,data!I129*((Cvcomp*uF)+(Cvcomp_p*uF)))),(COMPLEX(1,I129*((Rvcomp*kOhms)*(Cvcomp*uF)*(Cvcomp_p*uF))/((Cvcomp*uF)+(Cvcomp_p*uF))))))) -> 0.209715547459329-2.41610706926546i | Q129: 7.694920873 | R129: -0.398444876864238-21.1383344869981i | S129: 26.50295809 | T129: 88.92013694
A130: 2.6 | B130: 398.1071706 | C130: 2501.381125 | D130: -1.03496039809011-33.0433280850928i | E130: 30.3859341 | F130: -91.79399251 | G130: -0.4 | H130: 0.3981071706 | I130: 2.501381125 | J130: 0.01344404903 | K130: 640.692569169735-85.3539286921787i | L130: 56.20939601 | M130: 8.6135023138675-1.14750240234641i | N130: 18.77999776 | O130: -7.58833915 | P130: =IMPRODUCT(gmv,IMDIV((COMPLEX(1,I130*(Rvcomp*kOhms)*(Cvcomp*uF))),IMPRODUCT((COMPLEX(0,data!I130*((Cvcomp*uF)+(Cvcomp_p*uF)))),(COMPLEX(1,I130*((Rvcomp*kOhms)*(Cvcomp*uF)*(Cvcomp_p*uF))/((Cvcomp*uF)+(Cvcomp_p*uF))))))) -> 0.209689396065726-1.92060448251325i | Q130: 5.720220653 | R130: -0.397738159435628-16.7837502398842i | S130: 24.50021842 | T130: 88.64246947
A131: 2.7 | B131: 501.1872336 | C131: 3149.052262 | D131: -1.03436746529305-26.2322113175381i | E131: 28.38344529 | F131: -92.2580713 | G131: -0.3 | H131: 0.5011872336 | I131: 3.149052262 | J131: 0.01344404903 | K131: 634.223728068896-106.369303339976i | L131: 56.165324 | M131: 8.52653489693254-1.43003412952122i | N131: 18.73592575 | O131: -9.520795317 | P131: =IMPRODUCT(gmv,IMDIV((COMPLEX(1,I131*(Rvcomp*kOhms)*(Cvcomp*uF))),IMPRODUCT((COMPLEX(0,data!I131*((Cvcomp*uF)+(Cvcomp_p*uF)))),(COMPLEX(1,I131*((Rvcomp*kOhms)*(Cvcomp*uF)*(Cvcomp_p*uF))/((Cvcomp*uF)+(Cvcomp_p*uF))))))) -> 0.20964796225724-1.52738051087782i | Q131: 3.760005859 | R131: -0.396635593063687-13.3230669681068i | S131: 22.49593161 | T131: 88.29477437
A132: 2.8 | B132: 630.9573445 | C132: 3964.421916 | D132: -1.03342912052627-20.8180834677627i | E132: 26.37950373 | F132: -92.84188323 | G132: -0.2 | H132: 0.6309573445 | I132: 3.964421916 | J132: 0.01344404903 | K132: 624.234666734211-131.801912517498i | L132: 56.09637797 | M132: 8.392241466573-1.77195137429613i | N132: 18.66697973 | O132: -11.92241143 | P132: =IMPRODUCT(gmv,IMDIV((COMPLEX(1,I132*(Rvcomp*kOhms)*(Cvcomp*uF))),IMPRODUCT((COMPLEX(0,data!I132*((Cvcomp*uF)+(Cvcomp_p*uF)))),(COMPLEX(1,I132*((Rvcomp*kOhms)*(Cvcomp*uF)*(Cvcomp_p*uF))/((Cvcomp*uF)+(Cvcomp_p*uF))))))) -> 0.209582327626721-1.21549397033992i | Q132: 1.82229237 | R132: -0.394930710622625-10.5720885937225i | S132: 20.4892721 | T132: 87.86065487
A133: 2.9 | B133: 794.3282347 | C133: 4990.911493 | D133: -1.03194542661307-16.5126501984294i | E133: 24.37326408 | F133: -93.5760053 | G133: -0.1 | H133: 0.7943282347 | I133: 4.990911493 | J133: 0.01344404903 | K133: 609.03191357487-161.887709788485i | L133: 55.98929964 | M133: 8.18785490768901-2.17642630795116i | N133: 18.5599014 | O133: -14.88566499 | P133: =IMPRODUCT(gmv,IMDIV((COMPLEX(1,I133*(Rvcomp*kOhms)*(Cvcomp*uF))),IMPRODUCT((COMPLEX(0,data!I133*((Cvcomp*uF)+(Cvcomp_p*uF)))),(COMPLEX(1,I133*((Rvcomp*kOhms)*(Cvcomp*uF)*(Cvcomp_p*uF))/((Cvcomp*uF)+(Cvcomp_p*uF))))))) -> 0.209478387887642-0.968334622350206i | Q133: -0.08086185137 | R133: -0.392330300662328-8.38449766424118i | S133: 18.47903955 | T133: 87.3209503
A134: 3 | B134: 1000 | C134: 6283.185307 | D134: -1.02960263712829-13.0866864342135i | E134: 22.36339324 | F134: -94.49851222 | G134: 0 | H134: 1 | I134: 6.283185307 | J134: 0.01344404903 | K134: 586.397639314965-196.23028833222i | L134: 55.82482127 | M134: 7.88355861475237-2.63812961775226i | N134: 18.39542303 | O134: -18.50214251 | P134: =IMPRODUCT(gmv,IMDIV((COMPLEX(1,I134*(Rvcomp*kOhms)*(Cvcomp*uF))),IMPRODUCT((COMPLEX(0,data!I134*((Cvcomp*uF)+(Cvcomp_p*uF)))),(COMPLEX(1,I134*((Rvcomp*kOhms)*(Cvcomp*uF)*(Cvcomp_p*uF))/((Cvcomp*uF)+(Cvcomp_p*uF))))))) -> 0.209313865516114-0.772738054823482i | Q134: -1.931850662 | R134: -0.388445021517418-6.64412285707492i | S134: 16.46357236 | T134: 86.65404228
A135: 3.1 | B135: 1258.925412 | C135: 7910.06165 | D135: -1.02591127765911-10.3578556495514i | E135: 20.34779481 | F135: -95.65650799 | G135: 0.1 | H135: 1.258925412 | I135: 7.91006165 | J135: 0.01344404903 | K135: 553.77920103583-233.297706356784i | L135: 55.57626554 | M135: 7.44503473120528-3.13646580313588i | N135: 18.1468673 | O135: -22.84485977 | P135: =IMPRODUCT(gmv,IMDIV((COMPLEX(1,I135*(Rvcomp*kOhms)*(Cvcomp*uF))),IMPRODUCT((COMPLEX(0,data!I135*((Cvcomp*uF)+(Cvcomp_p*uF)))),(COMPLEX(1,I135*((Rvcomp*kOhms)*(Cvcomp*uF)*(Cvcomp_p*uF))/((Cvcomp*uF)+(Cvcomp_p*uF))))))) -> 0.209053643834019-0.618283512710478i | Q135: -3.706129031 | R135: -0.382813455229852-5.25883183076746i | S135: 14.44073827 | T135: 85.83653242
A136: 3.2 | B136: 1584.893192 | C136: 9958.17762 | D136: -1.02011477909442-8.1810508077552i | E136: 18.32318717 | F136: -97.1076621 | G136: 0.2 | H136: 1.584893192 | I136: 9.95817762 | J136: 0.01344404903 | K136: 508.913455940759-269.909246448419i | L136: 55.20933848 | M136: 6.84185745432414-3.62867314323694i | N136: 17.77994023 | O136: -27.93985791 | P136: =IMPRODUCT(gmv,IMDIV((COMPLEX(1,I136*(Rvcomp*kOhms)*(Cvcomp*uF))),IMPRODUCT((COMPLEX(0,data!I136*((Cvcomp*uF)+(Cvcomp_p*uF)))),(COMPLEX(1,I136*((Rvcomp*kOhms)*(Cvcomp*uF)*(Cvcomp_p*uF))/((Cvcomp*uF)+(Cvcomp_p*uF))))))) -> 0.208642543008246-0.496736750095686i | Q136: -5.371842177 | R136: -0.374992766160902-4.1556976288296i | S136: 12.40809806 | T136: 84.84383303
A137: 3.3 | B137: 1995.262315 | C137: 12536.60286 | D137: -1.01106092988506-6.44076388878181i | E137: 16.28447006 | F137: -98.92139528 | G137: 0.3 | H137: 1.995262315 | I137: 12.53660286 | J137: 0.01344404903 | K137: 451.002918380606-301.129415282047i | L137: 54.68469266 | M137: 6.06330534794012-4.04839862379975i | N137: 17.25529441 | O137: -33.73057666 | P137: =IMPRODUCT(gmv,IMDIV((COMPLEX(1,I137*(Rvcomp*kOhms)*(Cvcomp*uF))),IMPRODUCT((COMPLEX(0,data!I137*((Cvcomp*uF)+(Cvcomp_p*uF)))),(COMPLEX(1,I137*((Rvcomp*kOhms)*(Cvcomp*uF)*(Cvcomp_p*uF))/((Cvcomp*uF)+(Cvcomp_p*uF))))))) -> 0.207994293751066-0.401607199455188i | Q137: -6.892005822 | R137: -0.364733119940588-3.27711089280791i | S137: 10.36328859 | T137: 83.64927892
A138: 3.4 | B138: 2511.886432 | C138: 15782.64792 | D138: -0.997036179656418-5.04511381607867i | E138: 14.22380595 | F138: -101.1789807 | G138: 0.4 | H138: 2.511886432 | I138: 15.78264792 | J138: 0.01344404903 | K138: 382.092864465912-321.17575675265i | L138: 53.96458841 | M138: 5.13687520436574-4.31790262142747i | N138: 16.53519017 | O138: -40.04939804 | P138: =IMPRODUCT(gmv,IMDIV((COMPLEX(1,I138*(Rvcomp*kOhms)*(Cvcomp*uF))),IMPRODUCT((COMPLEX(0,data!I138*((Cvcomp*uF)+(Cvcomp_p*uF)))),(COMPLEX(1,I138*((Rvcomp*kOhms)*(Cvcomp*uF)*(Cvcomp_p*uF))/((Cvcomp*uF)+(Cvcomp_p*uF))))))) -> 0.206975098810788-0.327793914583348i | Q138: -8.230770186 | R138: -0.352176950065125-2.57753475369049i | S138: 8.30441998 | T138: 82.21966882
A139: 3.5 | B139: 3162.27766 | C139: 19869.17653 | D139: -0.975588298733152-3.92126897273593i | E139: 12.1293626 | F139: -103.9711924 | G139: 0.5 | H139: 3.16227766 | I139: 19.86917653 | J139: 0.01344404903 | K139: 307.603466681946-325.510539103135i | L139: 53.0228114 | M139: 4.13543608825074-4.37617964788713i | N139: 15.59341315 | O139: -46.62012876 | P139: =IMPRODUCT(gmv,IMDIV((COMPLEX(1,I139*(Rvcomp*kOhms)*(Cvcomp*uF))),IMPRODUCT((COMPLEX(0,data!I139*((Cvcomp*uF)+(Cvcomp_p*uF)))),(COMPLEX(1,I139*((Rvcomp*kOhms)*(Cvcomp*uF)*(Cvcomp_p*uF))/((Cvcomp*uF)+(Cvcomp_p*uF))))))) -> 0.205380086020511-0.271297830508187i | Q139: -9.363533542 | R139: -0.337911824848598-2.02071499147196i | S139: 6.229879607 | T139: 80.50661684
A140: 3.6 | B140: 3981.071706 | C140: 25013.81125 | D140: -0.94342354843773-3.01208180445918i | E140: 9.983763898 | F140: -107.3912409 | G140: 0.6 | H140: 3.981071706 | I140: 25.01381125 | J140: 0.01344404903 | K140: 234.995396950376-313.064039126992i | L140: 51.85349269 | M140: 3.159289638716-4.20884829194057i | N140: 14.42409445 | O140: -53.10699161 | P140: =IMPRODUCT(gmv,IMDIV((COMPLEX(1,I140*(Rvcomp*kOhms)*(Cvcomp*uF))),IMPRODUCT((COMPLEX(0,data!I140*((Cvcomp*uF)+(Cvcomp_p*uF)))),(COMPLEX(1,I140*((Rvcomp*kOhms)*(Cvcomp*uF)*(Cvcomp_p*uF))/((Cvcomp*uF)+(Cvcomp_p*uF))))))) -> 0.202901909682544-0.228978754142671i | Q140: -10.28722041 | R140: -0.32271093732831-1.57739356144789i | S140: 4.136874037 | T140: 78.43769876
A141: 3.7 | B141: 5011.872336 | C141: 31490.52262 | D141: -0.896574580998489-2.27376968629059i | E141: 7.762560994 | F141: -111.5199107 | G141: 0.7 | H141: 5.011872336 | I141: 31.49052262 | J141: 0.01344404903 | K141: 171.017043396118-286.822503798399i | L141: 50.47329308 | M141: 2.2991615165947-3.85605580432801i | N141: 13.04389483 | O141: -59.19461843 | P141: =IMPRODUCT(gmv,IMDIV((COMPLEX(1,I141*(Rvcomp*kOhms)*(Cvcomp*uF))),IMPRODUCT((COMPLEX(0,data!I141*((Cvcomp*uF)+(Cvcomp_p*uF)))),(COMPLEX(1,I141*((Rvcomp*kOhms)*(Cvcomp*uF)*(Cvcomp_p*uF))/((Cvcomp*uF)+(Cvcomp_p*uF))))))) -> 0.199094469656812-0.198334288104947i | Q141: -11.02509828 | R141: -0.307037740042571-1.22372194796186i | S141: 2.01879655 | T141: 75.91497389
A142: 3.8 | B142: 6309.573445 | C142: 39644.21916 | D142: -0.831159527821745-1.67434302764836i | E142: 5.433540652 | F142: -116.4002315 | G142: 0.8 | H142: 6.309573445 | I142: 39.64421916 | J142: 0.01344404903 | K142: 119.467611365692-252.245837999892i | L142: 48.91540094 | M142: 1.6061284248452-3.39120541399616i | N142: 11.4860027 | O142: -64.65702603 | P142: =IMPRODUCT(gmv,IMDIV((COMPLEX(1,I142*(Rvcomp*kOhms)*(Cvcomp*uF))),IMPRODUCT((COMPLEX(0,data!I142*((Cvcomp*uF)+(Cvcomp_p*uF)))),(COMPLEX(1,I142*((Rvcomp*kOhms)*(Cvcomp*uF)*(Cvcomp_p*uF))/((Cvcomp*uF)+(Cvcomp_p*uF))))))) -> 0.193344330201972-0.177276345299141i | Q142: -11.62355179 | R142: -0.290644677431856-0.940398916584012i | S142: -0.1375490916 | T142: 72.8254355
A143: 3.9 | B143: 7943.282347 | C143: 49909.11493 | D143: -0.745009915086631-1.19212584356942i | E143: 2.958317302 | F143: -122.0030075 | G143: 0.9 | H143: 7.943282347 | I143: 49.90911493 | J143: 0.01344404903 | K143: 80.8452394033202-214.895974456951i | L143: 47.21944365 | M143: 1.08688736248038-2.88907201721483i | N143: 9.790045407 | O143: -69.3833794 | P143: =IMPRODUCT(gmv,IMDIV((COMPLEX(1,I143*(Rvcomp*kOhms)*(Cvcomp*uF))),IMPRODUCT((COMPLEX(0,data!I143*((Cvcomp*uF)+(Cvcomp_p*uF)))),(COMPLEX(1,I143*((Rvcomp*kOhms)*(Cvcomp*uF)*(Cvcomp_p*uF))/((Cvcomp*uF)+(Cvcomp_p*uF))))))) -> 0.184881555719696-0.163885498367335i | Q143: -12.14387992 | R143: -0.272531580892924-0.712261206198173i | S143: -2.353834515 | T143: 69.06171482
A144: 4 | B144: 10000 | C144: 62831.85307 | D144: -0.639892232016167-0.81333018099498i | E144: 0.2977651557 | F144: -128.1941042 | G144: 1 | H144: 10 | I144: 62.83185307 | J144: 0.01344404903 | K144: 53.455781165302-178.882769094114i | L144: 45.42284594 | M144: 0.718662142989428-2.40490871854482i | N144: 7.993447697 | O144: -73.36220499 | P144: =IMPRODUCT(gmv,IMDIV((COMPLEX(1,I144*(Rvcomp*kOhms)*(Cvcomp*uF))),IMPRODUCT((COMPLEX(0,data!I144*((Cvcomp*uF)+(Cvcomp_p*uF)))),(COMPLEX(1,I144*((Rvcomp*kOhms)*(Cvcomp*uF)*(Cvcomp_p*uF))/((Cvcomp*uF)+(Cvcomp_p*uF))))))) -> 0.172888045965023-0.156149305315404i | Q144: -12.65417116 | R144: -0.251276732137254-0.52799856345774i | S144: -4.660723463 | T144: 64.55002713
A145: 4.1 | B145: 12589.25412 | C145: 79100.6165 | D145: -0.522949446363773-0.527982779349913i | E145: -2.57870615 | F145: -134.7255898 | G145: 1.1 | H145: 12.58925412 | I145: 79.1006165 | J145: 0.01344404903 | K145: 34.7805653965098-146.524573649939i | L145: 43.55626552 | M145: 0.467591626524844-1.96988355243096i | N145: 6.126867269 | O145: -76.64682238 | P145: =IMPRODUCT(gmv,IMDIV((COMPLEX(1,I145*(Rvcomp*kOhms)*(Cvcomp*uF))),IMPRODUCT((COMPLEX(0,data!I145*((Cvcomp*uF)+(Cvcomp_p*uF)))),(COMPLEX(1,I145*((Rvcomp*kOhms)*(Cvcomp*uF)*(Cvcomp_p*uF))/((Cvcomp*uF)+(Cvcomp_p*uF))))))) -> 0.156769889814082-0.151757308030593i | Q145: -13.22328465 | R145: -0.225639937282377-0.379778873960231i | S145: -7.096417385 | T145: 59.28396919
A146: 4.2 | B146: 15848.93192 | C146: =2*PI()*B146 -> 99581.7762 | D146: =IMDIV((K_1*2.5*Rsense*Vout_nom)/(K_FQ*M_1*(M_2/us)*Lbst*mH),IMPRODUCT((COMPLEX(0,C146*1)),COMPLEX(1,(C146/(2*PI()*fiavg*kHz))))) -> -0.405498640859204-0.325199188496195i | E146: =20*LOG(IMABS(D146)) -> -5.683409196 | F146: =180/PI()*IMARGUMENT(D146) -> -141.2713089 | G146: 1.2 | H146: 15.84893192 | I146: 99.5817762 | J146: =(R_fb2*kOhms)/((R_fb1*MegOhm)+(R_fb2*kOhms)) -> 0.01344404903 | K146: =IMDIV(((M_3/us)*Vout_nom)/(M1M2/us),COMPLEX(1,(I146/(2*PI()*fPWM_PSpole)))) -> 22.3857034481101-118.725655184887i | L146: =20*LOG(IMABS(K146)) -> 41.6426066 | M146: =IMPRODUCT(J146,K146) -> 0.300954494755137-1.59615352957143i | N146: =20*LOG(IMABS(M146)) -> 4.213208355 | O146: =180/PI()*IMARGUMENT(M146) -> -79.32224719 | P146: =IMPRODUCT(gmv,IMDIV((COMPLEX(1,I146*(Rvcomp*kOhms)*(Cvcomp*uF))),IMPRODUCT((COMPLEX(0,data!I146*((Cvcomp*uF)+(Cvcomp_p*uF)))),(COMPLEX(1,I146*((Rvcomp*kOhms)*(Cvcomp*uF)*(Cvcomp_p*uF))/((Cvcomp*uF)+(Cvcomp_p*uF))))))) -> 0.136587955131379-0.148118849047889i | Q146: =20*LOG(IMABS(P146)) -> -13.91522502 | R146: =IMPRODUCT((M146),(P146)) -> -0.195313664677644-0.262592380058815i | S146: =20*LOG(IMABS(R146)) -> -9.702016663 | T146: =(180/PI()*IMARGUMENT(R146))+180 -> 53.3584873
A147: 4.3 | B147: 19952.62315 | C147: 125366.0286 | D147: -0.299050003960682-0.190503896404047i | E147: -9.0058651 | F147: -147.501631 | G147: 1.3 | H147: 19.95262315 | I147: 125.3660286 | J147: 0.01344404903 | K147: 14.3056688061291-95.5172906258849i | L147: 39.6979808 | M147: 0.192326112854246-1.28413913850537i | N147: 2.268582557 | O147: -81.48209695 | P147: =IMPRODUCT(gmv,IMDIV((COMPLEX(1,I147*(Rvcomp*kOhms)*(Cvcomp*uF))),IMPRODUCT((COMPLEX(0,data!I147*((Cvcomp*uF)+(Cvcomp_p*uF)))),(COMPLEX(1,I147*((Rvcomp*kOhms)*(Cvcomp*uF)*(Cvcomp_p*uF))/((Cvcomp*uF)+(Cvcomp_p*uF))))))) -> 0.113442048209741-0.14277425278451i | Q147: -14.7816152 | R147: -0.161524137805045-0.173134591112056i | S147: -12.51303264 | T147: 46.98698916
A148: 4.4 | B148: 25118.86432 | C148: 157826.4792 | D148: -0.211185309075724-0.106862112159053i | E148: -12.51666619 | F148: -153.160083 | G148: 1.4 | H148: 25.11886432 | I148: 157.8264792 | J148: 0.01344404903 | K148: 9.09994407381844-76.491389819612i | L148: 37.73328637 | M148: 0.122340094309935-1.02835399520237i | N148: 0.3038881254 | O148: -83.21558529 | P148: =IMPRODUCT(gmv,IMDIV((COMPLEX(1,I148*(Rvcomp*kOhms)*(Cvcomp*uF))),IMPRODUCT((COMPLEX(0,data!I148*((Cvcomp*uF)+(Cvcomp_p*uF)))),(COMPLEX(1,I148*((Rvcomp*kOhms)*(Cvcomp*uF)*(Cvcomp_p*uF))/((Cvcomp*uF)+(Cvcomp_p*uF))))))) -> 0.0894249512585318-0.13411357464074i | Q148: -15.85306147 | R148: -0.126975973322046-0.108367973267279i | S148: -15.54917334 | T148: 40.47918511
A149: 4.5 | B149: 31622.7766 | C149: 198691.7653 | D149: -0.14408870595998-0.0579148573979653i | E149: -16.17700381 | F149: -158.1028862 | G149: 1.5 | H149: 31.6227766 | I149: 198.6917653 | J149: 0.01344404903 | K149: 5.77140050231041-61.073813931676i | L149: 35.75571127 | M149: 0.0775909913319705-0.821079349022134i | N149: -1.673686978 | O149: -84.60165015 | P149: =IMPRODUCT(gmv,IMDIV((COMPLEX(1,I149*(Rvcomp*kOhms)*(Cvcomp*uF))),IMPRODUCT((COMPLEX(0,data!I149*((Cvcomp*uF)+(Cvcomp_p*uF)))),(COMPLEX(1,I149*((Rvcomp*kOhms)*(Cvcomp*uF)*(Cvcomp_p*uF))/((Cvcomp*uF)+(Cvcomp_p*uF))))))) -> 0.0669578147693538-0.121914597333599i | Q149: -17.13397188 | R149: -0.0949062349895904-0.0644371534277176i | S149: -18.80765886 | T149: 34.17477735
A150: 4.6 | B150: 39810.71706 | C150: 250138.1125 | D150: -0.0958327605329252-0.0305966619924126i | E150: -19.94816324 | F150: -162.2932031 | G150: 1.6 | H150: 39.81071706 | I150: 250.1381125 | J150: 0.01344404903 | K150: 3.65344109360673-48.6716352881832i | L150: 33.76992023 | M150: 0.0491170411951872-0.654343851244849i | N150: -3.659478013 | O150: -85.70725475 | P150: =IMPRODUCT(gmv,IMDIV((COMPLEX(1,I150*(Rvcomp*kOhms)*(Cvcomp*uF))),IMPRODUCT((COMPLEX(0,data!I150*((Cvcomp*uF)+(Cvcomp_p*uF)))),(COMPLEX(1,I150*((Rvcomp*kOhms)*(Cvcomp*uF)*(Cvcomp_p*uF))/((Cvcomp*uF)+(Cvcomp_p*uF))))))) -> 0.0478889660902661-0.107212081669435i | Q150: -18.60505544 | R150: -0.0678014020993049-0.0366017907356181i | S150: -22.26453345 | T150: 28.36187084
A151: 4.7 | B151: 50118.72336 | C151: 314905.2262 | D151: -0.0626035587286973-0.0158766573476461i | E151: -23.79731301 | F151: -165.7694505 | G151: 1.7 | H151: 50.11872336 | I151: 314.9052262 | J151: 0.01344404903 | K151: 2.30994177081201-38.7413598771084i | L151: 31.77890946 | M151: 0.0310549704261005-0.520840741724666i | N151: -5.650488784 | O151: -86.58779637 | P151: =IMPRODUCT(gmv,IMDIV((COMPLEX(1,I151*(Rvcomp*kOhms)*(Cvcomp*uF))),IMPRODUCT((COMPLEX(0,data!I151*((Cvcomp*uF)+(Cvcomp_p*uF)))),(COMPLEX(1,I151*((Rvcomp*kOhms)*(Cvcomp*uF)*(Cvcomp_p*uF))/((Cvcomp*uF)+(Cvcomp_p*uF))))))) -> 0.0329959221446715-0.0915961051804338i | Q151: -20.23256841 | R151: -0.046682295974883-0.0200301349012444i | S151: -25.88305719 | T151: 23.22288762
A152: 4.8 | B152: 63095.73445 | C152: 396442.1916 | D152: -0.0404011650237929-0.00813867936324325i | E152: -27.69936434 | F152: -168.6103907 | G152: 1.8 | H152: 63.09573445 | I152: 396.4421916 | J152: 0.01344404903 | K152: 1.45938263110787-30.8136398257315i | L152: 29.78459087 | M152: 0.0196200116479507-0.41426008464803i | N152: -7.644807375 | O152: -87.28840769 | P152: =IMPRODUCT(gmv,IMDIV((COMPLEX(1,I152*(Rvcomp*kOhms)*(Cvcomp*uF))),IMPRODUCT((COMPLEX(0,data!I152*((Cvcomp*uF)+(Cvcomp_p*uF)))),(COMPLEX(1,I152*((Rvcomp*kOhms)*(Cvcomp*uF)*(Cvcomp_p*uF))/((Cvcomp*uF)+(Cvcomp_p*uF))))))) -> 0.02210207867633-0.0764960149031775i | Q152: -21.97901003 | R152: -0.0312556025679538-0.010656861686776i | S152: -29.6238174 | T152: 18.8272434
A153: 4.9 | B153: 79432.82347 | C153: 499091.1493 | D153: -0.025863641086875-0.00413856437667438i | E153: -31.63640658 | F153: -170.9088984 | G153: 1.9 | H153: 79.43282347 | I153: 499.0911493 | J153: 0.01344404903 | K153: 0.921569363345258-24.4963770071559i | L153: 27.78817943 | M153: 0.0123896237065001-0.329330493571885i | N153: -9.641218821 | O153: -87.84551219 | P153: =IMPRODUCT(gmv,IMDIV((COMPLEX(1,I153*(Rvcomp*kOhms)*(Cvcomp*uF))),IMPRODUCT((COMPLEX(0,data!I153*((Cvcomp*uF)+(Cvcomp_p*uF)))),(COMPLEX(1,I153*((Rvcomp*kOhms)*(Cvcomp*uF)*(Cvcomp_p*uF))/((Cvcomp*uF)+(Cvcomp_p*uF))))))) -> 0.0145096835554594-0.0628326644702182i | Q153: -23.81065943 | R153: -0.0205129428830611-0.00555695431615409i | S153: -33.45187825 | T153: 15.1576217
A154: 5 | B154: 100000 | C154: 628318.5307 | D154: -0.0164706034130126-0.00209348358750878i | E154: -35.59620812 | F154: -172.7563051 | G154: 2 | H154: 100 | I154: 628.3185307 | J154: 0.01344404903 | K154: 0.581774395774101-19.468318044462i | L154: 25.79044518 | M154: 0.00782140350190564-0.261733022345475i | N154: -11.63895307 | O154: -88.28833182 | P154: =IMPRODUCT(gmv,IMDIV((COMPLEX(1,I154*(Rvcomp*kOhms)*(Cvcomp*uF))),IMPRODUCT((COMPLEX(0,data!I154*((Cvcomp*uF)+(Cvcomp_p*uF)))),(COMPLEX(1,I154*((Rvcomp*kOhms)*(Cvcomp*uF)*(Cvcomp_p*uF))/((Cvcomp*uF)+(Cvcomp_p*uF))))))) -> 0.00939481930136736-0.051017318539111i | Q154: -25.70081554 | R154: -0.0132794363006199-0.00285796148401612i | S154: -37.33976861 | T154: 12.14576779
A155: 5.1 | B155: 125892.5412 | C155: 791006.165 | D155: -0.0104535822410823-0.00105541968620236i | E155: -39.57065182 | F155: -174.2348115 | G155: 2.1 | H155: 125.8925412 | I155: 791.006165 | J155: 0.01344404903 | K155: 0.36719573134618-15.4693281630711i | L155: 23.79187538 | M155: 0.00493659741627919-0.207970406304633i | N155: -13.63752287 | O155: -88.64022436 | P155: =IMPRODUCT(gmv,IMDIV((COMPLEX(1,I155*(Rvcomp*kOhms)*(Cvcomp*uF))),IMPRODUCT((COMPLEX(0,data!I155*((Cvcomp*uF)+(Cvcomp_p*uF)))),(COMPLEX(1,I155*((Rvcomp*kOhms)*(Cvcomp*uF)*(Cvcomp_p*uF))/((Cvcomp*uF)+(Cvcomp_p*uF))))))) -> 0.00602735528737418-0.0411037061816203i | Q155: -27.62998545 | R155: -0.00851859984867918-0.00145642397779327i | S155: -41.26750832 | T155: 9.702045707
A156: 5.2 | B156: 158489.3192 | C156: 995817.762 | D156: -0.00662041793168079-0.000530940013590772i | E156: -43.55444916 | F156: -175.4148432 | G156: 2.2 | H156: 158.4893192 | I156: 995.817762 | J156: 0.01344404903 | K156: 0.231733001967371-12.2902782797561i | L156: 21.79277802 | M156: 0.00311542984060522-0.165231103800596i | N156: -15.63662023 | O156: -88.91981698 | P156: =IMPRODUCT(gmv,IMDIV((COMPLEX(1,I156*(Rvcomp*kOhms)*(Cvcomp*uF))),IMPRODUCT((COMPLEX(0,data!I156*((Cvcomp*uF)+(Cvcomp_p*uF)))),(COMPLEX(1,I156*((Rvcomp*kOhms)*(Cvcomp*uF)*(Cvcomp_p*uF))/((Cvcomp*uF)+(Cvcomp_p*uF))))))) -> 0.0038437643393034-0.0329481692832848i | Q156: -29.58466633 | R156: -0.00543208740076312-0.000737757134310927i | S156: -45.22128656 | T156: 7.734284254
A157: 5.3 | B157: 199526.2315 | C157: 1253660.286 | D157: -0.00418707600228474-0.000266729403916007i | E157: -47.54419478 | F157: -176.3550108 | G157: 2.3 | H157: 199.5262315 | I157: 1253.660286 | J157: 0.01344404903 | K157: 0.146232818259676-9.7637955904357i | L157: 19.79334764 | M157: 0.00196596117865914-0.131264946648799i | N157: -17.63605061 | O157: -89.14194261 | P157: =IMPRODUCT(gmv,IMDIV((COMPLEX(1,I157*(Rvcomp*kOhms)*(Cvcomp*uF))),IMPRODUCT((COMPLEX(0,data!I157*((Cvcomp*uF)+(Cvcomp_p*uF)))),(COMPLEX(1,I157*((Rvcomp*kOhms)*(Cvcomp*uF)*(Cvcomp_p*uF))/((Cvcomp*uF)+(Cvcomp_p*uF))))))) -> 0.00244176387500812-0.0263238142949249i | Q157: -31.55581598 | R157: -0.00345059366603049-0.00037226960175996i | S157: -49.19186659 | T157: 6.157577135
A158: 5.4 | B158: 251188.6432 | C158: 1578264.792 | D158: -0.00264581271765571-0.000133881062382324i | E158: -51.53771223 | F158: -177.1032406 | G158: 2.4 | H158: 251.1886432 | I158: 1578.264792 | J158: 0.01344404903 | K158: 0.092274307500459-7.75630044327368i | L158: 17.79370708 | M158: 0.00124054031435967-0.104276083460381i | N158: -19.63569116 | O158: -89.31840199 | P158: =IMPRODUCT(gmv,IMDIV((COMPLEX(1,I158*(Rvcomp*kOhms)*(Cvcomp*uF))),IMPRODUCT((COMPLEX(0,data!I158*((Cvcomp*uF)+(Cvcomp_p*uF)))),(COMPLEX(1,I158*((Rvcomp*kOhms)*(Cvcomp*uF)*(Cvcomp_p*uF))/((Cvcomp*uF)+(Cvcomp_p*uF))))))) -> 0.00154729592222811-0.020986856609688i | Q158: -33.53750927 | R158: -0.00218650772843311-0.000187381000420169i | S158: -53.17320043 | T158: 4.898209366
A159: 5.5 | B159: 316227.766 | C159: 1986917.653 | D159: -0.00167096987258336-0.000067162780900982i | E159: -55.53361703 | F159: -177.6982987 | G159: 2.5 | H159: 316.227766 | I159: 1986.917653 | J159: 0.01344404903 | K159: 0.0582241927056773-6.16137020850493i | L159: 15.7939339 | M159: 0.000782768901539352-0.0828337631827469i | N159: -21.63546435 | O159: -89.45857803 | P159: =IMPRODUCT(gmv,IMDIV((COMPLEX(1,I159*(Rvcomp*kOhms)*(Cvcomp*uF))),IMPRODUCT((COMPLEX(0,data!I159*((Cvcomp*uF)+(Cvcomp_p*uF)))),(COMPLEX(1,I159*((Rvcomp*kOhms)*(Cvcomp*uF)*(Cvcomp_p*uF))/((Cvcomp*uF)+(Cvcomp_p*uF))))))) -> 0.000978942644849406-0.0167093708212089i | Q159: -35.52591698 | R159: -0.00138333377967794-0.000094169079056079i | S159: -57.16138133 | T159: 3.894345388
A160: 5.6 | B160: 398107.1706 | C160: 2501381.125 | D160: -0.00105493866026242-0.0000336811769078575i | E160: -59.53103114 | F160: -178.1713307 | G160: 2.6 | H160: 398.1071706 | I160: 2501.381125 | J160: 0.01344404903 | K160: 0.0367381926342753-4.89431160166104i | L160: 13.79407701 | M160: 0.000493910063094249-0.0657993651468861i | N160: -23.63532124 | O160: -89.56992852 | P160: =IMPRODUCT(gmv,IMDIV((COMPLEX(1,I160*(Rvcomp*kOhms)*(Cvcomp*uF))),IMPRODUCT((COMPLEX(0,data!I160*((Cvcomp*uF)+(Cvcomp_p*uF)))),(COMPLEX(1,I160*((Rvcomp*kOhms)*(Cvcomp*uF)*(Cvcomp_p*uF))/((Cvcomp*uF)+(Cvcomp_p*uF))))))) -> 0.000618736706167759-0.0132923172483264i | Q160: -37.51858611 | R160: -0.000874320435985299-0.0000472776917097036i | S160: -61.15390735 | T160: 3.09517719
A161: 5.7 | B161: 501187.2336 | C161: 3149052.262 | D161: -0.000665871528703846-0.0000168869219473592i | E161: -63.52939877 | F161: -178.5472543 | G161: 2.7 | H161: 501.1872336 | I161: 3149.052262 | J161: 0.01344404903 | K161: 0.0231807144480095-3.88777073078831i | L161: 11.79416731 | M161: 0.000311642661618158-0.0522673803269285i | N161: -25.63523094 | O161: -89.65837971 | P161: =IMPRODUCT(gmv,IMDIV((COMPLEX(1,I161*(Rvcomp*kOhms)*(Cvcomp*uF))),IMPRODUCT((COMPLEX(0,data!I161*((Cvcomp*uF)+(Cvcomp_p*uF)))),(COMPLEX(1,I161*((Rvcomp*kOhms)*(Cvcomp*uF)*(Cvcomp_p*uF))/((Cvcomp*uF)+(Cvcomp_p*uF))))))) -> 0.000390821908848058-0.0105683099264845i | Q161: -39.513954 | R161: -0.000552256077560527-0.0000237207735841529i | S161: -65.14918493 | T161: 2.459484619
A162: 5.8 | B162: 630957.3445 | C162: 3964421.916 | D162: -0.000420236212176847-8.46551772880069E-06i | E162: -67.52836849 | F162: -178.8459518 | G162: 2.8 | H162: 630.9573445 | I162: 3964.421916 | J162: 0.01344404903 | K162: 0.0146262339184605-3.08820657697019i | L162: 9.794224287 | M162: 0.000196635805942133-0.0415180006393777i | N162: -27.63517396 | O162: -89.72864017 | P162: =IMPRODUCT(gmv,IMDIV((COMPLEX(1,I162*(Rvcomp*kOhms)*(Cvcomp*uF))),IMPRODUCT((COMPLEX(0,data!I162*((Cvcomp*uF)+(Cvcomp_p*uF)))),(COMPLEX(1,I162*((Rvcomp*kOhms)*(Cvcomp*uF)*(Cvcomp_p*uF))/((Cvcomp*uF)+(Cvcomp_p*uF))))))) -> 0.000246761625642615-0.00839965095192552i | Q162: -41.51102868 | R162: -0.000348688191421459-0.0000118967214657685i | S162: -69.14620264 | T162: 1.954088615
A163: 5.9 | B163: 794328.2347 | C163: 4990911.493 | D163: -0.00026519082343354-4.24344465342874E-06i | E163: -71.52771831 | F163: -179.0832612 | G163: 2.9 | H163: 794.3282347 | I163: 4990.911493 | J163: 0.01344404903 | K163: 0.00922860610623907-2.45306998496954i | L163: 7.794260238 | M163: 0.000124069832982257-0.0329791931549878i | N163: -29.63513801 | O163: -89.78445063 | P163: =IMPRODUCT(gmv,IMDIV((COMPLEX(1,I163*(Rvcomp*kOhms)*(Cvcomp*uF))),IMPRODUCT((COMPLEX(0,data!I163*((Cvcomp*uF)+(Cvcomp_p*uF)))),(COMPLEX(1,I163*((Rvcomp*kOhms)*(Cvcomp*uF)*(Cvcomp_p*uF))/((Cvcomp*uF)+(Cvcomp_p*uF))))))) -> 0.000155763683459032-0.00667456055649331i | Q163: -43.50918187 | R163: -0.000220102296243064-5.96507221680188E-06i | S163: -73.14431988 | T163: 1.552413716
A164: 6 | B164: 1000000 | C164: 6283185.307 | D164: -0.000167339906028074-2.12696121702658E-06i | E164: -75.52730802 | F164: -179.2717855 | G164: 3 | H164: 1000 | I164: 6283.185307 | J164: 0.01344404903 | K164: 0.00582288721517789-1.94855292817205i | L164: 5.794282921 | M164: 0.0000782831812242181-0.0261964411063066i | N164: -31.63511532 | O164: -89.82878275 | P164: =IMPRODUCT(gmv,IMDIV((COMPLEX(1,I164*(Rvcomp*kOhms)*(Cvcomp*uF))),IMPRODUCT((COMPLEX(0,data!I164*((Cvcomp*uF)+(Cvcomp_p*uF)))),(COMPLEX(1,I164*((Rvcomp*kOhms)*(Cvcomp*uF)*(Cvcomp_p*uF))/((Cvcomp*uF)+(Cvcomp_p*uF))))))) -> 0.0000983071805273432-0.0053030360522166i | Q164: -45.50801619 | R164: -0.000138912975827684-2.99043679732583E-06i | S164: -77.14313152 | T164: 1.233239342
G165: 3.1 | H165: 1258.925412 | I165: 7910.06165 | J165: 0.01344404903 | K165: 0.00367400556228522-1.54779570850613i | L165: 3.794297234 | M165: 0.0000493935109204022-0.0208086413954956i | N165: -33.63510101 | O165: -89.86399716 | P165: =IMPRODUCT(gmv,IMDIV((COMPLEX(1,I165*(Rvcomp*kOhms)*(Cvcomp*uF))),IMPRODUCT((COMPLEX(0,data!I165*((Cvcomp*uF)+(Cvcomp_p*uF)))),(COMPLEX(1,I165*((Rvcomp*kOhms)*(Cvcomp*uF)*(Cvcomp_p*uF))/((Cvcomp*uF)+(Cvcomp_p*uF))))))) -> 0.0000620383675492297-0.00421297509586181i | Q165: -47.50728053 | R165: -0.0000876632236851571-0.0000014990277744987i | S165: -81.14238154 | T165: 0.9796536262
G166: 3.2 | H166: 1584.893192 | I166: 9958.17762 | J166: 0.01344404903 | K166: 0.00231814561340842-1.22946038932327i | L166: 1.794306264 | M166: 0.0000311652632882112-0.0165289257560265i | N166: -35.63509198 | O166: -89.89196903 | P166: =IMPRODUCT(gmv,IMDIV((COMPLEX(1,I166*(Rvcomp*kOhms)*(Cvcomp*uF))),IMPRODUCT((COMPLEX(0,data!I166*((Cvcomp*uF)+(Cvcomp_p*uF)))),(COMPLEX(1,I166*((Rvcomp*kOhms)*(Cvcomp*uF)*(Cvcomp_p*uF))/((Cvcomp*uF)+(Cvcomp_p*uF))))))) -> 0.0000391478365321913-0.00334679781459827i | Q166: -49.50681629 | R166: -0.0000553177525452939-7.51375518614017E-07i | S166: -85.14190828 | T166: 0.7781950064
G167: 3.3 | H167: 1995.262315 | I167: 12536.60286 | J167: 0.01344404903 | K167: 0.00146265291932664-0.97659638198995i | L167: -0.205688038 | M167: 0.0000196639775631102-0.0131294096432021i | N167: -37.63508628 | O167: -89.91418791 | P167: =IMPRODUCT(gmv,IMDIV((COMPLEX(1,I167*(Rvcomp*kOhms)*(Cvcomp*uF))),IMPRODUCT((COMPLEX(0,data!I167*((Cvcomp*uF)+(Cvcomp_p*uF)))),(COMPLEX(1,I167*((Rvcomp*kOhms)*(Cvcomp*uF)*(Cvcomp_p*uF))/((Cvcomp*uF)+(Cvcomp_p*uF))))))) -> 0.0000247023163504953-0.00265861277113893i | Q167: -51.50652335 | R167: -0.0000349055304091373-3.76605732382296E-07i | S167: -89.14160964 | T167: 0.6181565364
G168: 3.4 | H168: 2511.886432 | I168: 15782.64792 | J168: 0.01344404903 | K168: 0.000922872365832697-0.775738722304425i | L168: -2.205684443 | M168: 0.000012407141335829-0.0104290694180903i | N168: -39.63508269 | O168: -89.93183702 | P168: =IMPRODUCT(gmv,IMDIV((COMPLEX(1,I168*(Rvcomp*kOhms)*(Cvcomp*uF))),IMPRODUCT((COMPLEX(0,data!I168*((Cvcomp*uF)+(Cvcomp_p*uF)))),(COMPLEX(1,I168*((Rvcomp*kOhms)*(Cvcomp*uF)*(Cvcomp_p*uF))/((Cvcomp*uF)+(Cvcomp_p*uF))))))) -> 0.0000155867853307087-0.00211188976981023i | Q168: -53.50633851 | R168: -0.0000220248516252571-1.88758181078559E-07i | S168: -93.1414212 | T168: 0.4910263431
G169: 3.5 | H169: 3162.27766 | I169: 19869.17653 | J169: 0.01344404903 | K169: 0.000582293401377591-0.61619149173829i | L169: -4.205682175 | M169: 7.82838103868645E-06-0.00828410862756101i | N169: -41.63508042 | O169: -89.94585621 | P169: =IMPRODUCT(gmv,IMDIV((COMPLEX(1,I169*(Rvcomp*kOhms)*(Cvcomp*uF))),IMPRODUCT((COMPLEX(0,data!I169*((Cvcomp*uF)+(Cvcomp_p*uF)))),(COMPLEX(1,I169*((Rvcomp*kOhms)*(Cvcomp*uF)*(Cvcomp_p*uF))/((Cvcomp*uF)+(Cvcomp_p*uF))))))) -> 9.83486637962998E-06-0.00167757305911881i | Q169: -55.50622188 | R169: -0.0000138971204613286-9.46057825534193E-08i | S169: -97.1413023 | T169: 0.3900396734
G170: 3.6 | H170: 3981.071706 | I170: 25013.81125 | J170: 0.01344404903 | K170: 0.000367402419321021-0.48945846118831i | L170: -6.205680743 | M170: 4.93937613954712E-06-0.00658030355096975i | N170: -43.63507899 | O170: -89.95699205 | P170: =IMPRODUCT(gmv,IMDIV((COMPLEX(1,I170*(Rvcomp*kOhms)*(Cvcomp*uF))),IMPRODUCT((COMPLEX(0,data!I170*((Cvcomp*uF)+(Cvcomp_p*uF)))),(COMPLEX(1,I170*((Rvcomp*kOhms)*(Cvcomp*uF)*(Cvcomp_p*uF))/((Cvcomp*uF)+(Cvcomp_p*uF))))))) -> 6.20548854787154E-06-0.00133256338748115i | Q170: -57.50614829 | R170: -8.76864093929242E-06-4.74160301276197E-08i | S170: -101.1412273 | T170: 0.309821322
G171: 3.7 | H171: 5011.872336 | I171: 31490.52262 | J171: 0.01344404903 | K171: 0.00023181530305302-0.388790756289975i | L171: -8.20567984 | M171: 0.000003116536300436-0.00522692199045437i | N171: -45.63507809 | O171: -89.96583757 | P171: =IMPRODUCT(gmv,IMDIV((COMPLEX(1,I171*(Rvcomp*kOhms)*(Cvcomp*uF))),IMPRODUCT((COMPLEX(0,data!I171*((Cvcomp*uF)+(Cvcomp_p*uF)))),(COMPLEX(1,I171*((Rvcomp*kOhms)*(Cvcomp*uF)*(Cvcomp_p*uF))/((Cvcomp*uF)+(Cvcomp_p*uF))))))) -> 3.91544132279858E-06-0.00105850261735742i | Q171: -59.50610185 | R171: -5.53269840500399E-06-2.37645681835706E-08i | S171: -105.1411799 | T171: 0.2461007244
G172: 3.8 | H172: 6309.573445 | I172: 39644.21916 | J172: 0.01344404903 | K172: 0.000146265587214027-0.308827515638632i | L172: -10.20567927 | M172: 1.96640172608814E-06-0.00415189226244107i | N172: -47.63507752 | O172: -89.97286382 | P172: =IMPRODUCT(gmv,IMDIV((COMPLEX(1,I172*(Rvcomp*kOhms)*(Cvcomp*uF))),IMPRODUCT((COMPLEX(0,data!I172*((Cvcomp*uF)+(Cvcomp_p*uF)))),(COMPLEX(1,I172*((Rvcomp*kOhms)*(Cvcomp*uF)*(Cvcomp_p*uF))/((Cvcomp*uF)+(Cvcomp_p*uF))))))) -> 2.47049347786298E-06-0.000840803474392134i | Q172: -61.50607255 | R172: -3.49092058157963E-06-1.1910580158496E-08i | S172: -109.1411501 | T172: 0.1954852053
G173: 3.9 | H173: 7943.282347 | I173: 49909.11493 | J173: 0.01344404903 | K173: 0.0000922873541370054-0.245310435638477i | L173: -12.20567891 | M173: 1.24071571398109E-06-0.00329796552459794i | N173: -49.63507716 | O173: -89.97844496 | P173: =IMPRODUCT(gmv,IMDIV((COMPLEX(1,I173*(Rvcomp*kOhms)*(Cvcomp*uF))),IMPRODUCT((COMPLEX(0,data!I173*((Cvcomp*uF)+(Cvcomp_p*uF)))),(COMPLEX(1,I173*((Rvcomp*kOhms)*(Cvcomp*uF)*(Cvcomp_p*uF))/((Cvcomp*uF)+(Cvcomp_p*uF))))))) -> 1.55878277955612E-06-0.000667876424927034i | Q173: -63.50605407 | R173: -2.20263149009479E-06-5.96945664271752E-09i | S173: -113.1411312 | T173: 0.1552796443
G174: 4 | H174: 10000 | I174: 62831.85307 | J174: 0.01344404903 | K174: 0.0000582293869367705-0.194857015477744i | L174: -14.20567868 | M174: 7.82838733036849E-07-0.00261966727016341i | N174: -51.63507693 | O174: -89.98287822 | P174: =IMPRODUCT(gmv,IMDIV((COMPLEX(1,I174*(Rvcomp*kOhms)*(Cvcomp*uF))),IMPRODUCT((COMPLEX(0,data!I174*((Cvcomp*uF)+(Cvcomp_p*uF)))),(COMPLEX(1,I174*((Rvcomp*kOhms)*(Cvcomp*uF)*(Cvcomp_p*uF))/((Cvcomp*uF)+(Cvcomp_p*uF))))))) -> 9.83528140488214E-07-0.000530514347267335i | Q174: -65.5060424 | R174: -1.38977030194442E-06-2.99182365839429E-09i | S174: -117.1411193 | T174: 0.1233431191
A180: Standard E48 Resistor Values
A181: 100 | B181: 105
A182: 105 | B182: 110
A183: 110 | B183: 115
A184: 115 | B184: 121
A185: 121 | B185: 127
A186: 127 | B186: 133
A187: 133 | B187: 140
A188: 140 | B188: 147
A189: 147 | B189: 154
A190: 154 | B190: 162
A191: 162 | B191: 169
A192: 169 | B192: 178
A193: 178 | B193: 187
A194: 187 | B194: 196
A195: 196 | B195: 205
A196: 205 | B196: 215
A197: 215 | B197: 226
A198: 226 | B198: 237
A199: 237 | B199: 249
A200: 249 | B200: 261
A201: 261 | B201: 274
A202: 274 | B202: 287
A203: 287 | B203: 301
A204: 301 | B204: 316
A205: 316 | B205: 332
A206: 332 | B206: 348
A207: 348 | B207: 365
A208: 365 | B208: 383
A209: 383 | B209: 402
A210: 402 | B210: 422
A211: 422 | B211: 442
... 61 more rows

Sheet VCOMP (hidden)
A1: To Calculate VCOMP
A2: At User Selectable Line Voltage, Full Load | D2: At User Selectable Line Voltage, % of Load
A5: VLINE | B5: =Vline -> 220 | D5: VLINE | E5: =Vline -> 220 | G5: VCOMP as a function of Line voltage at full load
A6: K1 | B6: 7 | D6: Percent Load | E6: =percent_load/100 -> 1 | G6: VLINE | H6: M1M2 | I6: VCOMP1 | J6: K1V2 | K6: K2V2 | L6: K3V2 | M6: K4V2 | N6: VCOMP2 | O6: K1V3 | P6: K2V3 | Q6: K3V3 | R6: K4V3 | S6: K5V3 | T6: VCOMP3 | U6: VCOMP4 | V6: VCOMP5 | W6: VCOMP | X6: IAC RMS | Y6: ISENSE_Pk | Z6: ICOMP
A7: KFQ | B7: =1/(fsw*kHz) -> 2.056608603e-05 | D7: K1 | E7: 7 | G7: =Vacin_min -> 172 | H7: =(Iout*(Vout_nom^2)*2.5*Rsense*K_1)/(eff*(G7^2)*K_FQ)*us -> 0.254058095 | I7: =(1*10^-9*(5*10^8*SQRT(fsw*kHz)+(1.09655978*10^10)*SQRT(ftyp)*SQRT(H7)))/SQRT(fsw*kHz) -> 6.890448418 | J7: =(b_1^3/(27*a_1^3))-(d_1^3/27)+SQRT((ftyp)^2*H7^2/(4*a_1^2*c_1^2*(fsw*kHz)^2))+(b_1^3*(ftyp)*H7/(27*a_1^4*c_1*(fsw*kHz))-(d_1^3*(ftyp)*H7/(27*a_1*c_1*(fsw*kHz)))+(b_1*d_1^2*(ftyp)*H7/(9*a_1^2*c_1*(fsw*kHz)))-(b_1^2*d_1*(ftyp)*H7/(9*a_1^3*c_1*(fsw*kHz)))) -> 8.902745341 | K7: =(b_1*d_1^2/(9*a_1))-(b_1^2*d_1/(9*a_1^2))+(ftyp*H7/(2*a_1*c_1*fsw*kHz)) -> 8.898544097 | L7: =(d_1^2/9)+(b_1^2/(9*a_1^2))-(2*b_1*d_1/(9*a_1)) -> 0.0004565709694 | M7: =((b_1*c_1*fsw*kHz)+(2*a_1*c_1*d_1*fsw*kHz))/(3*a_1*c_1*fsw*kHz) -> 0.5213675214 | N7: =(J7+K7)^(1/3)+(L7/(J7^(1/3)))+M7 -> 3.132649631 | O7: =(b_2^3/(27*a_2^3))-(d_2^3/27) -> 0.07325223506 | P7: =(ftyp^2*H7^2/(4*a_2^2*c_2^2*(fsw*kHz)^2))+(b_2^3*ftyp*H7/(27*a_2^4*c_2*(fsw*kHz)))-(d_2^3*ftyp*H7/(27*a_2*c_2*(fsw*kHz)))+(b_2*d_2^2*ftyp*H7/(9*a_2^2*c_2*(fsw*kHz)))-(b_2^2*d_2*ftyp*H7/(9*a_2^3*c_2*(fsw*kHz))) -> 19.83524101 | Q7: =(b_2*d_2^2/(9*a_2))-(b_2^2*d_2/(9*a_2^2))+(ftyp*H7/(2*a_2*c_2*(fsw*kHz))) -> 4.380459999 | R7: =(d_2^2/9)+(b_2^2/(9*a_2^2))-(2*b_2*d_2/(9*a_2)) -> 0.06779950801 | S7: =(b_2*c_2*(fsw*kHz)+2*a_2*c_2*d_2*(fsw*kHz))/(3*a_2*c_2*(fsw*kHz)) -> 0.7603833866 | T7: =((O7+SQRT(P7)+Q7)^(1/3))+(R7/((O7+SQRT(P7)+Q7)^(1/3)))+S7 -> 2.866015046 | U7: =c_3+(SQRT(ftyp)*SQRT(H7)/(SQRT(a_3)*SQRT(b_3)*SQRT(fsw*kHz))) -> 2.160623033 | V7: =(a_4*(fsw*kHz)*b_4/ftyp) -> 1.548772312 | W7: =IF(I7>=0.5,IF(I7<1,I7,IF(N7>=1,IF(N7<2,N7,IF(T7>=2,IF(T7<4.5,T7,IF(U7>=4.5,IF(U7<4.6,U7,V7)))))))) -> 2.866015046 | X7: =Pin_max/G7 -> 7.26744186 | Y7: =-X7*Rsense*1.414 -> -0.195247093 | Z7: =MIN(6,MAX(0.5,Beta*G*($Y7-Voff_trim)/(MAX(0,MIN(4.5,W7)-Alpha1_A)+MAX(0,MIN(4.5,W7)-Alpha1_B)-Alpha1_C)+Alpha2)) -> 6
A8: fTYP | B8: =65*kHz -> 65000 | D8: KFQ | E8: =1/(fsw*kHz) -> 2.056608603e-05 | G8: =G7+1 -> 173 | H8: 0.2511294959 | I8: 6.85350941 | J8: 8.800144161 | K8: 8.795944919 | L8: 0.0004565709694 | M8: 0.5213675214 | N8: =(J8+K8)^(1/3)+(L8/(J8^(1/3)))+M8 -> 3.122578876 | O8: 0.07325223506 | P8: 19.38236855 | Q8: 4.329324307 | R8: 0.06779950801 | S8: 0.7603833866 | T8: =((O8+SQRT(P8)+Q8)^(1/3))+(R8/((O8+SQRT(P8)+Q8)^(1/3)))+S8 -> 2.85817708 | U8: 2.151024056 | V8: 1.548772312 | W8: =IF(I8>=0.5,IF(I8<1,I8,IF(N8>=1,IF(N8<2,N8,IF(T8>=2,IF(T8<4.5,T8,IF(U8>=4.5,IF(U8<4.6,U8,V8)))))))) -> 2.85817708 | X8: 7.225433526 | Y8: -0.1941184971 | Z8: =MIN(6,MAX(0.5,Beta*G*($Y8-Voff_trim)/(MAX(0,MIN(4.5,W8)-Alpha1_A)+MAX(0,MIN(4.5,W8)-Alpha1_B)-Alpha1_C)+Alpha2)) -> 6
D9: fTYP | E9: =65*kHz -> 65000 | G9: =G8+1 -> 174 | H9: 0.2482512446 | I9: 6.816994988 | J9: 8.699306879 | K9: 8.695109605 | L9: 0.0004565709694 | M9: 0.5213675214 | N9: 3.112604683 | O9: 0.07325223506 | P9: 18.9423774 | Q9: 4.279067728 | R9: 0.06779950801 | S9: 0.7603833866 | T9: 2.850415465 | U9: 2.141535412 | V9: 1.548772312 | W9: 2.850415465 | X9: 7.183908046 | Y9: -0.1930028736 | Z9: 6
A10: M1M2 | B10: =(Iout*(Vout_nom^2)*2.5*Rsense*K_1)/(eff*(B5^2)*K_FQ)*us -> 0.155290386 | G10: 175 | H10: 0.2454221937 | I10: 6.780897874 | J10: 8.600193293 | K10: 8.595997952 | L10: 0.0004565709694 | M10: 0.5213675214 | N10: 3.102725579 | O10: 0.07325223506 | P10: 18.51483006 | Q10: 4.229670227 | R10: 0.06779950801 | S10: 0.7603833866 | T10: 2.842729033 | U10: 2.132155209 | V10: 1.548772312 | W10: 2.842729033 | X10: 7.142857143 | Y10: -0.1919 | Z10: 6
D11: M1M2 | E11: =((E6*Iout)*(Vout_nom^2)*2.5*Rsense*K_1)/(eff*(E5^2)*K_FQ)*us -> 0.155290386 | G11: 176 | H11: 0.2426412281 | I11: 6.745210954 | J11: 8.502764339 | K11: 8.498570898 | L11: 0.0004565709694 | M11: 0.5213675214 | N11: 3.092940124 | O11: 0.07325223506 | P11: 18.09930623 | Q11: 4.181112335 | R11: 0.06779950801 | S11: 0.7603833866 | T11: 2.835116643 | U11: 2.1228816 | V11: 1.548772312 | W11: 2.835116643 | X11: 7.102272727 | Y11: -0.1908096591 | Z11: 6
A12: VCOMP1 | B12: =(1*10^-9*(5*10^8*SQRT(fsw*kHz)+(1.09655978*10^10)*SQRT(ftyp)*SQRT(B10)))/SQRT(fsw*kHz) -> 5.496168763 | G12: 177 | H12: 0.2399072643 | I12: 6.709927276 | J12: 8.406982053 | K12: 8.402790482 | L12: 0.0004565709694 | M12: 0.5213675214 | N12: 3.083246903 | O12: 0.07325223506 | P12: 17.69540213 | Q12: 4.13337513 | R12: 0.06779950801 | S12: 0.7603833866 | T12: 2.827577177 | U12: 2.113712778 | V12: 1.548772312 | W12: 2.827577177 | X12: 7.062146893 | Y12: -0.1897316384 | Z12: 6
D13: VCOMP1 | E13: =(1*10^-9*(5*10^8*SQRT(fsw*kHz)+(1.09655978*10^10)*SQRT(ftyp)*SQRT(E11)))/SQRT(fsw*kHz) -> 5.496168763 | G13: 178 | H13: 0.2372192489 | I13: 6.675040044 | J13: 8.312809537 | K13: 8.308619803 | L13: 0.0004565709694 | M13: 0.5213675214 | N13: 3.073644535 | O13: 0.07325223506 | P13: 17.30272969 | Q13: 4.086440223 | R13: 0.06779950801 | S13: 0.7603833866 | T13: 2.82010954 | U13: 2.104646975 | V13: 1.548772312 | W13: 2.82010954 | X13: 7.02247191 | Y13: -0.1886657303 | Z13: 6
A14: a1 | B14: 0.156 | G14: 179 | H14: 0.2345761581 | I14: 6.640542614 | J14: 8.220210918 | K14: 8.216022991 | L14: 0.0004565709694 | M14: 0.5213675214 | N14: 3.064131664 | O14: 0.07325223506 | P14: 16.92091589 | Q14: 4.040289736 | R14: 0.06779950801 | S14: 0.7603833866 | T14: 2.812712659 | U14: 2.095682467 | V14: 1.548772312 | W14: 2.812712659 | X14: 6.983240223 | Y14: -0.1876117318 | Z14: 6
A15: b1 | B15: 0.088 | D15: a1 | E15: 0.156 | G15: 180 | H15: 0.2319769964 | I15: 6.606428488 | J15: 8.129151319 | K15: 8.124965169 | L15: 0.0004565709694 | M15: 0.5213675214 | N15: 3.054706963 | O15: 0.07325223506 | P15: 16.54960208 | Q15: 3.994906284 | R15: 0.06779950801 | S15: 0.7603833866 | T15: 2.805385485 | U15: 2.086817565 | V15: 1.548772312 | W15: 2.805385485 | X15: 6.944444444 | Y15: -0.1865694444 | Z15: 6
A16: c1 | B16: 0.1223 | D16: b1 | E16: 0.088 | G16: 181 | H16: 0.2294207955 | I16: 6.572691314 | J16: 8.039596822 | K16: 8.035412418 | L16: 0.0004565709694 | M16: 0.5213675214 | N16: 3.045369132 | O16: 0.07325223506 | P16: 16.18844337 | Q16: 3.950272965 | R16: 0.06779950801 | S16: 0.7603833866 | T16: 2.798126986 | U16: 2.078050617 | V16: 1.548772312 | W16: 2.798126986 | X16: 6.906077348 | Y16: -0.185538674 | Z16: =MIN(6,MAX(0.5,Beta*G*($Y16-Voff_trim)/(MAX(0,MIN(4.5,W16)-Alpha1_A)+MAX(0,MIN(4.5,W16)-Alpha1_B)-Alpha1_C)+Alpha2)) -> 6
A17: d1 | B17: 0.5 | D17: c1 | E17: 0.1223 | G17: 182 | H17: 0.226906614 | I17: 6.539324879 | J17: 7.951514438 | K17: 7.947331754 | L17: 0.0004565709694 | M17: 0.5213675214 | N17: 3.036116897 | O17: 0.07325223506 | P17: 15.83710803 | Q17: 3.906373336 | R17: 0.06779950801 | S17: 0.7603833866 | T17: 2.790936156 | U17: 2.069380009 | V17: 1.548772312 | W17: 2.790936156 | X17: 6.868131868 | Y17: -0.1845192308 | Z17: 6
A18: K1V2 | B18: =(b_1^3/(27*a_1^3))-(d_1^3/27)+SQRT((ftyp)^2*B10^2/(4*a_1^2*c_1^2*(fsw*kHz)^2))+(b_1^3*(ftyp)*B10/(27*a_1^4*c_1*(fsw*kHz))-(d_1^3*(ftyp)*B10/(27*a_1*c_1*(fsw*kHz)))+(b_1*d_1^2*(ftyp)*B10/(9*a_1^2*c_1*(fsw*kHz)))-(b_1^2*d_1*(ftyp)*B10/(9*a_1^3*c_1*(fsw*kHz)))) -> 5.442495897 | D18: d1 | E18: 0.5 | G18: 183 | H18: 0.2244335359 | I18: 6.506323103 | J18: 7.864872079 | K18: 7.860691085 | L18: 0.0004565709694 | M18: 0.5213675214 | N18: 3.02694901 | O18: 0.07325223506 | P18: 15.49527688 | Q18: 3.863191406 | R18: 0.06779950801 | S18: 0.7603833866 | T18: 2.783812004 | U18: 2.060804162 | V18: 1.548772312 | W18: 2.783812004 | X18: 6.830601093 | Y18: -0.183510929 | Z18: 6
A19: K2V2 | B19: =(b_1*d_1^2/(9*a_1))-(b_1^2*d_1/(9*a_1^2))+(ftyp*B10/(2*a_1*c_1*fsw*kHz)) -> 5.438362167 | D19: K1V2 | E19: =(b_1^3/(27*a_1^3))-(d_1^3/27)+SQRT((ftyp)^2*E11^2/(4*a_1^2*c_1^2*(fsw*kHz)^2))+(b_1^3*(ftyp)*E11/(27*a_1^4*c_1*(fsw*kHz))-(d_1^3*(ftyp)*E11/(27*a_1*c_1*(fsw*kHz)))+(b_1*d_1^2*(ftyp)*E11/(9*a_1^2*c_1*(fsw*kHz)))-(b_1^2*d_1*(ftyp)*E11/(9*a_1^3*c_1*(fsw*kHz)))) -> 5.442495897 | G19: 184 | H19: 0.22200067 | I19: 6.473680043 | J19: 7.779638525 | K19: 7.775459194 | L19: 0.0004565709694 | M19: 0.5213675214 | N19: 3.017864247 | O19: 0.07325223506 | P19: 15.16264279 | Q19: 3.820711613 | R19: 0.06779950801 | S19: 0.7603833866 | T19: 2.776753564 | U19: 2.052321531 | V19: 1.548772312 | W19: 2.776753564 | X19: 6.793478261 | Y19: -0.182513587 | Z19: 6
A20: K3V2 | B20: =(d_1^2/9)+(b_1^2/(9*a_1^2))-(2*b_1*d_1/(9*a_1)) -> 0.0004565709694 | D20: K2V2 | E20: =(b_1*d_1^2/(9*a_1))-(b_1^2*d_1/(9*a_1^2))+(ftyp*E11/(2*a_1*c_1*fsw*kHz)) -> 5.438362167 | G20: 185 | H20: 0.2196071492 | I20: 6.441389881 | J20: 7.695783398 | K20: 7.691605703 | L20: 0.0004565709694 | M20: 0.5213675214 | N20: 3.008861409 | O20: 0.07325223506 | P20: 14.83891017 | Q20: 3.778918819 | R20: 0.06779950801 | S20: 0.7603833866 | T20: 2.769759885 | U20: 2.043930603 | V20: 1.548772312 | W20: 2.769759885 | X20: 6.756756757 | Y20: -0.181527027 | Z20: 6
A21: K4V2 | B21: =((b_1*c_1*fsw*kHz)+(2*a_1*c_1*d_1*fsw*kHz))/(3*a_1*c_1*fsw*kHz) -> 0.5213675214 | D21: K3V2 | E21: =(d_1^2/9)+(b_1^2/(9*a_1^2))-(2*b_1*d_1/(9*a_1)) -> 0.0004565709694 | G21: 186 | H21: 0.2172521298 | I21: 6.409446924 | J21: 7.613277134 | K21: 7.609101049 | L21: 0.0004565709694 | M21: 0.5213675214 | N21: 2.99993932 | O21: 0.07325223506 | P21: 14.52379443 | Q21: 3.737798288 | R21: 0.06779950801 | S21: 0.7603833866 | T21: 2.762830037 | U21: 2.035629901 | V21: 1.548772312 | W21: 2.762830037 | X21: 6.720430108 | Y21: -0.1805510753 | Z21: 6
A22: VCOMP2 | B22: =(B18+B19)^(1/3)+(B20/(B18^(1/3)))+B21 -> 2.737548637 | D22: K4V2 | E22: =((b_1*c_1*fsw*kHz)+(2*a_1*c_1*d_1*fsw*kHz))/(3*a_1*c_1*fsw*kHz) -> 0.5213675214 | G22: 187 | H22: 0.2149347903 | I22: 6.377845604 | J22: 7.532090957 | K22: 7.527916456 | L22: 0.0004565709694 | M22: 0.5213675214 | N22: 2.991096827 | O22: 0.07325223506 | P22: 14.21702157 | Q22: 3.69733568 | R22: 0.06779950801 | S22: 0.7603833866 | T22: 2.755963108 | U22: 2.027417977 | V22: 1.548772312 | W22: 2.755963108 | X22: 6.684491979 | Y22: -0.1795855615 | Z22: 6
D23: VCOMP2 | E23: =(E19+E20)^(1/3)+(E21/(E19^(1/3)))+E22 -> 2.737548637 | G23: 188 | H23: 0.2126543312 | I23: 6.346580468 | J23: 7.452196856 | K23: 7.448023914 | L23: 0.0004565709694 | M23: 0.5213675214 | N23: 2.982332801 | O23: 0.07325223506 | P23: 13.91832767 | Q23: 3.657517033 | R23: 0.06779950801 | S23: 0.7603833866 | T23: 2.749158202 | U23: 2.019293413 | V23: 1.548772312 | W23: 2.749158202 | X23: 6.64893617 | Y23: -0.1786303191 | Z23: 6
A24: a2 | B24: 0.313 | G24: 189 | H24: 0.210409974 | I24: 6.315646179 | J24: 7.373567558 | K24: 7.36939615 | L24: 0.0004565709694 | M24: 0.5213675214 | N24: 2.973646133 | O24: 0.07325223506 | P24: 13.62745854 | Q24: 3.618328754 | R24: 0.06779950801 | S24: 0.7603833866 | T24: 2.742414443 | U24: 2.011254823 | V24: 1.548772312 | W24: 2.742414443 | X24: 6.613756614 | Y24: -0.1776851852 | Z24: 6
A25: b2 | B25: 0.401 | D25: a2 | E25: 0.313 | G25: 190 | H25: 0.2082009607 | I25: 6.285037515 | J25: 7.296176504 | K25: 7.292006606 | L25: 0.0004565709694 | M25: 0.5213675214 | N25: 2.965035738 | O25: 0.07325223506 | P25: 13.34416925 | Q25: 3.579757608 | R25: 0.06779950801 | S25: 0.7603833866 | T25: 2.73573097 | U25: 2.003300851 | V25: 1.548772312 | W25: 2.73573097 | X25: 6.578947368 | Y25: -0.17675 | Z25: 6
A26: c2 | B26: 0.1223 | D26: b2 | E26: 0.401 | G26: 191 | H26: 0.2060265531 | I26: 6.254749361 | J26: 7.219997832 | K26: 7.21582942 | L26: 0.0004565709694 | M26: 0.5213675214 | N26: 2.956500548 | O26: 0.07325223506 | P26: 13.06822379 | Q26: 3.541790704 | R26: 0.06779950801 | S26: 0.7603833866 | T26: 2.72910694 | U26: 1.995430166 | V26: 1.548772312 | W26: 2.72910694 | X26: 6.544502618 | Y26: -0.1758246073 | Z26: 6
A27: d2 | B27: 0.5 | D27: c2 | E27: 0.1223 | G27: 192 | H27: 0.203886032 | I27: 6.224776708 | J27: 7.145006349 | K27: 7.140839401 | L27: 0.0004565709694 | M27: 0.5213675214 | N27: 2.948039518 | O27: 0.07325223506 | P27: 12.79939466 | Q27: 3.504415486 | R27: 0.06779950801 | S27: 0.7603833866 | T27: 2.722541525 | U27: 1.987641467 | V27: 1.548772312 | W27: 2.722541525 | X27: 6.510416667 | Y27: -0.1749088542 | Z27: 6
A28: K1V3 | B28: =(b_2^3/(27*a_2^3))-(d_2^3/27) -> 0.07325223506 | D28: d2 | E28: 0.5 | G28: 193 | H28: 0.2017786969 | I28: 6.195114652 | J28: 7.071177515 | K28: 7.067012007 | L28: 0.0004565709694 | M28: 0.5213675214 | N28: 2.939651624 | O28: 0.07325223506 | P28: 12.53746257 | Q28: 3.467619724 | R28: 0.06779950801 | S28: 0.7603833866 | T28: 2.716033914 | U28: 1.97993348 | V28: 1.548772312 | W28: 2.716033914 | X28: 6.476683938 | Y28: -0.1740025907 | Z28: 6
A29: K2V3 | B29: =(ftyp^2*B10^2/(4*a_2^2*c_2^2*(fsw*kHz)^2))+(b_2^3*ftyp*B10/(27*a_2^4*c_2*(fsw*kHz)))-(d_2^3*ftyp*B10/(27*a_2*c_2*(fsw*kHz)))+(b_2*d_2^2*ftyp*B10/(9*a_2^2*c_2*(fsw*kHz)))-(b_2^2*d_2*ftyp*B10/(9*a_2^3*c_2*(fsw*kHz))) -> 7.447941057 | D29: K1V3 | E29: =(b_2^3/(27*a_2^3))-(d_2^3/27) -> 0.07325223506 | G29: 194 | H29: 0.1997038655 | I29: 6.165758391 | J29: 6.998487418 | K29: 6.994323329 | L29: 0.0004565709694 | M29: 0.5213675214 | N29: 2.931335858 | O29: 0.07325223506 | P29: 12.28221606 | Q29: 3.431391501 | R29: 0.06779950801 | S29: 0.7603833866 | T29: 2.709583309 | U29: 1.972304957 | V29: 1.548772312 | W29: 2.709583309 | X29: 6.443298969 | Y29: -0.1731056701 | Z29: 6
A30: K3V3 | B30: =(b_2*d_2^2/(9*a_2))-(b_2^2*d_2/(9*a_2^2))+(ftyp*B10/(2*a_2*c_2*(fsw*kHz))) -> 2.655896481 | D30: K2V3 | E30: =(ftyp^2*E11^2/(4*a_2^2*c_2^2*(fsw*kHz)^2))+(b_2^3*ftyp*E11/(27*a_2^4*c_2*(fsw*kHz)))-(d_2^3*ftyp*E11/(27*a_2*c_2*(fsw*kHz)))+(b_2*d_2^2*ftyp*E11/(9*a_2^2*c_2*(fsw*kHz)))-(b_2^2*d_2*ftyp*E11/(9*a_2^3*c_2*(fsw*kHz))) -> 7.447941057 | G30: 195 | H30: 0.1976608726 | I30: 6.13670322 | J30: 6.926912761 | K30: 6.922750068 | L30: 0.0004565709694 | M30: 0.5213675214 | N30: 2.923091233 | O30: 0.07325223506 | P30: 12.03345119 | Q30: 3.395719205 | R30: 0.06779950801 | S30: 0.7603833866 | T30: 2.70318893 | U30: 1.964754675 | V30: 1.548772312 | W30: 2.70318893 | X30: 6.41025641 | Y30: -0.1722179487 | Z30: 6
A31: K4V3 | B31: =(d_2^2/9)+(b_2^2/(9*a_2^2))-(2*b_2*d_2/(9*a_2)) -> 0.06779950801 | D31: K3V3 | E31: =(b_2*d_2^2/(9*a_2))-(b_2^2*d_2/(9*a_2^2))+(ftyp*E11/(2*a_2*c_2*(fsw*kHz))) -> 2.655896481 | G31: 196 | H31: 0.1956490702 | I31: 6.10794453 | J31: 6.856430837 | K31: 6.852269519 | L31: 0.0004565709694 | M31: 0.5213675214 | N31: 2.914916782 | O31: 0.07325223506 | P31: 11.79097127 | Q31: 3.36059152 | R31: 0.06779950801 | S31: 0.7603833866 | T31: 2.696850009 | U31: 1.957281437 | V31: 1.548772312 | W31: 2.696850009 | X31: 6.37755102 | Y31: -0.1713392857 | Z31: 6
A32: K5V3 | B32: =(b_2*c_2*(fsw*kHz)+2*a_2*c_2*d_2*(fsw*kHz))/(3*a_2*c_2*(fsw*kHz)) -> 0.7603833866 | D32: K4V3 | E32: =(d_2^2/9)+(b_2^2/(9*a_2^2))-(2*b_2*d_2/(9*a_2)) -> 0.06779950801 | G32: 197 | H32: 0.1936678266 | I32: 6.079477807 | J32: 6.787019516 | K32: 6.782859552 | L32: 0.0004565709694 | M32: 0.5213675214 | N32: 2.906811552 | O32: 0.07325223506 | P32: 11.55458652 | Q32: 3.325997414 | R32: 0.06779950801 | S32: 0.7603833866 | T32: 2.690565795 | U32: 1.949884069 | V32: 1.548772312 | W32: 2.690565795 | X32: 6.345177665 | Y32: -0.1704695431 | Z32: 6
A33: VCOMP3 | B33: =((B28+SQRT(B29)+B30)^(1/3))+(B31/((B28+SQRT(B29)+B30)^(1/3)))+B32 -> 2.559585974 | D33: K5V3 | E33: =(b_2*c_2*(fsw*kHz)+2*a_2*c_2*d_2*(fsw*kHz))/(3*a_2*c_2*(fsw*kHz)) -> 0.7603833866 | G33: 198 | H33: 0.1917165259 | I33: 6.051298626 | J33: 6.718657223 | K33: 6.714498593 | L33: 0.0004565709694 | M33: 0.5213675214 | N33: 2.898774612 | O33: 0.07325223506 | P33: 11.32411382 | Q33: 3.291926138 | R33: 0.06779950801 | S33: 0.7603833866 | T33: 2.684335548 | U33: 1.942561422 | V33: 1.548772312 | W33: 2.684335548 | X33: 6.313131313 | Y33: -0.1696085859 | Z33: 6
D34: VCOMP3 | E34: =((E29+SQRT(E30)+E31)^(1/3))+(E32/((E29+SQRT(E30)+E31)^(1/3)))+E33 -> 2.559585974 | G34: 199 | H34: 0.1897945679 | I34: 6.023402653 | J34: 6.651322925 | K34: 6.647165609 | L34: 0.0004565709694 | M34: 0.5213675214 | N34: 2.890805044 | O34: 0.07325223506 | P34: 11.09937644 | Q34: 3.258367207 | R34: 0.06779950801 | S34: 0.7603833866 | T34: 2.678158544 | U34: 1.93531237 | V34: 1.548772312 | W34: 2.678158544 | X34: 6.281407035 | Y34: -0.1687562814 | Z34: 6
A35: a3 | B35: 1.007 | G35: 200 | H35: 0.1879013671 | I35: 5.99578564 | J35: 6.584996115 | K35: 6.580840093 | L35: 0.0004565709694 | M35: 0.5213675214 | N35: 2.882901951 | O35: 0.07325223506 | P35: 10.8802038 | Q35: 3.2253104 | R35: 0.06779950801 | S35: 0.7603833866 | T35: 2.672034071 | U35: 1.928135808 | V35: 1.548772312 | W35: 2.672034071 | X35: 6.25 | Y35: -0.1679125 | Z35: 6
A36: b3 | B36: 0.1223 | D36: a3 | E36: 1.007 | G36: 201 | H36: 0.1860363526 | I36: 5.968443422 | J36: 6.519656793 | K36: 6.515502046 | L36: 0.0004565709694 | M36: 0.5213675214 | N36: 2.875064449 | O36: 0.07325223506 | P36: 10.66643118 | Q36: 3.19274575 | R36: 0.06779950801 | S36: 0.7603833866 | T36: 2.66596143 | U36: 1.921030655 | V36: 1.548772312 | W36: 2.66596143 | X36: 6.218905473 | Y36: -0.1670771144 | Z36: 6
A37: c3 | B37: 0.5 | D37: b3 | E37: 0.1223 | G37: 202 | H37: 0.1841989678 | I37: 5.94137192 | J37: 6.455285453 | K37: 6.451131962 | L37: 0.0004565709694 | M37: 0.5213675214 | N37: 2.867291672 | O37: 0.07325223506 | P37: 10.45789955 | Q37: 3.160663536 | R37: 0.06779950801 | S37: 0.7603833866 | T37: 2.659939935 | U37: 1.91399585 | V37: 1.548772312 | W37: 2.659939935 | X37: 6.188118812 | Y37: -0.16625 | Z37: 6
A38: VCOMP4 | B38: =c_3+(SQRT(ftyp)*SQRT(B10)/(SQRT(a_3)*SQRT(b_3)*SQRT(fsw*kHz))) -> 1.79830528 | D38: c3 | E38: 0.5 | G38: 203 | H38: 0.1823886695 | I38: 5.914567133 | J38: 6.391863068 | K38: 6.387710814 | L38: 0.0004565709694 | M38: 0.5213675214 | N38: 2.859582768 | O38: 0.07325223506 | P38: 10.25445532 | Q38: 3.129054274 | R38: 0.06779950801 | S38: 0.7603833866 | T38: 2.653968913 | U38: 1.907030353 | V38: 1.548772312 | W38: 2.653968913 | X38: 6.157635468 | Y38: -0.1654310345 | Z38: 6
D39: VCOMP4 | E39: =c_3+(SQRT(ftyp)*SQRT(E11)/(SQRT(a_3)*SQRT(b_3)*SQRT(fsw*kHz))) -> 1.79830528 | G39: 204 | H39: =(Iout*(Vout_nom^2)*2.5*Rsense*K_1)/(eff*(G39^2)*K_FQ)*us -> 0.180604928 | I39: =(1*10^-9*(5*10^8*SQRT(fsw*kHz)+(1.09655978*10^10)*SQRT(ftyp)*SQRT(H39)))/SQRT(fsw*kHz) -> 5.888025137 | J39: =(b_1^3/(27*a_1^3))-(d_1^3/27)+SQRT((ftyp)^2*H39^2/(4*a_1^2*c_1^2*(fsw*kHz)^2))+(b_1^3*(ftyp)*H39/(27*a_1^4*c_1*(fsw*kHz))-(d_1^3*(ftyp)*H39/(27*a_1*c_1*(fsw*kHz)))+(b_1*d_1^2*(ftyp)*H39/(9*a_1^2*c_1*(fsw*kHz)))-(b_1^2*d_1*(ftyp)*H39/(9*a_1^3*c_1*(fsw*kHz)))) -> 6.329371078 | K39: =(b_1*d_1^2/(9*a_1))-(b_1^2*d_1/(9*a_1^2))+(ftyp*H39/(2*a_1*c_1*fsw*kHz)) -> 6.325220043 | L39: =(d_1^2/9)+(b_1^2/(9*a_1^2))-(2*b_1*d_1/(9*a_1)) -> 0.0004565709694 | M39: =((b_1*c_1*fsw*kHz)+(2*a_1*c_1*d_1*fsw*kHz))/(3*a_1*c_1*fsw*kHz) -> 0.5213675214 | N39: 2.851936903 | O39: =(b_2^3/(27*a_2^3))-(d_2^3/27) -> 0.07325223506 | P39: =(ftyp^2*H39^2/(4*a_2^2*c_2^2*(fsw*kHz)^2))+(b_2^3*ftyp*H39/(27*a_2^4*c_2*(fsw*kHz)))-(d_2^3*ftyp*H39/(27*a_2*c_2*(fsw*kHz)))+(b_2*d_2^2*ftyp*H39/(9*a_2^2*c_2*(fsw*kHz)))-(b_2^2*d_2*ftyp*H39/(9*a_2^3*c_2*(fsw*kHz))) -> 10.0559501 | Q39: =(b_2*d_2^2/(9*a_2))-(b_2^2*d_2/(9*a_2^2))+(ftyp*H39/(2*a_2*c_2*(fsw*kHz))) -> 3.097908714 | R39: =(d_2^2/9)+(b_2^2/(9*a_2^2))-(2*b_2*d_2/(9*a_2)) -> 0.06779950801 | S39: =(b_2*c_2*(fsw*kHz)+2*a_2*c_2*d_2*(fsw*kHz))/(3*a_2*c_2*(fsw*kHz)) -> 0.7603833866 | T39: 2.648047703 | U39: =c_3+(SQRT(ftyp)*SQRT(H39)/(SQRT(a_3)*SQRT(b_3)*SQRT(fsw*kHz))) -> 1.900133145 | V39: =(a_4*(fsw*kHz)*b_4/ftyp) -> 1.548772312 | W39: 2.648047703 | X39: =Pin_max/G39 -> 6.12745098 | Y39: =-X39*Rsense*1.414 -> -0.164620098 | Z39: =MIN(6,MAX(0.5,Beta*G*($Y39-Voff_trim)/(MAX(0,MIN(4.5,W39)-Alpha1_A)+MAX(0,MIN(4.5,W39)-Alpha1_B)-Alpha1_C)+Alpha2)) -> 6
A40: a4 | B40: 1.007 | G40: 205 | H40: 0.1788472262 | I40: 5.861742087 | J40: 6.267791372 | K40: 6.263641539 | L40: 0.0004565709694 | M40: 0.5213675214 | N40: 2.844353255 | O40: 0.07325223506 | P40: 9.862240569 | Q40: 3.06721783 | R40: 0.06779950801 | S40: 0.7603833866 | T40: 2.642175655 | U40: 1.893303227 | V40: 1.548772312 | W40: 2.642175655 | X40: 6.097560976 | Y40: -0.1638170732 | Z40: 6
A41: b4 | B41: 2.056 | D41: a4 | E41: 1.007 | G41: 206 | H41: 0.1771150599 | I41: 5.835714213 | J41: 6.20710628 | K41: 6.202957631 | L41: 0.0004565709694 | M41: 0.5213675214 | N41: 2.836831019 | O41: 0.07325223506 | P41: 9.673188202 | Q41: 3.036972815 | R41: 0.06779950801 | S41: 0.7603833866 | T41: 2.63635213 | U41: 1.88653962 | V41: 1.548772312 | W41: 2.63635213 | X41: 6.067961165 | Y41: -0.1630218447 | Z41: 6
A42: VCOMP5 | B42: =(a_4*(fsw*kHz)*b_4/ftyp) -> 1.548772312 | D42: b4 | E42: 2.056 | G42: 207 | H42: 0.1754079368 | I42: 5.809937816 | J42: 6.147298555 | K42: 6.143151073 | L42: 0.0004565709694 | M42: 0.5213675214 | N42: 2.829369402 | O42: 0.07325223506 | P42: 9.488659137 | Q42: 3.007165074 | R42: 0.06779950801 | S42: 0.7603833866 | T42: 2.630576503 | U42: 1.879841361 | V42: 1.548772312 | W42: 2.630576503 | X42: 6.038647343 | Y42: -0.1622342995 | Z42: 6
D43: VCOMP5 | E43: =(a_4*(fsw*kHz)*b_4/ftyp) -> 1.548772312 | G43: 208 | H43: 0.1737253763 | I43: 5.784409269 | J43: 6.088351367 | K43: 6.084205035 | L43: 0.0004565709694 | M43: 0.5213675214 | N43: 2.821967627 | O43: 0.07325223506 | P43: 9.308523981 | Q43: 2.977786218 | R43: 0.06779950801 | S43: 0.7603833866 | T43: 2.624848158 | U43: 1.873207508 | V43: 1.548772312 | W43: 2.624848158 | X43: 6.009615385 | Y43: -0.1614543269 | Z43: 6
A44: VCOMP = | B44: =IF(B12>=0.5,IF(B12<1,B12,IF(B22>=1,IF(B22<2,B22,IF(B33>=2,IF(B33<4.5,B33,IF(B38>=4.5,IF(B38<4.6,B38,B42)))))))) -> 2.559585974 | G44: 209 | H44: 0.1720669097 | I44: 5.759125014 | J44: 6.030248285 | K44: 6.026103086 | L44: 0.0004565709694 | M44: 0.5213675214 | N44: 2.81462493 | O44: 0.07325223506 | P44: 9.132657638 | Q44: 2.948828058 | R44: 0.06779950801 | S44: 0.7603833866 | T44: 2.619166489 | U44: 1.866637137 | V44: 1.548772312 | W44: 2.619166489 | X44: 5.980861244 | Y44: -0.1606818182 | Z44: 6
A45: ICOMP = | B45: =MIN(6,MAX(0.5,Beta*G*((Pin_max*Rsense*-1.414/B5)-Voff_trim)/(MAX(0,MIN(4.5,B44)-Alpha1_A)+MAX(0,MIN(4.5,B44)-Alpha1_B)-Alpha1_C)+Alpha2)) -> 6 | D45: VCOMP = | E45: =IF(E13>=0.5,IF(E13<1,E13,IF(E23>=1,IF(E23<2,E23,IF(E34>=2,IF(E34<4.5,E34,IF(E39>=4.5,IF(E39<4.6,E39,E43)))))))) -> 2.559585974 | G45: 210 | H45: 0.170432079 | I45: 5.734081561 | J45: 5.972973269 | K45: 5.968829188 | L45: 0.0004565709694 | M45: 0.5213675214 | N45: 2.80734056 | O45: 0.07325223506 | P45: 8.960939153 | Q45: 2.9202826 | R45: 0.06779950801 | S45: 0.7603833866 | T45: 2.613530903 | U45: 1.860129341 | V45: 1.548772312 | W45: 2.613530903 | X45: 5.952380952 | Y45: -0.1599166667 | Z45: 6
G46: 211 | H46: 0.1688204371 | I46: 5.709275488 | J46: 5.916510658 | K46: 5.912367679 | L46: 0.0004565709694 | M46: 0.5213675214 | N46: 2.800113779 | O46: 0.07325223506 | P46: 8.793251548 | Q46: 2.89214204 | R46: 0.06779950801 | S46: 0.7603833866 | T46: 2.607940816 | U46: 1.85368323 | V46: 1.548772312 | W46: 2.607940816 | X46: 5.924170616 | Y46: -0.1591587678 | Z46: 6
G47: 212 | H47: 0.1672315478 | I47: 5.684703434 | J47: 5.860845161 | K47: 5.856703268 | L47: 0.0004565709694 | M47: 0.5213675214 | N47: 2.792943861 | O47: 0.07325223506 | P47: 8.629481682 | Q47: 2.864398755 | R47: 0.06779950801 | S47: 0.7603833866 | T47: 2.602395654 | U47: 1.847297932 | V47: 1.548772312 | W47: 2.602395654 | X47: 5.896226415 | Y47: -0.1584080189 | Z47: 6
G48: 213 | H48: 0.1656649845 | I48: 5.660362103 | J48: 5.805961843 | K48: 5.80182102 | L48: 0.0004565709694 | M48: 0.5213675214 | N48: 2.785830096 | O48: 0.07325223506 | P48: 8.469520101 | Q48: 2.837045303 | R48: 0.06779950801 | S48: 0.7603833866 | T48: 2.596894853 | U48: 1.84097259 | V48: 1.548772312 | W48: 2.596894853 | X48: 5.868544601 | Y48: -0.1576643192 | Z48: 6
G49: 214 | H49: 0.1641203311 | I49: 5.636248261 | J49: 5.751846118 | K49: 5.747706351 | L49: 0.0004565709694 | M49: 0.5213675214 | N49: 2.778771782 | O49: 0.07325223506 | P49: 8.313260904 | Q49: 2.810074414 | R49: 0.06779950801 | S49: 0.7603833866 | T49: 2.591437859 | U49: 1.834706363 | V49: 1.548772312 | W49: 2.591437859 | X49: 5.841121495 | Y49: -0.1569275701 | Z49: 6
G50: 215 | H50: 0.1625971808 | I50: 5.612358734 | J50: 5.698483739 | K50: 5.694345013 | L50: 0.0004565709694 | M50: 0.5213675214 | N50: 2.771768231 | O50: 0.07325223506 | P50: 8.160601613 | Q50: 2.783478986 | R50: 0.06779950801 | S50: 0.7603833866 | T50: 2.586024127 | U50: 1.828498426 | V50: 1.548772312 | W50: 2.586024127 | X50: 5.813953488 | Y50: -0.1561976744 | Z50: 6
G51: 216 | H51: 0.1610951364 | I51: 5.588690407 | J51: 5.645860787 | K51: 5.641723088 | L51: 0.0004565709694 | M51: 0.5213675214 | N51: 2.764818767 | O51: 0.07325223506 | P51: 8.011443043 | Q51: 2.757252084 | R51: 0.06779950801 | S51: 0.7603833866 | T51: 2.580653122 | U51: 1.82234797 | V51: 1.548772312 | W51: 2.580653122 | X51: 5.787037037 | Y51: -0.155474537 | Z51: 6
G52: 217 | H52: 0.1596138096 | I52: 5.565240221 | J52: 5.593963663 | K52: 5.589826978 | L52: 0.0004565709694 | M52: 0.5213675214 | N52: 2.757922724 | O52: 0.07325223506 | P52: 7.865689188 | Q52: 2.73138693 | R52: 0.06779950801 | S52: 0.7603833866 | T52: 2.575324318 | U52: 1.816254201 | V52: 1.548772312 | W52: 2.575324318 | X52: 5.760368664 | Y52: -0.1547580645 | Z52: 6
G53: 218 | H53: 0.1581528214 | I53: 5.542005174 | J53: 5.542779081 | K53: 5.538643394 | L53: 0.0004565709694 | M53: 0.5213675214 | N53: 2.751079448 | O53: 0.07325223506 | P53: 7.723247098 | Q53: 2.705876901 | R53: 0.06779950801 | S53: 0.7603833866 | T53: 2.570037196 | U53: 1.810216338 | V53: 1.548772312 | W53: 2.570037196 | X53: 5.733944954 | Y53: -0.1540481651 | Z53: 6
G54: 219 | H54: 0.1567118009 | I54: 5.518982319 | J54: 5.492294056 | K54: 5.488159354 | L54: 0.0004565709694 | M54: 0.5213675214 | N54: 2.744288297 | O54: 0.07325223506 | P54: 7.584026774 | Q54: 2.680715527 | R54: 0.06779950801 | S54: 0.7603833866 | T54: 2.564791248 | U54: 1.804233615 | V54: 1.548772312 | W54: 2.564791248 | X54: 5.707762557 | Y54: -0.1533447489 | Z54: 6
G55: 220 | H55: 0.155290386 | I55: 5.496168763 | J55: 5.442495897 | K55: 5.438362167 | L55: 0.0004565709694 | M55: 0.5213675214 | N55: 2.737548637 | O55: 0.07325223506 | P55: 7.447941057 | Q55: 2.655896481 | R55: 0.06779950801 | S55: 0.7603833866 | T55: 2.559585974 | U55: 1.79830528 | V55: 1.548772312 | W55: 2.559585974 | X55: 5.681818182 | Y55: -0.1526477273 | Z55: 6
G56: 221 | H56: 0.1538882226 | I56: 5.473561665 | J56: 5.393372201 | K56: 5.389239429 | L56: 0.0004565709694 | M56: 0.5213675214 | N56: 2.730859848 | O56: 0.07325223506 | P56: 7.314905529 | Q56: 2.631413583 | R56: 0.06779950801 | S56: 0.7603833866 | T56: 2.554420881 | U56: 1.792430596 | V56: 1.548772312 | W56: 2.554420881 | X56: 5.656108597 | Y56: -0.1519570136 | Z56: 6
G57: 222 | H57: 0.1525049647 | I57: 5.451158234 | J57: 5.344910842 | K57: 5.340779015 | L57: 0.0004565709694 | M57: 0.5213675214 | N57: 2.724221318 | O57: 0.07325223506 | P57: 7.184838414 | Q57: 2.607260789 | R57: 0.06779950801 | S57: 0.7603833866 | T57: 2.549295486 | U57: 1.786608836 | V57: 1.548772312 | W57: 2.549295486 | X57: 5.630630631 | Y57: -0.1512725225 | Z57: 6
G58: 223 | H58: 0.1511402739 | I58: 5.428955731 | J58: 5.297099966 | K58: 5.292969073 | L58: 0.0004565709694 | M58: 0.5213675214 | N58: 2.717632445 | O58: 0.07325223506 | P58: 7.057660484 | Q58: 2.583432192 | R58: 0.06779950801 | S58: 0.7603833866 | T58: 2.544209313 | U58: 1.78083929 | V58: 1.548772312 | W58: 2.544209313 | X58: 5.605381166 | Y58: -0.1505941704 | Z58: 6
G59: 224 | H59: 0.1497938194 | I59: 5.406951464 | J59: 5.249927985 | K59: 5.245798012 | L59: 0.0004565709694 | M59: 0.5213675214 | N59: 2.711092637 | O59: 0.07325223506 | P59: 6.933294968 | Q59: 2.559922014 | R59: 0.06779950801 | S59: 0.7603833866 | T59: 2.539161893 | U59: 1.775121257 | V59: 1.548772312 | W59: 2.539161893 | X59: 5.580357143 | Y59: -0.149921875 | Z59: 6
G60: 225 | H60: 0.1484652777 | I60: 5.385142791 | J60: 5.203383565 | K60: 5.199254499 | L60: 0.0004565709694 | M60: 0.5213675214 | N60: 2.704601313 | O60: 0.07325223506 | P60: 6.811667467 | Q60: 2.536724609 | R60: 0.06779950801 | S60: 0.7603833866 | T60: 2.534152766 | U60: 1.769454052 | V60: 1.548772312 | W60: 2.534152766 | X60: 5.555555556 | Y60: -0.1492555556 | Z60: 6
G61: 226 | H61: 0.1471543324 | I61: 5.363527115 | J61: 5.157455623 | K61: 5.153327453 | L61: 0.0004565709694 | M61: 0.5213675214 | N61: 2.6981579 | O61: 0.07325223506 | P61: 6.692705866 | Q61: 2.513834452 | R61: 0.06779950801 | S61: 0.7603833866 | T61: 2.529181478 | U61: 1.763836998 | V61: 1.548772312 | W61: 2.529181478 | X61: 5.530973451 | Y61: -0.1485951327 | Z61: 6
G62: 227 | H62: 0.1458606742 | I62: 5.342101885 | J62: 5.11213332 | K62: 5.108006035 | L62: 0.0004565709694 | M62: 0.5213675214 | N62: 2.691761835 | O62: 0.07325223506 | P62: 6.576340261 | Q62: 2.491246141 | R62: 0.06779950801 | S62: 0.7603833866 | T62: 2.524247586 | U62: 1.758269434 | V62: 1.548772312 | W62: 2.524247586 | X62: 5.50660793 | Y62: -0.1479405286 | Z62: 6
G63: 228 | H63: 0.1445840005 | I63: 5.320864596 | J63: 5.067406054 | K63: 5.063279642 | L63: 0.0004565709694 | M63: 0.5213675214 | N63: 2.685412564 | O63: 0.07325223506 | P63: 6.462502878 | Q63: 2.468954392 | R63: 0.06779950801 | S63: 0.7603833866 | T63: 2.519350648 | U63: 1.752750709 | V63: 1.548772312 | W63: 2.519350648 | X63: 5.48245614 | Y63: -0.1472916667 | Z63: 6
G64: 229 | H64: 0.1433240152 | I64: 5.299812786 | J64: 5.023263455 | K64: 5.019137904 | L64: 0.0004565709694 | M64: 0.5213675214 | N64: 2.679109541 | O64: 0.07325223506 | P64: 6.351127997 | Q64: 2.446954038 | R64: 0.06779950801 | S64: 0.7603833866 | T64: 2.514490235 | U64: 1.747280182 | V64: 1.548772312 | W64: 2.514490235 | X64: 5.458515284 | Y64: -0.1466484716 | Z64: 6
G65: 230 | H65: 0.1420804288 | I65: 5.278944034 | J65: 4.979695377 | K65: 4.975570676 | L65: 0.0004565709694 | M65: 0.5213675214 | N65: 2.67285223 | O65: 0.07325223506 | P65: 6.242151887 | Q65: 2.425240019 | R65: 0.06779950801 | S65: 0.7603833866 | T65: 2.509665922 | U65: 1.741857224 | V65: 1.548772312 | W65: 2.509665922 | X65: 5.434782609 | Y65: -0.1460108696 | Z65: 6
G66: 231 | H66: 0.1408529578 | I66: 5.258255965 | J66: 4.936691892 | K66: 4.93256803 | L66: 0.0004565709694 | M66: 0.5213675214 | N66: 2.666640103 | O66: 0.07325223506 | P66: 6.135512731 | Q66: 2.403807391 | R66: 0.06779950801 | S66: 0.7603833866 | T66: 2.50487729 | U66: 1.736481219 | V66: 1.548772312 | W66: 2.50487729 | X66: 5.411255411 | Y66: -0.1453787879 | Z66: 6
G67: 232 | H67: 0.1396413251 | I67: 5.237746241 | J67: 4.894243287 | K67: 4.890120253 | L67: 0.0004565709694 | M67: 0.5213675214 | N67: 2.66047264 | O67: 0.07325223506 | P67: 6.031150566 | Q67: 2.382651311 | R67: 0.06779950801 | S67: 0.7603833866 | T67: 2.500123929 | U67: 1.731151559 | V67: 1.548772312 | W67: 2.500123929 | X67: 5.387931034 | Y67: -0.1447521552 | Z67: 6
G68: 233 | H68: 0.1384452593 | I68: 5.217412566 | J68: 4.852340057 | K68: 4.848217841 | L68: 0.0004565709694 | M68: 0.5213675214 | N68: 2.654349329 | O68: 0.07325223506 | P68: 5.929007216 | Q68: 2.361767041 | R68: 0.06779950801 | S68: 0.7603833866 | T68: 2.495405433 | U68: 1.725867646 | V68: 1.548772312 | W68: 2.495405433 | X68: 5.364806867 | Y68: -0.1441309013 | Z68: 6
G69: 234 | H69: 0.1372644949 | I69: 5.197252683 | J69: 4.810972899 | K69: 4.806851491 | L69: 0.0004565709694 | M69: 0.5213675214 | N69: 2.648269667 | O69: 0.07325223506 | P69: 5.829026234 | Q69: 2.341149946 | R69: 0.06779950801 | S69: 0.7603833866 | T69: 2.490721405 | U69: 1.720628896 | V69: 1.548772312 | W69: 2.490721405 | X69: 5.341880342 | Y69: -0.1435149573 | Z69: 6
G70: 235 | H70: 0.136098772 | I70: 5.177264374 | J70: 4.770132709 | K70: 4.766012097 | L70: 0.0004565709694 | M70: 0.5213675214 | N70: 2.642233158 | O70: 0.07325223506 | P70: 5.731152841 | Q70: 2.320795488 | R70: 0.06779950801 | S70: 0.7603833866 | T70: 2.486071452 | U70: 1.71543473 | V70: 1.548772312 | W70: 2.486071452 | X70: 5.319148936 | Y70: -0.1429042553 | Z70: 6
G71: 236 | H71: =(Iout*(Vout_nom^2)*2.5*Rsense*K_1)/(eff*(G71^2)*K_FQ)*us -> 0.1349478361 | I71: =(1*10^-9*(5*10^8*SQRT(fsw*kHz)+(1.09655978*10^10)*SQRT(ftyp)*SQRT(H71)))/SQRT(fsw*kHz) -> 5.157445457 | J71: =(b_1^3/(27*a_1^3))-(d_1^3/27)+SQRT((ftyp)^2*H71^2/(4*a_1^2*c_1^2*(fsw*kHz)^2))+(b_1^3*(ftyp)*H71/(27*a_1^4*c_1*(fsw*kHz))-(d_1^3*(ftyp)*H71/(27*a_1*c_1*(fsw*kHz)))+(b_1*d_1^2*(ftyp)*H71/(9*a_1^2*c_1*(fsw*kHz)))-(b_1^2*d_1*(ftyp)*H71/(9*a_1^3*c_1*(fsw*kHz)))) -> 4.729810572 | K71: =(b_1*d_1^2/(9*a_1))-(b_1^2*d_1/(9*a_1^2))+(ftyp*H71/(2*a_1*c_1*fsw*kHz)) -> 4.725690747 | L71: =(d_1^2/9)+(b_1^2/(9*a_1^2))-(2*b_1*d_1/(9*a_1)) -> 0.0004565709694 | M71: =((b_1*c_1*fsw*kHz)+(2*a_1*c_1*d_1*fsw*kHz))/(3*a_1*c_1*fsw*kHz) -> 0.5213675214 | N71: 2.636239315 | O71: =(b_2^3/(27*a_2^3))-(d_2^3/27) -> 0.07325223506 | P71: =(ftyp^2*H71^2/(4*a_2^2*c_2^2*(fsw*kHz)^2))+(b_2^3*ftyp*H71/(27*a_2^4*c_2*(fsw*kHz)))-(d_2^3*ftyp*H71/(27*a_2*c_2*(fsw*kHz)))+(b_2*d_2^2*ftyp*H71/(9*a_2^2*c_2*(fsw*kHz)))-(b_2^2*d_2*ftyp*H71/(9*a_2^3*c_2*(fsw*kHz))) -> 5.635333872 | Q71: =(b_2*d_2^2/(9*a_2))-(b_2^2*d_2/(9*a_2^2))+(ftyp*H71/(2*a_2*c_2*(fsw*kHz))) -> 2.300699224 | R71: =(d_2^2/9)+(b_2^2/(9*a_2^2))-(2*b_2*d_2/(9*a_2)) -> 0.06779950801 | S71: =(b_2*c_2*(fsw*kHz)+2*a_2*c_2*d_2*(fsw*kHz))/(3*a_2*c_2*(fsw*kHz)) -> 0.7603833866 | T71: 2.481455188 | U71: =c_3+(SQRT(ftyp)*SQRT(H71)/(SQRT(a_3)*SQRT(b_3)*SQRT(fsw*kHz))) -> 1.710284583 | V71: =(a_4*(fsw*kHz)*b_4/ftyp) -> 1.548772312 | W71: 2.481455188 | X71: =Pin_max/G71 -> 5.296610169 | Y71: =-X71*Rsense*1.414 -> -0.1422987288 | Z71: =MIN(6,MAX(0.5,Beta*G*($Y71-Voff_trim)/(MAX(0,MIN(4.5,W71)-Alpha1_A)+MAX(0,MIN(4.5,W71)-Alpha1_B)-Alpha1_C)+Alpha2)) -> 6
G72: 237 | H72: 0.1338114384 | I72: 5.137793789 | J72: 4.689997765 | K72: 4.685878716 | L72: 0.0004565709694 | M72: 0.5213675214 | N72: =(J72+K72)^(1/3)+(L72/(J72^(1/3)))+M72 -> 2.630287656 | O72: 0.07325223506 | P72: 5.54151772 | Q72: 2.280856806 | R72: 0.06779950801 | S72: 0.7603833866 | T72: =((O72+SQRT(P72)+Q72)^(1/3))+(R72/((O72+SQRT(P72)+Q72)^(1/3)))+S72 -> 2.476872233 | U72: 1.705177897 | V72: 1.548772312 | W72: =IF(I72>=0.5,IF(I72<1,I72,IF(N72>=1,IF(N72<2,N72,IF(T72>=2,IF(T72<4.5,T72,IF(U72>=4.5,IF(U72<4.6,U72,V72)))))))) -> 2.476872233 | X72: 5.274261603 | Y72: -0.1416983122 | Z72: 6
G73: =G72+1 -> 238 | H73: 0.1326893348 | I73: 5.11830726 | J73: 4.650685745 | K73: 4.646567463 | L73: 0.0004565709694 | M73: 0.5213675214 | N73: 2.624377709 | O73: 0.07325223506 | P73: 5.449654287 | Q73: 2.261263977 | R73: 0.06779950801 | S73: 0.7603833866 | T73: 2.472322213 | U73: 1.700114124 | V73: 1.548772312 | W73: 2.472322213 | X73: 5.25210084 | Y73: -0.1411029412 | Z73: 6
G74: 239 | H74: 0.1315812868 | I74: 5.098983799 | J74: 4.611866148 | K74: 4.607748624 | L74: 0.0004565709694 | M74: 0.5213675214 | N74: 2.618509009 | O74: 0.07325223506 | P74: 5.35969493 | Q74: 2.241916569 | R74: 0.06779950801 | S74: 0.7603833866 | T74: 2.467804758 | U74: 1.695092726 | V74: 1.548772312 | W74: 2.467804758 | X74: 5.230125523 | Y74: -0.1405125523 | Z74: 6
G75: 240 | H75: 0.1304870605 | I75: 5.079821366 | J75: 4.573530784 | K75: 4.569414008 | L75: 0.0004565709694 | M75: 0.5213675214 | N75: 2.612681096 | O75: 0.07325223506 | P75: 5.271592416 | Q75: 2.222810498 | R75: 0.06779950801 | S75: 0.7603833866 | T75: 2.463319508 | U75: 1.690113173 | V75: 1.548772312 | W75: 2.463319508 | X75: 5.208333333 | Y75: -0.1399270833 | Z75: 6
G76: 241 | H76: 0.1294064269 | I76: 5.060817958 | J76: 4.535671634 | K76: 4.531555596 | L76: 0.0004565709694 | M76: 0.5213675214 | N76: 2.606893519 | O76: 0.07325223506 | P76: 5.185300873 | Q76: 2.203941769 | R76: 0.06779950801 | S76: 0.7603833866 | T76: 2.458866103 | U76: 1.685174945 | V76: 1.548772312 | W76: 2.458866103 | X76: 5.186721992 | Y76: -0.139346473 | Z76: 6
G77: 242 | H77: 0.128339162 | I77: 5.041971603 | J77: 4.498280841 | K77: 4.494165533 | L77: 0.0004565709694 | M77: 0.5213675214 | N77: 2.601145833 | O77: 0.07325223506 | P77: 5.100775746 | Q77: 2.185306466 | R77: 0.06779950801 | S77: 0.7603833866 | T77: 2.454444192 | U77: 1.680277527 | V77: 1.548772312 | W77: 2.454444192 | X77: 5.165289256 | Y77: -0.1387706612 | Z77: 6
G78: 243 | H78: 0.127285046 | I78: 5.023280362 | J78: 4.461350712 | K78: 4.457236125 | L78: 0.0004565709694 | M78: 0.5213675214 | N78: 2.595437599 | O78: 0.07325223506 | P78: 5.017973758 | Q78: 2.166900755 | R78: 0.06779950801 | S78: 0.7603833866 | T78: 2.450053428 | U78: 1.675420418 | V78: 1.548772312 | W78: 2.450053428 | X78: 5.144032922 | Y78: -0.1381995885 | Z78: 6
G79: 244 | H79: 0.1262438639 | I79: 5.004742327 | J79: 4.424873712 | K79: 4.420759836 | L79: 0.0004565709694 | M79: 0.5213675214 | N79: 2.589768388 | O79: 0.07325223506 | P79: 4.93685286 | Q79: 2.148720879 | R79: 0.06779950801 | S79: 0.7603833866 | T79: 2.445693471 | U79: 1.670603121 | V79: 1.548772312 | W79: 2.445693471 | X79: 5.12295082 | Y79: -0.1376331967 | Z79: 6
G80: 245 | H80: 0.1252154049 | I80: 4.986355624 | J80: 4.388842456 | K80: 4.384729284 | L80: 0.0004565709694 | M80: 0.5213675214 | N80: 2.584137773 | O80: 0.07325223506 | P80: 4.8573722 | Q80: 2.130763159 | R80: 0.06779950801 | S80: 0.7603833866 | T80: 2.441363984 | U80: 1.66582515 | V80: 1.548772312 | W80: 2.441363984 | X80: 5.102040816 | Y80: -0.1370714286 | Z80: 6
G81: 246 | H81: 0.1241994627 | I81: 4.968118406 | J81: 4.353249713 | K81: 4.349137234 | L81: 0.0004565709694 | M81: 0.5213675214 | N81: 2.578545336 | O81: 0.07325223506 | P81: 4.779492078 | Q81: 2.113023991 | R81: 0.06779950801 | S81: 0.7603833866 | T81: 2.437064635 | U81: 1.661086023 | V81: 1.548772312 | W81: 2.437064635 | X81: 5.081300813 | Y81: -0.1365142276 | Z81: 6
G82: =G81+1 -> 247 | H82: 0.1231958347 | I82: 4.950028858 | J82: 4.318088394 | K82: 4.313976602 | L82: 0.0004565709694 | M82: 0.5213675214 | N82: 2.572990664 | O82: 0.07325223506 | P82: 4.703173912 | Q82: 2.095499842 | R82: 0.06779950801 | S82: 0.7603833866 | T82: 2.432795099 | U82: 1.65638527 | V82: 1.548772312 | W82: 2.432795099 | X82: 5.060728745 | Y82: -0.1359615385 | Z82: 6
G83: 248 | H83: 0.122204323 | I83: 4.932085193 | J83: 4.283351555 | K83: 4.279240441 | L83: 0.0004565709694 | M83: 0.5213675214 | N83: 2.567473352 | O83: 0.07325223506 | P83: 4.628380201 | Q83: 2.078187251 | R83: 0.06779950801 | S83: 0.7603833866 | T83: 2.428555053 | U83: 1.651722426 | V83: 1.548772312 | W83: 2.428555053 | X83: 5.040322581 | Y83: -0.1354133065 | Z83: 6
G84: 249 | H84: 0.1212247332 | I84: 4.914285654 | J84: 4.249032392 | K84: 4.244921947 | L84: 0.0004565709694 | M84: 0.5213675214 | N84: 2.561992998 | O84: 0.07325223506 | P84: 4.555074492 | Q84: 2.061082826 | R84: 0.06779950801 | S84: 0.7603833866 | T84: 2.424344182 | U84: 1.647097035 | V84: 1.548772312 | W84: 2.424344182 | X84: 5.020080321 | Y84: -0.1348694779 | Z84: 6
G85: 250 | H85: 0.1202568749 | I85: 4.896628512 | J85: 4.215124234 | K85: 4.211014451 | L85: 0.0004565709694 | M85: 0.5213675214 | N85: 2.556549208 | O85: 0.07325223506 | P85: 4.483221344 | Q85: 2.044183243 | R85: 0.06779950801 | S85: 0.7603833866 | T85: 2.420162173 | U85: 1.642508647 | V85: 1.548772312 | W85: 2.420162173 | X85: 5 | Y85: -0.13433 | Z85: 6
G86: 251 | H86: 0.1193005616 | I86: 4.879112063 | J86: 4.181620546 | K86: 4.177511416 | L86: 0.0004565709694 | M86: 0.5213675214 | N86: 2.551141593 | O86: 0.07325223506 | P86: 4.4127863 | Q86: 2.027485245 | R86: 0.06779950801 | S86: 0.7603833866 | T86: 2.416008718 | U86: 1.637956819 | V86: 1.548772312 | W86: 2.416008718 | X86: 4.980079681 | Y86: -0.1337948207 | Z86: 6
G87: 252 | H87: 0.1183556104 | I87: 4.861734635 | J87: 4.148514919 | K87: 4.144406435 | L87: 0.0004565709694 | M87: 0.5213675214 | N87: 2.545769771 | O87: 0.07325223506 | P87: 4.34373585 | Q87: 2.010985637 | R87: 0.06779950801 | S87: 0.7603833866 | T87: 2.411883514 | U87: 1.633441118 | V87: 1.548772312 | W87: 2.411883514 | X87: 4.96031746 | Y87: -0.1332638889 | Z87: 6
G88: 253 | H88: 0.117421842 | I88: 4.844494577 | J88: 4.115801072 | K88: 4.111693227 | L88: 0.0004565709694 | M88: 0.5213675214 | N88: 2.540433364 | O88: 0.07325223506 | P88: 4.276037408 | Q88: 1.994681291 | R88: 0.06779950801 | S88: 0.7603833866 | T88: 2.407786263 | U88: 1.628961113 | V88: 1.548772312 | W88: 2.407786263 | X88: 4.940711462 | Y88: -0.1327371542 | Z88: 6
G89: 254 | H89: 0.1164990806 | I89: 4.827390267 | J89: 4.083472848 | K89: 4.079365634 | L89: 0.0004565709694 | M89: 0.5213675214 | N89: 2.535132 | O89: 0.07325223506 | P89: 4.209659279 | Q89: 1.978569136 | R89: 0.06779950801 | S89: 0.7603833866 | T89: 2.403716671 | U89: 1.624516384 | V89: 1.548772312 | W89: 2.403716671 | X89: 4.921259843 | Y89: -0.1322145669 | Z89: 6
G90: 255 | H90: 0.1155871539 | I90: 4.810420109 | J90: 4.05152421 | K90: 4.047417619 | L90: 0.0004565709694 | M90: 0.5213675214 | N90: 2.529865311 | O90: 0.07325223506 | P90: 4.144570631 | Q90: 1.962646164 | R90: 0.06779950801 | S90: 0.7603833866 | T90: 2.399674447 | U90: 1.620106516 | V90: 1.548772312 | W90: 2.399674447 | X90: 4.901960784 | Y90: -0.1316960784 | Z90: 6
G91: 256 | H91: 0.114685893 | I91: 4.793582531 | J91: 4.019949239 | K91: 4.015843264 | L91: 0.0004565709694 | M91: 0.5213675214 | N91: 2.524632938 | O91: 0.07325223506 | P91: 4.080741471 | Q91: 1.946909424 | R91: 0.06779950801 | S91: 0.7603833866 | T91: 2.395659305 | U91: 1.6157311 | V91: 1.548772312 | W91: 2.395659305 | X91: 4.8828125 | Y91: -0.1311816406 | Z91: 6
G92: 257 | H92: 0.1137951321 | I92: 4.776875984 | J92: 3.988742129 | K92: 3.984636763 | L92: 0.0004565709694 | M92: 0.5213675214 | N92: 2.519434522 | O92: 0.07325223506 | P92: 4.018142616 | Q92: 1.931356025 | R92: 0.06779950801 | S92: 0.7603833866 | T92: 2.391670964 | U92: 1.611389734 | V92: 1.548772312 | W92: 2.391670964 | X92: 4.86381323 | Y92: -0.1306712062 | Z92: 6
G93: 258 | H93: 0.1129147089 | I93: 4.760298945 | J93: 3.957897189 | K93: 3.953792425 | L93: 0.0004565709694 | M93: 0.5213675214 | N93: 2.514269714 | O93: 0.07325223506 | P93: 3.956745669 | Q93: 1.915983128 | R93: 0.06779950801 | S93: 0.7603833866 | T93: 2.387709146 | U93: 1.607082022 | V93: 1.548772312 | W93: 2.387709146 | X93: 4.84496124 | Y93: -0.1301647287 | Z93: 6
G94: 259 | H94: 0.1120444639 | I94: 4.743849915 | J94: 3.927408836 | K94: 3.923304667 | L94: 0.0004565709694 | M94: 0.5213675214 | N94: 2.509138167 | O94: 0.07325223506 | P94: 3.896522998 | Q94: 1.900787951 | R94: 0.06779950801 | S94: 0.7603833866 | T94: 2.383773577 | U94: 1.602807574 | V94: 1.548772312 | W94: 2.383773577 | X94: 4.826254826 | Y94: -0.1296621622 | Z94: 6
G95: 260 | H95: 0.1111842409 | I95: 4.727527415 | J95: 3.897271595 | K95: 3.893168014 | L95: 0.0004565709694 | M95: 0.5213675214 | N95: 2.504039539 | O95: 0.07325223506 | P95: 3.837447706 | Q95: 1.885767766 | R95: 0.06779950801 | S95: 0.7603833866 | T95: 2.379863986 | U95: 1.598566006 | V95: 1.548772312 | W95: 2.379863986 | X95: 4.807692308 | Y95: -0.1291634615 | Z95: 6
G96: 261 | H96: 0.1103338865 | I96: 4.711329992 | J96: 3.867480095 | K96: 3.863377095 | L96: 0.0004565709694 | M96: 0.5213675214 | N96: 2.498973494 | O96: 0.07325223506 | P96: 3.779493617 | Q96: 1.870919896 | R96: 0.06779950801 | S96: 0.7603833866 | T96: 2.375980108 | U96: 1.594356941 | V96: 1.548772312 | W96: 2.375980108 | X96: 4.789272031 | Y96: -0.1286685824 | Z96: 6
G97: 262 | H97: 0.1094932504 | I97: 4.695256213 | J97: 3.838029068 | K97: 3.833926642 | L97: 0.0004565709694 | M97: 0.5213675214 | N97: 2.493939701 | O97: 0.07325223506 | P97: 3.722635245 | Q97: 1.856241715 | R97: 0.06779950801 | S97: 0.7603833866 | T97: 2.37212168 | U97: 1.590180006 | V97: 1.548772312 | W97: 2.37212168 | X97: 4.770992366 | Y97: -0.1281774809 | Z97: 6
G98: 263 | H98: 0.1086621851 | I98: 4.679304669 | J98: 3.808913345 | K98: 3.804811487 | L98: 0.0004565709694 | M98: 0.5213675214 | N98: 2.488937831 | O98: 0.07325223506 | P98: 3.666847781 | Q98: 1.841730647 | R98: 0.06779950801 | S98: 0.7603833866 | T98: 2.368288443 | U98: 1.586034835 | V98: 1.548772312 | W98: 2.368288443 | X98: 4.752851711 | Y98: -0.1276901141 | Z98: 6
G99: 264 | H99: 0.1078405458 | I99: 4.663473969 | J99: 3.780127855 | K99: 3.776026559 | L99: 0.0004565709694 | M99: 0.5213675214 | N99: 2.483967562 | O99: 0.07325223506 | P99: 3.612107069 | Q99: 1.827384166 | R99: 0.06779950801 | S99: 0.7603833866 | T99: 2.364480142 | U99: 1.581921067 | V99: 1.548772312 | W99: 2.364480142 | X99: 4.734848485 | Y99: -0.1272064394 | Z99: 6
G100: 265 | H100: 0.1070281906 | I100: 4.647762747 | J100: 3.751667623 | K100: 3.747566883 | L100: 0.0004565709694 | M100: 0.5213675214 | N100: 2.479028577 | O100: 0.07325223506 | P100: 3.558389585 | Q100: 1.81319979 | R100: 0.06779950801 | S100: 0.7603833866 | T100: 2.360696526 | U100: 1.577838346 | V100: 1.548772312 | W100: 2.360696526 | X100: 4.716981132 | Y100: -0.1267264151 | Z100: 6
G101: =G100+1 -> 266 | H101: 0.10622498 | I101: 4.632169654 | J101: 3.723527768 | K101: 3.719427577 | L101: 0.0004565709694 | M101: 0.5213675214 | N101: 2.47412056 | O101: 0.07325223506 | P101: 3.505672422 | Q101: 1.799175088 | R101: 0.06779950801 | S101: 0.7603833866 | T101: 2.356937346 | U101: 1.573786322 | V101: 1.548772312 | W101: 2.356937346 | X101: 4.69924812 | Y101: -0.12625 | Z101: 6
G102: 267 | H102: 0.1054307773 | I102: 4.616693363 | J102: 3.695703499 | K102: 3.69160385 | L102: 0.0004565709694 | M102: 0.5213675214 | N102: 2.469243204 | O102: 0.07325223506 | P102: 3.453933268 | Q102: 1.785307672 | R102: 0.06779950801 | S102: 0.7603833866 | T102: 2.353202356 | U102: 1.56976465 | V102: 1.548772312 | W102: 2.353202356 | X102: 4.68164794 | Y102: -0.1257771536 | Z102: 6
G103: 268 | H103: =(Iout*(Vout_nom^2)*2.5*Rsense*K_1)/(eff*(G103^2)*K_FQ)*us -> 0.1046454483 | I103: =(1*10^-9*(5*10^8*SQRT(fsw*kHz)+(1.09655978*10^10)*SQRT(ftyp)*SQRT(H103)))/SQRT(fsw*kHz) -> 4.601332567 | J103: =(b_1^3/(27*a_1^3))-(d_1^3/27)+SQRT((ftyp)^2*H103^2/(4*a_1^2*c_1^2*(fsw*kHz)^2))+(b_1^3*(ftyp)*H103/(27*a_1^4*c_1*(fsw*kHz))-(d_1^3*(ftyp)*H103/(27*a_1*c_1*(fsw*kHz)))+(b_1*d_1^2*(ftyp)*H103/(9*a_1^2*c_1*(fsw*kHz)))-(b_1^2*d_1*(ftyp)*H103/(9*a_1^3*c_1*(fsw*kHz)))) -> 3.668190113 | K103: =(b_1*d_1^2/(9*a_1))-(b_1^2*d_1/(9*a_1^2))+(ftyp*H103/(2*a_1*c_1*fsw*kHz)) -> 3.664091002 | L103: =(d_1^2/9)+(b_1^2/(9*a_1^2))-(2*b_1*d_1/(9*a_1)) -> 0.0004565709694 | M103: =((b_1*c_1*fsw*kHz)+(2*a_1*c_1*d_1*fsw*kHz))/(3*a_1*c_1*fsw*kHz) -> 0.5213675214 | N103: 2.464396201 | O103: =(b_2^3/(27*a_2^3))-(d_2^3/27) -> 0.07325223506 | P103: =(ftyp^2*H103^2/(4*a_2^2*c_2^2*(fsw*kHz)^2))+(b_2^3*ftyp*H103/(27*a_2^4*c_2*(fsw*kHz)))-(d_2^3*ftyp*H103/(27*a_2*c_2*(fsw*kHz)))+(b_2*d_2^2*ftyp*H103/(9*a_2^2*c_2*(fsw*kHz)))-(b_2^2*d_2*ftyp*H103/(9*a_2^3*c_2*(fsw*kHz))) -> 3.403150391 | Q103: =(b_2*d_2^2/(9*a_2))-(b_2^2*d_2/(9*a_2^2))+(ftyp*H103/(2*a_2*c_2*(fsw*kHz))) -> 1.771595198 | R103: =(d_2^2/9)+(b_2^2/(9*a_2^2))-(2*b_2*d_2/(9*a_2)) -> 0.06779950801 | S103: =(b_2*c_2*(fsw*kHz)+2*a_2*c_2*d_2*(fsw*kHz))/(3*a_2*c_2*(fsw*kHz)) -> 0.7603833866 | T103: 2.349491317 | U103: =c_3+(SQRT(ftyp)*SQRT(H103)/(SQRT(a_3)*SQRT(b_3)*SQRT(fsw*kHz))) -> 1.565772991 | V103: =(a_4*(fsw*kHz)*b_4/ftyp) -> 1.548772312 | W103: 2.349491317 | X103: =Pin_max/G103 -> 4.664179104 | Y103: =-X103*Rsense*1.414 -> -0.1253078358 | Z103: =MIN(6,MAX(0.5,Beta*G*($Y103-Voff_trim)/(MAX(0,MIN(4.5,W103)-Alpha1_A)+MAX(0,MIN(4.5,W103)-Alpha1_B)-Alpha1_C)+Alpha2)) -> 6
G104: 269 | H104: 0.1038688614 | I104: 4.586085977 | J104: 3.640982998 | K104: 3.636884417 | L104: 0.0004565709694 | M104: 0.5213675214 | N104: 2.459579252 | O104: 0.07325223506 | P104: 3.353302621 | Q104: 1.758035367 | R104: 0.06779950801 | S104: 0.7603833866 | T104: 2.34580399 | U104: 1.56181101 | V104: 1.548772312 | W104: 2.34580399 | X104: 4.646840149 | Y104: -0.1248420074 | Z104: 6
G105: 270 | H105: 0.1031008873 | I105: 4.570952326 | J105: 3.614077624 | K105: 3.609979568 | L105: 0.0004565709694 | M105: 0.5213675214 | N105: 2.45479206 | O105: 0.07325223506 | P105: 3.304369331 | Q105: 1.744625921 | R105: 0.06779950801 | S105: 0.7603833866 | T105: 2.342140139 | U105: 1.557878376 | V105: 1.548772312 | W105: 2.342140139 | X105: 4.62962963 | Y105: -0.1243796296 | Z105: 6
G106: 271 | H106: 0.102341399 | I106: 4.555930361 | J106: 3.587469545 | K106: 3.583372009 | L106: 0.0004565709694 | M106: 0.5213675214 | N106: 2.45003433 | O106: 0.07325223506 | P106: 3.256330426 | Q106: 1.731364645 | R106: 0.06779950801 | S106: 0.7603833866 | T106: 2.338499533 | U106: 1.553974766 | V106: 1.548772312 | W106: 2.338499533 | X106: 4.612546125 | Y106: -0.1239206642 | Z106: 6
G107: 272 | H107: 0.101590272 | I107: 4.541018853 | J107: 3.561154399 | K107: 3.557057375 | L107: 0.0004565709694 | M107: 0.5213675214 | N107: 2.445305775 | O107: 0.07325223506 | P107: 3.209166323 | Q107: 1.718249365 | R107: 0.06779950801 | S107: 0.7603833866 | T107: 2.334881943 | U107: 1.550099859 | V107: 1.548772312 | W107: 2.334881943 | X107: 4.595588235 | Y107: -0.1234650735 | Z107: 6
G108: 273 | H108: 0.100847384 | I108: 4.526216586 | J108: 3.535127899 | K108: 3.531031384 | L108: 0.0004565709694 | M108: 0.5213675214 | N108: 2.440606109 | O108: 0.07325223506 | P108: 3.162857939 | Q108: 1.705277944 | R108: 0.06779950801 | S108: 0.7603833866 | T108: 2.331287144 | U108: 1.546253339 | V108: 1.548772312 | W108: 2.331287144 | X108: 4.578754579 | Y108: -0.1230128205 | Z108: 6
G109: 274 | H109: 0.100112615 | I109: 4.511522365 | J109: 3.509385841 | K109: 3.505289828 | L109: 0.0004565709694 | M109: 0.5213675214 | N109: 2.435935051 | O109: 0.07325223506 | P109: 3.117386674 | Q109: 1.692448287 | R109: 0.06779950801 | S109: 0.7603833866 | T109: 2.327714914 | U109: 1.542434896 | V109: 1.548772312 | W109: 2.327714914 | X109: 4.562043796 | Y109: -0.1225638686 | Z109: 6
G110: 275 | H110: 0.09938584704 | I110: 4.496935011 | J110: 3.483924095 | K110: 3.479828578 | L110: 0.0004565709694 | M110: 0.5213675214 | N110: 2.431292323 | O110: 0.07325223506 | P110: 3.0727344 | Q110: 1.679758335 | R110: 0.06779950801 | S110: 0.7603833866 | T110: 2.324165032 | U110: 1.538644224 | V110: 1.548772312 | W110: 2.324165032 | X110: 4.545454545 | Y110: -0.1221181818 | Z110: 6
G111: 276 | H111: 0.09866696443 | I111: 4.482453362 | J111: 3.458738605 | K111: 3.45464358 | L111: 0.0004565709694 | M111: 0.5213675214 | N111: 2.426677652 | O111: 0.07325223506 | P111: 3.028883443 | Q111: 1.667206067 | R111: 0.06779950801 | S111: 0.7603833866 | T111: 2.320637282 | U111: 1.53488102 | V111: 1.548772312 | W111: 2.320637282 | X111: 4.528985507 | Y111: -0.1216757246 | Z111: 6
G112: 277 | H112: 0.09795585349 | I112: 4.468076274 | J112: 3.433825389 | K112: 3.42973085 | L112: 0.0004565709694 | M112: 0.5213675214 | N112: 2.422090766 | O112: 0.07325223506 | P112: 2.985816576 | Q112: 1.654789499 | R112: 0.06779950801 | S112: 0.7603833866 | T112: 2.317131451 | U112: 1.531144988 | V112: 1.548772312 | W112: 2.317131451 | X112: 4.512635379 | Y112: -0.1212364621 | Z112: 6
G113: 278 | H113: 0.09725240259 | I113: 4.453802618 | J113: 3.409180537 | K113: 3.405086479 | L113: 0.0004565709694 | M113: 0.5213675214 | N113: 2.4175314 | O113: 0.07325223506 | P113: 2.943517001 | Q113: 1.642506682 | R113: 0.06779950801 | S113: 0.7603833866 | T113: 2.313647327 | U113: 1.527435833 | V113: 1.548772312 | W113: 2.313647327 | X113: 4.496402878 | Y113: -0.1208003597 | Z113: 6
G114: 279 | H114: 0.09655650213 | I114: 4.439631283 | J114: 3.384800208 | K114: 3.380706626 | L114: 0.0004565709694 | M114: 0.5213675214 | N114: 2.41299929 | O114: 0.07325223506 | P114: 2.90196834 | Q114: 1.630355701 | R114: 0.06779950801 | S114: 0.7603833866 | T114: 2.310184703 | U114: 1.523753267 | V114: 1.548772312 | W114: 2.310184703 | X114: 4.480286738 | Y114: -0.1203673835 | Z114: 6
G115: =G114+1 -> 280 | H115: 0.09586804441 | I115: 4.425561171 | J115: 3.360680631 | K115: 3.356587519 | L115: 0.0004565709694 | M115: 0.5213675214 | N115: 2.408494176 | O115: 0.07325223506 | P115: 2.861154619 | Q115: 1.618334676 | R115: 0.06779950801 | S115: 0.7603833866 | T115: 2.306743372 | U115: 1.520097006 | V115: 1.548772312 | W115: 2.306743372 | X115: 4.464285714 | Y115: -0.1199375 | Z115: 6
G116: 281 | H116: 0.0951869237 | I116: 4.411591203 | J116: 3.336818099 | K116: 3.332725453 | L116: 0.0004565709694 | M116: 0.5213675214 | N116: 2.404015803 | O116: 0.07325223506 | P116: 2.821060263 | Q116: 1.606441761 | R116: 0.06779950801 | S116: 0.7603833866 | T116: 2.303323133 | U116: 1.516466767 | V116: 1.548772312 | W116: 2.303323133 | X116: 4.448398577 | Y116: -0.1195106762 | Z116: 6
G117: 282 | H117: 0.09451303609 | I117: 4.397720312 | J117: 3.313208974 | K117: 3.309116788 | L117: 0.0004565709694 | M117: 0.5213675214 | N117: 2.399563916 | O117: 0.07325223506 | P117: 2.781670078 | Q117: 1.594675143 | R117: 0.06779950801 | S117: 0.7603833866 | T117: 2.299923785 | U117: 1.512862275 | V117: 1.548772312 | W117: 2.299923785 | X117: 4.432624113 | Y117: -0.1190868794 | Z117: 6
G118: 283 | H118: 0.09384627954 | I118: 4.383947448 | J118: 3.28984968 | K118: 3.28575795 | L118: 0.0004565709694 | M118: 0.5213675214 | N118: 2.395138267 | O118: 0.07325223506 | P118: 2.742969246 | Q118: 1.583033038 | R118: 0.06779950801 | S118: 0.7603833866 | T118: 2.29654513 | U118: 1.509283257 | V118: 1.548772312 | W118: 2.29654513 | X118: 4.416961131 | Y118: -0.1186660777 | Z118: 6
G119: 284 | H119: 0.09318655378 | I119: 4.370271577 | J119: 3.266736704 | K119: 3.262645425 | L119: 0.0004565709694 | M119: 0.5213675214 | N119: 2.390738609 | O119: 0.07325223506 | P119: 2.70494331 | Q119: 1.571513696 | R119: 0.06779950801 | S119: 0.7603833866 | T119: 2.293186974 | U119: 1.505729442 | V119: 1.548772312 | W119: 2.293186974 | X119: 4.401408451 | Y119: -0.1182482394 | Z119: 6
G120: 285 | H120: 0.09253376032 | I120: 4.356691677 | J120: 3.243866595 | K120: 3.239775763 | L120: 0.0004565709694 | M120: 0.5213675214 | N120: 2.386364698 | O120: 0.07325223506 | P120: 2.667578166 | Q120: 1.560115398 | R120: 0.06779950801 | S120: 0.7603833866 | T120: 2.289849123 | U120: 1.502200567 | V120: 1.548772312 | W120: 2.289849123 | X120: 4.385964912 | Y120: -0.1178333333 | Z120: 6
G121: 286 | H121: 0.09188780236 | I121: 4.343206741 | J121: 3.221235963 | K121: 3.217145572 | L121: 0.0004565709694 | M121: 0.5213675214 | N121: 2.382016294 | O121: 0.07325223506 | P121: 2.630860054 | Q121: 1.548836453 | R121: 0.06779950801 | S121: 0.7603833866 | T121: 2.286531389 | U121: 1.498696369 | V121: 1.548772312 | W121: 2.286531389 | X121: 4.370629371 | Y121: -0.1174213287 | Z121: 6
G122: =G121+1 -> 287 | H122: 0.09124858481 | I122: 4.329815777 | J122: 3.198841476 | K122: 3.194751522 | L122: 0.0004565709694 | M122: 0.5213675214 | N122: 2.377693161 | O122: 0.07325223506 | P122: 2.594775547 | Q122: 1.537675202 | R122: 0.06779950801 | S122: 0.7603833866 | T122: 2.283233584 | U122: 1.495216591 | V122: 1.548772312 | W122: 2.283233584 | X122: 4.355400697 | Y122: -0.1170121951 | Z122: 6
G123: 288 | H123: 0.0906160142 | I123: 4.316517805 | J123: 3.17667986 | K123: 3.172590338 | L123: 0.0004565709694 | M123: 0.5213675214 | N123: 2.373395063 | O123: 0.07325223506 | P123: 2.559311542 | Q123: 1.526630011 | R123: 0.06779950801 | S123: 0.7603833866 | T123: 2.279955522 | U123: 1.491760978 | V123: 1.548772312 | W123: 2.279955522 | X123: 4.340277778 | Y123: -0.1166059028 | Z123: 6
G124: 289 | H124: 0.08998999871 | I124: 4.303311861 | J124: 3.154747896 | K124: 3.150658803 | L124: 0.0004565709694 | M124: 0.5213675214 | N124: 2.369121771 | O124: 0.07325223506 | P124: 2.52445525 | Q124: 1.515699277 | R124: 0.06779950801 | S124: 0.7603833866 | T124: 2.276697021 | U124: 1.488329279 | V124: 1.548772312 | W124: 2.276697021 | X124: 4.325259516 | Y124: -0.1162024221 | Z124: 6
G125: 290 | H125: 0.08937044806 | I125: 4.290196993 | J125: 3.133042424 | K125: 3.128953754 | L125: 0.0004565709694 | M125: 0.5213675214 | N125: 2.364873055 | O125: 0.07325223506 | P125: 2.490194192 | Q125: 1.504881426 | R125: 0.06779950801 | S125: 0.7603833866 | T125: 2.2734579 | U125: 1.484921247 | V125: 1.548772312 | W125: 2.2734579 | X125: 4.310344828 | Y125: -0.1158017241 | Z125: 6
G126: 291 | H126: 0.08875727356 | I126: 4.277172261 | J126: 3.111560335 | K126: 3.107472084 | L126: 0.0004565709694 | M126: 0.5213675214 | N126: 2.36064869 | O126: 0.07325223506 | P126: 2.456516185 | Q126: 1.494174906 | R126: 0.06779950801 | S126: 0.7603833866 | T126: 2.270237981 | U126: 1.481536638 | V126: 1.548772312 | W126: 2.270237981 | X126: 4.295532646 | Y126: -0.1154037801 | Z126: 6
G127: 292 | H127: 0.088150388 | I127: 4.264236739 | J127: 3.090298574 | K127: 3.086210737 | L127: 0.0004565709694 | M127: 0.5213675214 | N127: 2.356448454 | O127: 0.07325223506 | P127: 2.423409336 | Q127: 1.483578197 | R127: 0.06779950801 | S127: 0.7603833866 | T127: 2.267037088 | U127: 1.478175211 | V127: 1.548772312 | W127: 2.267037088 | X127: 4.280821918 | Y127: -0.1150085616 | Z127: 6
G128: 293 | H128: 0.08754970567 | I128: 4.251389515 | J128: 3.069254138 | K128: 3.065166713 | L128: 0.0004565709694 | M128: 0.5213675214 | N128: 2.352272127 | O128: 0.07325223506 | P128: 2.390862034 | Q128: 1.473089801 | R128: 0.06779950801 | S128: 0.7603833866 | T128: 2.263855048 | U128: 1.474836729 | V128: 1.548772312 | W128: 2.263855048 | X128: 4.266211604 | Y128: -0.114616041 | Z128: 6
G129: 294 | H129: 0.08695514233 | I129: 4.238629687 | J129: 3.048424077 | K129: 3.044337057 | L129: 0.0004565709694 | M129: 0.5213675214 | N129: 2.348119492 | O129: 0.07325223506 | P129: 2.358862946 | Q129: 1.462708248 | R129: 0.06779950801 | S129: 0.7603833866 | T129: 2.260691688 | U129: 1.471520958 | V129: 1.548772312 | W129: 2.260691688 | X129: 4.25170068 | Y129: -0.1142261905 | Z129: 6
G130: 295 | H130: 0.08636661513 | I130: 4.225956366 | J130: 3.027805487 | K130: 3.02371887 | L130: 0.0004565709694 | M130: 0.5213675214 | N130: 2.343990335 | O130: 0.07325223506 | P130: 2.327401002 | Q130: 1.45243209 | R130: 0.06779950801 | S130: 0.7603833866 | T130: 2.257546839 | U130: 1.468227667 | V130: 1.548772312 | W130: 2.257546839 | X130: 4.237288136 | Y130: -0.1138389831 | Z130: 6
G131: 296 | H131: 0.08578404266 | I131: 4.213368675 | J131: 3.007395516 | K131: 3.003309297 | L131: 0.0004565709694 | M131: 0.5213675214 | N131: 2.339884444 | O131: 0.07325223506 | P131: 2.296465394 | Q131: 1.442259907 | R131: 0.06779950801 | S131: 0.7603833866 | T131: 2.254420334 | U131: 1.464956627 | V131: 1.548772312 | W131: 2.254420334 | X131: 4.222972973 | Y131: -0.1134543919 | Z131: 6
G132: 297 | H132: 0.08520734485 | I132: 4.200865751 | J132: 2.987191359 | K132: 2.983105534 | L132: 0.0004565709694 | M132: 0.5213675214 | N132: 2.33580161 | O132: 0.07325223506 | P132: 2.266045568 | Q132: 1.4321903 | R132: 0.06779950801 | S132: 0.7603833866 | T132: 2.251312008 | U132: 1.461707615 | V132: 1.548772312 | W132: 2.251312008 | X132: 4.208754209 | Y132: -0.1130723906 | Z132: 6
G133: =G132+1 -> 298 | H133: 0.08463644298 | I133: 4.188446738 | J133: 2.967190258 | K133: 2.963104824 | L133: 0.0004565709694 | M133: 0.5213675214 | N133: 2.331741627 | O133: 0.07325223506 | P133: 2.236131215 | Q133: 1.422221895 | R133: 0.06779950801 | S133: 0.7603833866 | T133: 2.248221697 | U133: 1.458480408 | V133: 1.548772312 | W133: 2.248221697 | X133: 4.194630872 | Y133: -0.112692953 | Z133: 6
G134: 299 | H134: 0.08407125963 | I134: 4.176110796 | J134: 2.947389502 | K134: 2.943304454 | L134: 0.0004565709694 | M134: 0.5213675214 | N134: 2.32770429 | O134: 0.07325223506 | P134: 2.206712265 | Q134: 1.41235334 | R134: 0.06779950801 | S134: 0.7603833866 | T134: 2.24514924 | U134: 1.455274788 | V134: 1.548772312 | W134: 2.24514924 | X134: 4.180602007 | Y134: -0.1123160535 | Z134: 6
G135: 300 | H135: =(Iout*(Vout_nom^2)*2.5*Rsense*K_1)/(eff*(G135^2)*K_FQ)*us -> 0.08351171869 | I135: =(1*10^-9*(5*10^8*SQRT(fsw*kHz)+(1.09655978*10^10)*SQRT(ftyp)*SQRT(H135)))/SQRT(fsw*kHz) -> 4.163857093 | J135: =(b_1^3/(27*a_1^3))-(d_1^3/27)+SQRT((ftyp)^2*H135^2/(4*a_1^2*c_1^2*(fsw*kHz)^2))+(b_1^3*(ftyp)*H135/(27*a_1^4*c_1*(fsw*kHz))-(d_1^3*(ftyp)*H135/(27*a_1*c_1*(fsw*kHz)))+(b_1*d_1^2*(ftyp)*H135/(9*a_1^2*c_1*(fsw*kHz)))-(b_1^2*d_1*(ftyp)*H135/(9*a_1^3*c_1*(fsw*kHz)))) -> 2.927786422 | K135: =(b_1*d_1^2/(9*a_1))-(b_1^2*d_1/(9*a_1^2))+(ftyp*H135/(2*a_1*c_1*fsw*kHz)) -> 2.923701757 | L135: =(d_1^2/9)+(b_1^2/(9*a_1^2))-(2*b_1*d_1/(9*a_1)) -> 0.0004565709694 | M135: =((b_1*c_1*fsw*kHz)+(2*a_1*c_1*d_1*fsw*kHz))/(3*a_1*c_1*fsw*kHz) -> 0.5213675214 | N135: 2.323689399 | O135: =(b_2^3/(27*a_2^3))-(d_2^3/27) -> 0.07325223506 | P135: =(ftyp^2*H135^2/(4*a_2^2*c_2^2*(fsw*kHz)^2))+(b_2^3*ftyp*H135/(27*a_2^4*c_2*(fsw*kHz)))-(d_2^3*ftyp*H135/(27*a_2*c_2*(fsw*kHz)))+(b_2*d_2^2*ftyp*H135/(9*a_2^2*c_2*(fsw*kHz)))-(b_2^2*d_2*ftyp*H135/(9*a_2^3*c_2*(fsw*kHz))) -> 2.177778885 | Q135: =(b_2*d_2^2/(9*a_2))-(b_2^2*d_2/(9*a_2^2))+(ftyp*H135/(2*a_2*c_2*(fsw*kHz))) -> 1.402583306 | R135: =(d_2^2/9)+(b_2^2/(9*a_2^2))-(2*b_2*d_2/(9*a_2)) -> 0.06779950801 | S135: =(b_2*c_2*(fsw*kHz)+2*a_2*c_2*d_2*(fsw*kHz))/(3*a_2*c_2*(fsw*kHz)) -> 0.7603833866 | T135: 2.242094478 | U135: =c_3+(SQRT(ftyp)*SQRT(H135)/(SQRT(a_3)*SQRT(b_3)*SQRT(fsw*kHz))) -> 1.452090539 | V135: =(a_4*(fsw*kHz)*b_4/ftyp) -> 1.548772312 | W135: 2.242094478 | X135: =Pin_max/G135 -> 4.166666667 | Y135: =-X135*Rsense*1.414 -> -0.1119416667 | Z135: =MIN(6,MAX(0.5,Beta*G*($Y135-Voff_trim)/(MAX(0,MIN(4.5,W135)-Alpha1_A)+MAX(0,MIN(4.5,W135)-Alpha1_B)-Alpha1_C)+Alpha2)) -> 6
G136: 301 | H136: 0.0829577453 | I136: 4.15168481 | J136: 2.908378398 | K136: 2.904294111 | L136: 0.0004565709694 | M136: 0.5213675214 | N136: =(J136+K136)^(1/3)+(L136/(J136^(1/3)))+M136 -> 2.319696754 | O136: 0.07325223506 | P136: 2.149321464 | Q136: 1.392910486 | R136: 0.06779950801 | S136: 0.7603833866 | T136: =((O136+SQRT(P136)+Q136)^(1/3))+(R136/((O136+SQRT(P136)+Q136)^(1/3)))+S136 -> 2.239057254 | U136: 1.448927447 | V136: 1.548772312 | W136: =IF(I136>=0.5,IF(I136<1,I136,IF(N136>=1,IF(N136<2,N136,IF(T136>=2,IF(T136<4.5,T136,IF(U136>=4.5,IF(U136<4.6,U136,V136)))))))) -> 2.239057254 | X136: 4.15282392 | Y136: -0.1115697674 | Z136: 6
G137: 302 | H137: 0.08240926584 | I137: 4.139593139 | J137: 2.889162849 | K137: 2.885078937 | L137: 0.0004565709694 | M137: 0.5213675214 | N137: 2.315726159 | O137: 0.07325223506 | P137: 2.121330618 | Q137: 1.383333594 | R137: 0.06779950801 | S137: 0.7603833866 | T137: 2.236037412 | U137: 1.445785303 | V137: 1.548772312 | W137: 2.236037412 | X137: 4.139072848 | Y137: -0.1112003311 | Z137: 6
G138: 303 | H138: 0.08186620791 | I138: 4.12758128 | J138: 2.870137239 | K138: 2.866053698 | L138: 0.0004565709694 | M138: 0.5213675214 | N138: 2.31177742 | O138: 0.07325223506 | P138: 2.093797173 | Q138: 1.373851366 | R138: 0.06779950801 | S138: 0.7603833866 | T138: 2.233034798 | U138: 1.4426639 | V138: 1.548772312 | W138: 2.233034798 | X138: 4.125412541 | Y138: -0.1108333333 | Z138: 6
G139: 304 | H139: 0.08132850028 | I139: 4.115648447 | J139: 2.851299073 | K139: 2.8472159 | L139: 0.0004565709694 | M139: 0.5213675214 | N139: 2.307850344 | O139: 0.07325223506 | P139: 2.06671217 | Q139: 1.364462559 | R139: 0.06779950801 | S139: 0.7603833866 | T139: 2.230049261 | U139: 1.439563032 | V139: 1.548772312 | W139: 2.230049261 | X139: 4.111842105 | Y139: -0.11046875 | Z139: 6
G140: 305 | H140: 0.08079607291 | I140: 4.103793862 | J140: 2.832645896 | K140: 2.828563087 | L140: 0.0004565709694 | M140: 0.5213675214 | N140: 2.303944743 | O140: 0.07325223506 | P140: 2.040066851 | Q140: 1.355165949 | R140: 0.06779950801 | S140: 0.7603833866 | T140: 2.227080652 | U140: 1.436482497 | V140: 1.548772312 | W140: 2.227080652 | X140: 4.098360656 | Y140: -0.1101065574 | Z140: 6
G141: 306 | H141: 0.08026885687 | I141: 4.092016758 | J141: 2.814175295 | K141: 2.810092846 | L141: 0.0004565709694 | M141: 0.5213675214 | N141: 2.300060429 | O141: 0.07325223506 | P141: 2.013852658 | Q141: 1.345960334 | R141: 0.06779950801 | S141: 0.7603833866 | T141: 2.224128821 | U141: 1.433422097 | V141: 1.548772312 | W141: 2.224128821 | X141: 4.08496732 | Y141: -0.109746732 | Z141: 6
G142: 307 | H142: 0.07974678439 | I142: 4.080316378 | J142: 2.795884894 | K142: 2.791802802 | L142: 0.0004565709694 | M142: 0.5213675214 | N142: 2.296197216 | O142: 0.07325223506 | P142: 1.988061226 | Q142: 1.336844529 | R142: 0.06779950801 | S142: 0.7603833866 | T142: 2.221193623 | U142: 1.430381634 | V142: 1.548772312 | W142: 2.221193623 | X142: 4.071661238 | Y142: -0.1093892508 | Z142: 6
G143: 308 | H143: 0.07922978877 | I143: 4.068691974 | J143: 2.777772356 | K143: 2.773690618 | L143: 0.0004565709694 | M143: 0.5213675214 | N143: 2.292354923 | O143: 0.07325223506 | P143: 1.962684381 | Q143: 1.327817371 | R143: 0.06779950801 | S143: 0.7603833866 | T143: 2.218274913 | U143: 1.427360914 | V143: 1.548772312 | W143: 2.218274913 | X143: 4.058441558 | Y143: -0.1090340909 | Z143: 6
G144: 309 | H144: 0.0787178044 | I144: 4.057142809 | J144: 2.759835384 | K144: 2.755753996 | L144: 0.0004565709694 | M144: 0.5213675214 | N144: 2.288533369 | O144: 0.07325223506 | P144: 1.937714132 | Q144: 1.318877712 | R144: 0.06779950801 | S144: 0.7603833866 | T144: 2.215372549 | U144: 1.424359746 | V144: 1.548772312 | W144: 2.215372549 | X144: 4.045307443 | Y144: -0.1086812298 | Z144: 6
G145: 310 | H145: 0.07821076672 | I145: 4.045668155 | J145: 2.742071716 | K145: 2.737990674 | L145: 0.0004565709694 | M145: 0.5213675214 | N145: 2.284732374 | O145: 0.07325223506 | P145: 1.913142666 | Q145: 1.310024427 | R145: 0.06779950801 | S145: 0.7603833866 | T145: 2.212486388 | U145: 1.421377941 | V145: 1.548772312 | W145: 2.212486388 | X145: 4.032258065 | Y145: -0.1083306452 | Z145: 6
G146: =G145+1 -> 311 | H146: 0.07770861222 | I146: 4.034267292 | J146: 2.724479125 | K146: 2.720398427 | L146: 0.0004565709694 | M146: 0.5213675214 | N146: 2.280951764 | O146: 0.07325223506 | P146: 1.888962346 | Q146: 1.301256406 | R146: 0.06779950801 | S146: 0.7603833866 | T146: 2.209616293 | U146: 1.418415311 | V146: 1.548772312 | W146: 2.209616293 | X146: 4.019292605 | Y146: -0.1079823151 | Z146: 6
G147: 312 | H147: 0.07721127837 | I147: 4.022939513 | J147: 2.707055423 | K147: 2.702975064 | L147: 0.0004565709694 | M147: 0.5213675214 | N147: 2.277191363 | O147: 0.07325223506 | P147: 1.865165707 | Q147: 1.292572558 | R147: 0.06779950801 | S147: 0.7603833866 | T147: 2.206762125 | U147: 1.415471672 | V147: 1.548772312 | W147: 2.206762125 | X147: 4.006410256 | Y147: -0.1076362179 | Z147: 6
G148: 313 | H148: 0.07671870369 | I148: 4.011684115 | J148: 2.689798454 | K148: 2.685718432 | L148: 0.0004565709694 | M148: 0.5213675214 | N148: 2.273450999 | O148: 0.07325223506 | P148: 1.841745446 | Q148: 1.283971809 | R148: 0.06779950801 | S148: 0.7603833866 | T148: 2.203923747 | U148: 1.412546842 | V148: 1.548772312 | W148: 2.203923747 | X148: 3.993610224 | Y148: -0.1072923323 | Z148: 6
G149: 314 | H149: 0.07623082764 | I149: 4.000500407 | J149: 2.672706098 | K149: 2.66862641 | L149: 0.0004565709694 | M149: 0.5213675214 | N149: 2.269730501 | O149: 0.07325223506 | P149: 1.818694424 | Q149: 1.275453101 | R149: 0.06779950801 | S149: 0.7603833866 | T149: 2.201101025 | U149: 1.409640642 | V149: 1.548772312 | W149: 2.201101025 | X149: 3.98089172 | Y149: -0.1069506369 | Z149: 6
G150: 315 | H150: 0.07574759065 | I150: 3.989387708 | J150: 2.655776268 | K150: 2.65169691 | L150: 0.0004565709694 | M150: 0.5213675214 | N150: 2.266029703 | O150: 0.07325223506 | P150: 1.796005661 | Q150: 1.267015395 | R150: 0.06779950801 | S150: 0.7603833866 | T150: 2.198293827 | U150: 1.406752894 | V150: 1.548772312 | W150: 2.198293827 | X150: 3.968253968 | Y150: -0.1066111111 | Z150: 6
G151: 316 | H151: 0.07526893409 | I151: 3.978345341 | J151: 2.63900691 | K151: 2.634927879 | L151: 0.0004565709694 | M151: 0.5213675214 | N151: 2.262348436 | O151: 0.07325223506 | P151: 1.773672328 | Q151: 1.258657667 | R151: 0.06779950801 | S151: 0.7603833866 | T151: 2.19550202 | U151: 1.403883423 | V151: 1.548772312 | W151: 2.19550202 | X151: 3.955696203 | Y151: -0.1062737342 | Z151: 6
G152: 317 | H152: 0.07479480025 | I152: 3.967372643 | J152: 2.622396002 | K152: 2.618317295 | L152: 0.0004565709694 | M152: 0.5213675214 | N152: 2.258686538 | O152: 0.07325223506 | P152: 1.751687747 | Q152: 1.250378909 | R152: 0.06779950801 | S152: 0.7603833866 | T152: 2.192725475 | U152: 1.401032056 | V152: 1.548772312 | W152: 2.192725475 | X152: 3.943217666 | Y152: -0.1059384858 | Z152: 6
G153: 318 | H153: 0.07432513233 | I153: 3.956468956 | J153: 2.605941554 | K153: 2.601863168 | L153: 0.0004565709694 | M153: 0.5213675214 | N153: 2.255043845 | O153: 0.07325223506 | P153: 1.730045387 | Q153: 1.24217813 | R153: 0.06779950801 | S153: 0.7603833866 | T153: 2.189964063 | U153: 1.398198621 | V153: 1.548772312 | W153: 2.189964063 | X153: 3.93081761 | Y153: -0.1056053459 | Z153: 6
G154: 319 | H154: 0.07385987443 | I154: 3.94563363 | J154: 2.589641607 | K154: 2.585563539 | L154: 0.0004565709694 | M154: 0.5213675214 | N154: 2.251420196 | O154: 0.07325223506 | P154: 1.708738858 | Q154: 1.234054354 | R154: 0.06779950801 | S154: 0.7603833866 | T154: 2.187217657 | U154: 1.395382952 | V154: 1.548772312 | W154: 2.187217657 | X154: 3.918495298 | Y154: -0.1052742947 | Z154: 6
G155: =G154+1 -> 320 | H155: 0.0733989715 | I155: 3.934866025 | J155: 2.573494233 | K155: 2.56941648 | L155: 0.0004565709694 | M155: 0.5213675214 | N155: 2.247815434 | O155: 0.07325223506 | P155: 1.68776191 | Q155: 1.226006619 | R155: 0.06779950801 | S155: 0.7603833866 | T155: 2.184486132 | U155: 1.39258488 | V155: 1.548772312 | W155: 2.184486132 | X155: 3.90625 | Y155: -0.1049453125 | Z155: 6
G156: 321 | H156: 0.07294236937 | I156: 3.924165508 | J156: 2.557497535 | K156: 2.553420094 | L156: 0.0004565709694 | M156: 0.5213675214 | N156: 2.2442294 | O156: 0.07325223506 | P156: 1.667108426 | Q156: 1.218033979 | R156: 0.06779950801 | S156: 0.7603833866 | T156: 2.181769363 | U156: 1.389804242 | V156: 1.548772312 | W156: 2.181769363 | X156: 3.894080997 | Y156: -0.1046183801 | Z156: 6
G157: 322 | H157: 0.07249001468 | I157: 3.913531453 | J157: 2.541649642 | K157: 2.53757251 | L157: 0.0004565709694 | M157: 0.5213675214 | N157: 2.24066194 | O157: 0.07325223506 | P157: 1.646772426 | Q157: 1.210135502 | R157: 0.06779950801 | S157: 0.7603833866 | T157: 2.179067229 | U157: 1.387040875 | V157: 1.548772312 | W157: 2.179067229 | X157: 3.881987578 | Y157: -0.1042934783 | Z157: 6
G158: 323 | H158: 0.07204185492 | I158: 3.902963244 | J158: 2.525948715 | K158: 2.52187189 | L158: 0.0004565709694 | M158: 0.5213675214 | N158: 2.237112901 | O158: 0.07325223506 | P158: 1.626748053 | Q158: 1.202310273 | R158: 0.06779950801 | S158: 0.7603833866 | T158: 2.176379606 | U158: 1.384294618 | V158: 1.548772312 | W158: 2.176379606 | X158: 3.86996904 | Y158: -0.1039705882 | Z158: 6
G159: 324 | H159: 0.07159783838 | I159: 3.892460271 | J159: 2.510392943 | K159: 2.506316421 | L159: 0.0004565709694 | M159: 0.5213675214 | N159: 2.23358213 | O159: 0.07325223506 | P159: 1.607029581 | Q159: 1.194557388 | R159: 0.06779950801 | S159: 0.7603833866 | T159: 2.173706377 | U159: 1.381565314 | V159: 1.548772312 | W159: 2.173706377 | X159: 3.858024691 | Y159: -0.1036496914 | Z159: 6
G160: 325 | H160: 0.07115791415 | I160: 3.882021932 | J160: 2.494980542 | K160: 2.490904321 | L160: 0.0004565709694 | M160: 0.5213675214 | N160: 2.230069478 | O160: 0.07325223506 | P160: 1.587611402 | Q160: 1.186875957 | R160: 0.06779950801 | S160: 0.7603833866 | T160: 2.171047421 | U160: 1.378852805 | V160: 1.548772312 | W160: 2.171047421 | X160: 3.846153846 | Y160: -0.1033307692 | Z160: 6
G161: 326 | H161: 0.07072203209 | I161: 3.871647632 | J161: 2.479709754 | K161: 2.475633831 | L161: 0.0004565709694 | M161: 0.5213675214 | N161: 2.226574797 | O161: 0.07325223506 | P161: 1.568488032 | Q161: 1.179265106 | R161: 0.06779950801 | S161: 0.7603833866 | T161: 2.168402623 | U161: 1.376156938 | V161: 1.548772312 | W161: 2.168402623 | X161: 3.834355828 | Y161: -0.1030138037 | Z161: 6
G162: 327 | H162: 0.07029014282 | I162: 3.861336783 | J162: 2.464578852 | K162: 2.460503224 | L162: 0.0004565709694 | M162: 0.5213675214 | N162: 2.223097939 | O162: 0.07325223506 | P162: 1.5496541 | Q162: 1.171723973 | R162: 0.06779950801 | S162: 0.7603833866 | T162: 2.165771865 | U162: 1.373477558 | V162: 1.548772312 | W162: 2.165771865 | X162: 3.822629969 | Y162: -0.1026987768 | Z162: 6
G163: 328 | H163: 0.06986219774 | I163: 3.851088805 | J163: 2.449586131 | K163: 2.445510795 | L163: 0.0004565709694 | M163: 0.5213675214 | N163: 2.219638759 | O163: 0.07325223506 | P163: 1.531104351 | Q163: 1.164251708 | R163: 0.06779950801 | S163: 0.7603833866 | T163: 2.163155033 | U163: 1.370814517 | V163: 1.548772312 | W163: 2.163155033 | X163: 3.81097561 | Y163: -0.1023856707 | Z163: 6
G164: 329 | H164: 0.06943814896 | I164: 3.840903124 | J164: 2.434729913 | K164: 2.430654868 | L164: 0.0004565709694 | M164: 0.5213675214 | N164: 2.216197116 | O164: 0.07325223506 | P164: 1.51283364 | Q164: 1.156847476 | R164: 0.06779950801 | S164: 0.7603833866 | T164: 2.160552015 | U164: 1.368167665 | V164: 1.548772312 | W164: 2.160552015 | X164: 3.799392097 | Y164: -0.1020744681 | Z164: 6
G165: 330 | H165: 0.06901794933 | I165: 3.830779175 | J165: 2.420008548 | K165: 2.415933789 | L165: 0.0004565709694 | M165: 0.5213675214 | N165: 2.212772866 | O165: 0.07325223506 | P165: 1.494836932 | Q165: 1.149510453 | R165: 0.06779950801 | S165: 0.7603833866 | T165: 2.157962698 | U165: 1.365536853 | V165: 1.548772312 | W165: 2.157962698 | X165: 3.787878788 | Y165: -0.1017651515 | Z165: 6
G166: 331 | H166: 0.0686015524 | I166: 3.820716399 | J166: 2.405420407 | K166: 2.401345933 | L166: 0.0004565709694 | M166: 0.5213675214 | N166: 2.209365869 | O166: 0.07325223506 | P166: 1.477109297 | Q166: 1.142239828 | R166: 0.06779950801 | S166: 0.7603833866 | T166: 2.15538697 | U166: 1.362921938 | V166: 1.548772312 | W166: 2.15538697 | X166: 3.776435045 | Y166: -0.1014577039 | Z166: 6
G167: 332 | H167: =(Iout*(Vout_nom^2)*2.5*Rsense*K_1)/(eff*(G167^2)*K_FQ)*us -> 0.06818891242 | I167: =(1*10^-9*(5*10^8*SQRT(fsw*kHz)+(1.09655978*10^10)*SQRT(ftyp)*SQRT(H167)))/SQRT(fsw*kHz) -> 3.810714241 | J167: =(b_1^3/(27*a_1^3))-(d_1^3/27)+SQRT((ftyp)^2*H167^2/(4*a_1^2*c_1^2*(fsw*kHz)^2))+(b_1^3*(ftyp)*H167/(27*a_1^4*c_1*(fsw*kHz))-(d_1^3*(ftyp)*H167/(27*a_1*c_1*(fsw*kHz)))+(b_1*d_1^2*(ftyp)*H167/(9*a_1^2*c_1*(fsw*kHz)))-(b_1^2*d_1*(ftyp)*H167/(9*a_1^3*c_1*(fsw*kHz)))) -> 2.390963888 | K167: =(b_1*d_1^2/(9*a_1))-(b_1^2*d_1/(9*a_1^2))+(ftyp*H167/(2*a_1*c_1*fsw*kHz)) -> 2.386889696 | L167: =(d_1^2/9)+(b_1^2/(9*a_1^2))-(2*b_1*d_1/(9*a_1)) -> 0.0004565709694 | M167: =((b_1*c_1*fsw*kHz)+(2*a_1*c_1*d_1*fsw*kHz))/(3*a_1*c_1*fsw*kHz) -> 0.5213675214 | N167: 2.205975987 | O167: =(b_2^3/(27*a_2^3))-(d_2^3/27) -> 0.07325223506 | P167: =(ftyp^2*H167^2/(4*a_2^2*c_2^2*(fsw*kHz)^2))+(b_2^3*ftyp*H167/(27*a_2^4*c_2*(fsw*kHz)))-(d_2^3*ftyp*H167/(27*a_2*c_2*(fsw*kHz)))+(b_2*d_2^2*ftyp*H167/(9*a_2^2*c_2*(fsw*kHz)))-(b_2^2*d_2*ftyp*H167/(9*a_2^3*c_2*(fsw*kHz))) -> 1.459645907 | Q167: =(b_2*d_2^2/(9*a_2))-(b_2^2*d_2/(9*a_2^2))+(ftyp*H167/(2*a_2*c_2*(fsw*kHz))) -> 1.135034803 | R167: =(d_2^2/9)+(b_2^2/(9*a_2^2))-(2*b_2*d_2/(9*a_2)) -> 0.06779950801 | S167: =(b_2*c_2*(fsw*kHz)+2*a_2*c_2*d_2*(fsw*kHz))/(3*a_2*c_2*(fsw*kHz)) -> 0.7603833866 | T167: 2.152824723 | U167: =c_3+(SQRT(ftyp)*SQRT(H167)/(SQRT(a_3)*SQRT(b_3)*SQRT(fsw*kHz))) -> 1.360322776 | V167: =(a_4*(fsw*kHz)*b_4/ftyp) -> 1.548772312 | W167: 2.152824723 | X167: =Pin_max/G167 -> 3.765060241 | Y167: =-X167*Rsense*1.414 -> -0.1011521084 | Z167: =MIN(6,MAX(0.5,Beta*G*($Y167-Voff_trim)/(MAX(0,MIN(4.5,W167)-Alpha1_A)+MAX(0,MIN(4.5,W167)-Alpha1_B)-Alpha1_C)+Alpha2)) -> 6
G168: 333 | H168: 0.06777998433 | I168: 3.800772156 | J168: 2.376637412 | K168: 2.3725635 | L168: 0.0004565709694 | M168: 0.5213675214 | N168: 2.202603083 | O168: 0.07325223506 | P168: 1.442442036 | Q168: 1.12789459 | R168: 0.06779950801 | S168: 0.7603833866 | T168: 2.150275848 | U168: 1.357739224 | V168: 1.548772312 | W168: 2.150275848 | X168: 3.753753754 | Y168: -0.1008483483 | Z168: 6
G169: 334 | H169: 0.06737472374 | I169: 3.790889605 | J169: 2.362439424 | K169: 2.358365789 | L169: 0.0004565709694 | M169: 0.5213675214 | N169: 2.199247021 | O169: 0.07325223506 | P169: 1.425493058 | Q169: 1.120818415 | R169: 0.06779950801 | S169: 0.7603833866 | T169: 2.147740239 | U169: 1.355171143 | V169: 1.548772312 | W169: 2.147740239 | X169: 3.74251497 | Y169: -0.1005464072 | Z169: 6
G170: 335 | H170: 0.06697308694 | I170: 3.781066053 | J170: 2.348368393 | K170: 2.344295033 | L170: 0.0004565709694 | M170: 0.5213675214 | N170: 2.195907666 | O170: 0.07325223506 | P170: 1.40879444 | Q170: 1.113805514 | R170: 0.06779950801 | S170: 0.7603833866 | T170: 2.145217788 | U170: 1.352618393 | V170: 1.548772312 | W170: 2.145217788 | X170: 3.731343284 | Y170: -0.1002462687 | Z170: 6
G171: =G170+1 -> 336 | H171: 0.06657503084 | I171: 3.771300976 | J171: 2.334422809 | K171: 2.330349721 | L171: 0.0004565709694 | M171: 0.5213675214 | N171: 2.192584887 | O171: 0.07325223506 | P171: 1.392341744 | Q171: 1.106855134 | R171: 0.06779950801 | S171: 0.7603833866 | T171: 2.142708391 | U171: 1.350080838 | V171: 1.548772312 | W171: 2.142708391 | X171: 3.720238095 | Y171: -0.09994791667 | Z171: 6
G172: 337 | H172: 0.06618051301 | I172: 3.761593851 | J172: 2.320601185 | K172: 2.316528367 | L172: 0.0004565709694 | M172: 0.5213675214 | N172: 2.189278552 | O172: 0.07325223506 | P172: 1.376130626 | Q172: 1.099966536 | R172: 0.06779950801 | S172: 0.7603833866 | T172: 2.140211944 | U172: 1.347558343 | V172: 1.548772312 | W172: 2.140211944 | X172: 3.709198813 | Y172: -0.09965133531 | Z172: 6
G173: 338 | H173: 0.06578949163 | I173: 3.751944165 | J173: 2.306902057 | K173: 2.302829506 | L173: 0.0004565709694 | M173: 0.5213675214 | N173: 2.185988531 | O173: 0.07325223506 | P173: 1.360156828 | Q173: 1.093138989 | R173: 0.06779950801 | S173: 0.7603833866 | T173: 2.137728345 | U173: 1.345050774 | V173: 1.548772312 | W173: 2.137728345 | X173: 3.698224852 | Y173: -0.09935650888 | Z173: 6
G174: 339 | H174: 0.06540192551 | I174: 3.74235141 | J174: 2.293323981 | K174: 2.289251695 | L174: 0.0004565709694 | M174: 0.5213675214 | N174: 2.182714696 | O174: 0.07325223506 | P174: 1.344416182 | Q174: 1.086371773 | R174: 0.06779950801 | S174: 0.7603833866 | T174: 2.135257492 | U174: 1.342557999 | V174: 1.548772312 | W174: 2.135257492 | X174: 3.687315634 | Y174: -0.09906342183 | Z174: 6
G175: 340 | H175: 0.06501777407 | I175: 3.732815082 | J175: 2.279865536 | K175: 2.275793512 | L175: 0.0004565709694 | M175: 0.5213675214 | N175: 2.17945692 | O175: 0.07325223506 | P175: 1.328904602 | Q175: 1.07966418 | R175: 0.06779950801 | S175: 0.7603833866 | T175: 2.132799285 | U175: 1.340079887 | V175: 1.548772312 | W175: 2.132799285 | X175: 3.676470588 | Y175: -0.09877205882 | Z175: 6
G176: 341 | H176: 0.06463699729 | I176: 3.723334686 | J176: 2.266525319 | K176: 2.262453556 | L176: 0.0004565709694 | M176: 0.5213675214 | N176: 2.176215077 | O176: 0.07325223506 | P176: 1.313618089 | Q176: 1.073015512 | R176: 0.06779950801 | S176: 0.7603833866 | T176: 2.130353624 | U176: 1.33761631 | V176: 1.548772312 | W176: 2.130353624 | X176: 3.66568915 | Y176: -0.09848240469 | Z176: 6
G177: 342 | H177: 0.06425955578 | I177: 3.713909731 | J177: 2.253301951 | K177: 2.249230445 | L177: 0.0004565709694 | M177: 0.5213675214 | N177: 2.172989042 | O177: 0.07325223506 | P177: 1.298552724 | Q177: 1.06642508 | R177: 0.06779950801 | S177: 0.7603833866 | T177: 2.127920411 | U177: 1.335167139 | V177: 1.548772312 | W177: 2.127920411 | X177: 3.65497076 | Y177: -0.09819444444 | Z177: 6
G178: 343 | H178: 0.06388541069 | I178: 3.704539732 | J178: 2.24019407 | K178: 2.23612282 | L178: 0.0004565709694 | M178: 0.5213675214 | N178: 2.169778694 | O178: 0.07325223506 | P178: 1.283704666 | Q178: 1.059892206 | R178: 0.06779950801 | S178: 0.7603833866 | T178: 2.12549955 | U178: 1.33273225 | V178: 1.548772312 | W178: 2.12549955 | X178: 3.644314869 | Y178: -0.09790816327 | Z178: 6
G179: 344 | H179: 0.06351452375 | I179: 3.695224209 | J179: 2.227200336 | K179: 2.22312934 | L179: 0.0004565709694 | M179: 0.5213675214 | N179: 2.166583909 | O179: 0.07325223506 | P179: 1.269070155 | Q179: 1.053416223 | R179: 0.06779950801 | S179: 0.7603833866 | T179: 2.123090943 | U179: 1.330311516 | V179: 1.548772312 | W179: 2.123090943 | X179: 3.63372093 | Y179: -0.09762354651 | Z179: 6
G180: 345 | H180: 0.06314685723 | I180: 3.68596269 | J180: 2.214319427 | K180: 2.210248683 | L180: 0.0004565709694 | M180: 0.5213675214 | N180: 2.163404569 | O180: 0.07325223506 | P180: 1.254645502 | Q180: 1.04699647 | R180: 0.06779950801 | S180: 0.7603833866 | T180: 2.120694497 | U180: 1.327904816 | V180: 1.548772312 | W180: 2.120694497 | X180: 3.623188406 | Y180: -0.09734057971 | Z180: 6
G181: =G180+1 -> 346 | H181: 0.06278237397 | I181: 3.676754705 | J181: 2.201550041 | K181: 2.197479546 | L181: 0.0004565709694 | M181: 0.5213675214 | N181: 2.160240553 | O181: 0.07325223506 | P181: 1.240427097 | Q181: 1.0406323 | R181: 0.06779950801 | S181: 0.7603833866 | T181: 2.118310115 | U181: 1.325512028 | V181: 1.548772312 | W181: 2.118310115 | X181: 3.612716763 | Y181: -0.09705924855 | Z181: 6
G182: 347 | H182: 0.06242103732 | I182: 3.667599792 | J182: 2.188890894 | K182: 2.184820645 | L182: 0.0004565709694 | M182: 0.5213675214 | N182: 2.157091745 | O182: 0.07325223506 | P182: 1.2264114 | Q182: 1.034323071 | R182: 0.06779950801 | S182: 0.7603833866 | T182: 2.115937707 | U182: 1.323133031 | V182: 1.548772312 | W182: 2.115937707 | X182: 3.602305476 | Y182: -0.0967795389 | Z182: 6
G183: 348 | H183: 0.06206281115 | I183: 3.658497494 | J183: 2.176340721 | K183: 2.172270717 | L183: 0.0004565709694 | M183: 0.5213675214 | N183: 2.153958026 | O183: 0.07325223506 | P183: 1.212594942 | Q183: 1.028068155 | R183: 0.06779950801 | S183: 0.7603833866 | T183: 2.113577178 | U183: 1.320767706 | V183: 1.548772312 | W183: 2.113577178 | X183: 3.591954023 | Y183: -0.09650143678 | Z183: 6
G184: 349 | H184: 0.06170765989 | I184: 3.649447358 | J184: 2.163898274 | K184: 2.159828513 | L184: 0.0004565709694 | M184: 0.5213675214 | N184: 2.150839283 | O184: 0.07325223506 | P184: 1.198974324 | Q184: 1.021866929 | R184: 0.06779950801 | S184: 0.7603833866 | T184: 2.111228439 | U184: 1.318415936 | V184: 1.548772312 | W184: 2.111228439 | X184: 3.581661891 | Y184: -0.09622492837 | Z184: 6
G185: 350 | H185: 0.06135554843 | I185: 3.640448937 | J185: 2.151562324 | K185: 2.147492804 | L185: 0.0004565709694 | M185: 0.5213675214 | N185: 2.1477354 | O185: 0.07325223506 | P185: 1.185546212 | Q185: 1.01571878 | R185: 0.06779950801 | S185: 0.7603833866 | T185: 2.108891399 | U185: 1.316077605 | V185: 1.548772312 | W185: 2.108891399 | X185: 3.571428571 | Y185: -0.09595 | Z185: 6
G186: 351 | H186: 0.06100644217 | I186: 3.631501789 | J186: 2.13933166 | K186: 2.135262378 | L186: 0.0004565709694 | M186: 0.5213675214 | N186: 2.144646266 | O186: 0.07325223506 | P186: 1.172307341 | Q186: 1.009623104 | R186: 0.06779950801 | S186: 0.7603833866 | T186: 2.106565968 | U186: 1.313752597 | V186: 1.548772312 | W186: 2.106565968 | X186: 3.561253561 | Y186: -0.09567663818 | Z186: 6
G187: 352 | H187: 0.06066030703 | I187: 3.622605477 | J187: 2.127205086 | K187: 2.12313604 | L187: 0.0004565709694 | M187: 0.5213675214 | N187: 2.141571767 | O187: 0.07325223506 | P187: 1.15925451 | Q187: 1.003579307 | R187: 0.06779950801 | S187: 0.7603833866 | T187: 2.104252059 | U187: 1.3114408 | V187: 1.548772312 | W187: 2.104252059 | X187: 3.551136364 | Y187: -0.09540482955 | Z187: 6
G189: VCOMP as a function of Load at Given line voltage
G190: %Full Load | H190: M1M2 | I190: VCOMP1 | J190: K1V2 | K190: K2V2 | L190: K3V2 | M190: K4V2 | N190: VCOMP2 | O190: K1V3 | P190: K2V3 | Q190: K3V3 | R190: K4V3 | S190: K5V3 | T190: VCOMP3 | U190: VCOMP4 | V190: VCOMP5 | W190: VCOMP | X190: IAC RMS | Y190: ISENSE_Pk | Z190: ICOMP
G191: 1 | H191: =(((G191/100)*Iout)*(Vout_nom^2)*2.5*Rsense*K_1)/(eff*(Vline^2)*K_FQ)*us -> 0.00155290386 | I191: =(1*10^-9*(5*10^8*SQRT(fsw*kHz)+(1.09655978*10^10)*SQRT(ftyp)*SQRT(H191)))/SQRT(fsw*kHz) -> 0.9996168763 | J191: =(b_1^3/(27*a_1^3))-(d_1^3/27)+SQRT((ftyp)^2*H191^2/(4*a_1^2*c_1^2*(fsw*kHz)^2))+(b_1^3*(ftyp)*H191/(27*a_1^4*c_1*(fsw*kHz))-(d_1^3*(ftyp)*H191/(27*a_1*c_1*(fsw*kHz)))+(b_1*d_1^2*(ftyp)*H191/(9*a_1^2*c_1*(fsw*kHz)))-(b_1^2*d_1*(ftyp)*H191/(9*a_1^3*c_1*(fsw*kHz)))) -> 0.05642344035 | K191: =(b_1*d_1^2/(9*a_1))-(b_1^2*d_1/(9*a_1^2))+(ftyp*H191/(2*a_1*c_1*fsw*kHz)) -> 0.05239479852 | L191: =(d_1^2/9)+(b_1^2/(9*a_1^2))-(2*b_1*d_1/(9*a_1)) -> 0.0004565709694 | M191: =((b_1*c_1*fsw*kHz)+(2*a_1*c_1*d_1*fsw*kHz))/(3*a_1*c_1*fsw*kHz) -> 0.5213675214 | N191: =(J191+K191)^(1/3)+(L191/(J191^(1/3)))+M191 -> 0.9999778606 | O191: =(b_2^3/(27*a_2^3))-(d_2^3/27) -> 0.07325223506 | P191: =(ftyp^2*H191^2/(4*a_2^2*c_2^2*(fsw*kHz)^2))+(b_2^3*ftyp*H191/(27*a_2^4*c_2*(fsw*kHz)))-(d_2^3*ftyp*H191/(27*a_2*c_2*(fsw*kHz)))+(b_2*d_2^2*ftyp*H191/(9*a_2^2*c_2*(fsw*kHz)))-(b_2^2*d_2*ftyp*H191/(9*a_2^3*c_2*(fsw*kHz))) -> 0.001692587741 | Q191: =(b_2*d_2^2/(9*a_2))-(b_2^2*d_2/(9*a_2^2))+(ftyp*H191/(2*a_2*c_2*(fsw*kHz))) -> -0.02848342104 | R191: =(d_2^2/9)+(b_2^2/(9*a_2^2))-(2*b_2*d_2/(9*a_2)) -> 0.06779950801 | S191: =(b_2*c_2*(fsw*kHz)+2*a_2*c_2*d_2*(fsw*kHz))/(3*a_2*c_2*(fsw*kHz)) -> 0.7603833866 | T191: =((O191+SQRT(P191)+Q191)^(1/3))+(R191/((O191+SQRT(P191)+Q191)^(1/3)))+S191 -> 1.355284231 | U191: =c_3+(SQRT(ftyp)*SQRT(H191)/(SQRT(a_3)*SQRT(b_3)*SQRT(fsw*kHz))) -> 0.629830528 | V191: =(a_4*(fsw*kHz)*b_4/ftyp) -> 1.548772312 | W191: =IF(I191>=0.5,IF(I191<1,I191,IF(N191>=1,IF(N191<2,N191,IF(VCOMP3>=2,IF(T191<4.5,T191,IF(U191>=4.5,IF(U191<4.6,U191,V191)))))))) -> 0.9996168763 | X191: =Pin_max*G191/(Vline*100) -> 0.05681818182 | Y191: =-Rsense*X191*1.414 -> -0.001526477273 | Z191: =MIN(6,MAX(0.5,Beta*G*($Y191-Voff_trim)/(MAX(0,MIN(4.5,W191)-Alpha1_A)+MAX(0,MIN(4.5,W191)-Alpha1_B)-Alpha1_C)+Alpha2)) -> 0.5
G192: 2 | H192: 0.00310580772 | I192: 1.206564962 | J192: 0.1108282126 | K192: 0.1067985093 | L192: 0.0004565709694 | M192: 0.5213675214 | N192: =(J192+K192)^(1/3)+(L192/(J192^(1/3)))+M192 -> 1.123820493 | O192: 0.07325223506 | P192: 0.004855616347 | Q192: -0.001368472536 | R192: 0.06779950801 | S192: 0.7603833866 | T192: =((O192+SQRT(P192)+Q192)^(1/3))+(R192/((O192+SQRT(P192)+Q192)^(1/3)))+S192 -> 1.411650589 | U192: 0.6836080935 | V192: 1.548772312 | W192: 1.123820493 | X192: 0.1136363636 | Y192: -0.003052954545 | Z192: 0.5
G193: 3 | H193: 0.00465871158 | I193: 1.365361814 | J193: 0.1652329849 | K193: 0.1612022201 | L193: 0.0004565709694 | M193: 0.5213675214 | N193: 1.21074456 | O193: 0.07325223506 | P193: 0.009489085818 | Q193: 0.02574647597 | R193: 0.06779950801 | S193: 0.7603833866 | T193: 1.458304852 | U193: 0.7248730709 | V193: 1.548772312 | W193: 1.21074456 | X193: 0.1704545455 | Y193: -0.004579431818 | Z193: 0.5
G194: 4 | H194: 0.00621161544 | I194: 1.499233753 | J194: 0.2196377572 | K194: 0.2156059309 | L194: 0.0004565709694 | M194: 0.5213675214 | N194: 1.279964195 | O194: 0.07325223506 | P194: 0.01559299615 | Q194: 0.05286142448 | R194: 0.06779950801 | S194: 0.7603833866 | T194: 1.498654611 | U194: 0.759661056 | V194: 1.548772312 | W194: 1.279964195 | X194: 0.2272727273 | Y194: -0.006105909091 | Z194: 0.5575104879
G195: 5 | H195: 0.0077645193 | I195: 1.617177298 | J195: 0.2740425295 | K195: 0.2700096417 | L195: 0.0004565709694 | M195: 0.5213675214 | N195: 1.338427551 | O195: 0.07325223506 | P195: 0.02316734736 | Q195: 0.07997637299 | R195: 0.06779950801 | S195: 0.7603833866 | T195: 1.534510635 | U195: 0.7903098862 | V195: 1.548772312 | W195: 1.338427551 | X195: 0.2840909091 | Y195: -0.007632386364 | Z195: 0.773292837
G196: 6 | H196: 0.00931742316 | I196: 1.723806414 | J196: 0.3284473018 | K196: 0.3244133525 | L196: 0.0004565709694 | M196: 0.5213675214 | N196: 1.38953728 | O196: 0.07325223506 | P196: 0.03221213942 | Q196: 0.1070913215 | R196: 0.06779950801 | S196: 0.7603833866 | T196: 1.566967103 | U196: 0.8180185467 | V196: 1.548772312 | W196: 1.38953728 | X196: 0.3409090909 | Y196: -0.009158863636 | Z196: 0.9629164571
G197: 7 | H197: 0.01087032702 | I197: 1.821862006 | J197: 0.3828520741 | K197: 0.3788170633 | L197: 0.0004565709694 | M197: 0.5213675214 | N197: 1.435244419 | O197: 0.07325223506 | P197: 0.04272737235 | Q197: 0.13420627 | R197: 0.06779950801 | S197: 0.7603833866 | T197: 1.59674297 | U197: 0.8434992897 | V197: 1.548772312 | W197: 1.435244419 | X197: 0.3977272727 | Y197: -0.01068534091 | Z197: 1.134370019
G198: 8 | H198: 0.01242323088 | I198: 1.913129925 | J198: 0.4372568464 | K198: 0.433220774 | L198: 0.0004565709694 | M198: 0.5213675214 | N198: 1.476783994 | O198: 0.07325223506 | P198: 0.05471304615 | Q198: 0.1613212185 | R198: 0.06779950801 | S198: 0.7603833866 | T198: 1.62433952 | U198: 0.8672161871 | V198: 1.548772312 | W198: 1.476783994 | X198: 0.4545454545 | Y198: -0.01221181818 | Z198: 1.292354044
G199: 9 | H199: 0.01397613474 | I199: 1.998850629 | J199: 0.4916616187 | K199: 0.4876244848 | L199: 0.0004565709694 | M199: 0.5213675214 | N199: 1.514993136 | O199: 0.07325223506 | P199: 0.06816916081 | Q199: 0.188436167 | R199: 0.06779950801 | S199: 0.7603833866 | T199: 1.650122127 | U199: 0.889491584 | V199: 1.548772312 | W199: 1.514993136 | X199: 0.5113636364 | Y199: -0.01373829545 | Z199: 1.439881151
G200: 10 | H200: 0.0155290386 | I200: 2.079927287 | J200: 0.546066391 | K200: 0.5420281956 | L200: 0.0004565709694 | M200: 0.5213675214 | N200: 1.550468552 | O200: 0.07325223506 | P200: 0.08309571634 | Q200: 0.2155511155 | R200: 0.06779950801 | S200: 0.7603833866 | T200: 1.674366454 | U200: 0.9105601783 | V200: 1.548772312 | W200: 1.550468552 | X200: 0.5681818182 | Y200: -0.01526477273 | Z200: 1.579006077
G201: 11 | H201: 0.01708194246 | I201: 2.157041718 | J201: 0.6004711633 | K201: 0.5964319064 | L201: 0.0004565709694 | M201: 0.5213675214 | N201: 1.583652325 | O201: 0.07325223506 | P201: 0.09949271273 | Q201: 0.242666064 | R201: 0.06779950801 | S201: 0.7603833866 | T201: 1.697286302 | U201: 0.9305991478 | V201: 1.548772312 | W201: 1.583652325 | X201: 0.625 | Y201: -0.01679125 | Z201: 1.71119814
G202: 12 | H202: 0.01863484632 | I202: 2.230723628 | J202: 0.6548759355 | K202: 0.6508356172 | L202: 0.0004565709694 | M202: 0.5213675214 | N202: 1.614882176 | O202: 0.07325223506 | P202: 0.11736015 | Q202: 0.2697810125 | R202: 0.06779950801 | S202: 0.7603833866 | T202: 1.719051292 | U202: 0.9497461418 | V202: 1.548772312 | W202: 1.614882176 | X202: 0.6818181818 | Y202: -0.01831772727 | Z202: 1.837547855
G203: 13 | H203: 0.02018775018 | I203: 2.301394266 | J203: 0.7092807078 | K203: 0.705239328 | L203: 0.0004565709694 | M203: 0.5213675214 | N203: 1.644422606 | O203: 0.07325223506 | P203: 0.1366980281 | Q203: 0.2968959611 | R203: 0.06779950801 | S203: 0.7603833866 | T203: 1.739798556 | U203: 0.9681106259 | V203: 1.548772312 | W203: 1.644422606 | X203: 0.7386363636 | Y203: -0.01984420455 | Z203: 1.95888924
... 87 more rows

Sheet Sheet1 (hidden)
B3: f | C3: =3.57*10^6 -> 3570000 | D3: Hz | E3: =95.41*10^6 -> 95410000
B4: Ciss | C4: =9250*10^-12 -> 9.25e-09 | D4: F | E4: =1661*10^-12 -> 1.661e-09
B5: LS | C5: =1/C4/((2*PI()*C3)^2) -> 2.148632291e-07 | D5: H | E5: =1/E4/((2*PI()*E3)^2) -> 1.675262392e-09
B6: RG*1 | C6: =2*PI()*C5*C3-1.4 -> 3.419590979 | E6: =2*PI()*E5*E3-1.4 -> -0.395715862
B7: RG*2 | C7: =2*C6-1.4 -> 5.439181957 | E7: =2*E6-1.4 -> -2.191431724
C9: =102*10^-9*44.4*10^6 -> 4.5288
A11: 温升对策案1：
A12: 电压变动： | C12: AC | D12: AC | E12: P电压 | F12: PFC输出电压 | G12: 差值
B13: 第一档 | C13: =220*0.8 -> 176 | D13: 200 | E13: =D13*SQRT(2) -> 282.8427125 | F13: 290 | G13: =F13-E13 -> 7.157287525
B14: 第二档 | C14: =D13 -> 200 | D14: =C14*1.15 -> 230 | E14: =D14*SQRT(2) -> 325.2691193 | F14: 332 | G14: =F14-E14 -> 6.730880654
B15: 第三档 | C15: =D14 -> 230 | D15: 264 | E15: =D15*SQRT(2) -> 373.3523805 | F15: 380 | G15: =F15-E15 -> 6.647619534
A16: 电压变动特性：
B17: 仅在初期设定，后期不变。
C22: 183 | D22: =(C23-C22)*0.5+C22 -> 220.5
C23: 258

Sheet Sheet2 (hidden)
D6: 方案 | E6: 案1 | F6: 案2 | G6: 案3
D7: 具体措施 | E7: 降低PFC过电流检测阈值 RSENSE：12mΩ→18mΩ I_SOC：21.85A→13.63A I_PCL：36.50A→23.05A | F7: 新增外围过电流检知回路。 同时，提升MOS管规格（ID：50A 100uS→120A 100us品) | G7: 更换PFC控制芯片： TI制：UCC28180DR ON（安森美）制：NCP1654BD65R2G 高精度过电流限制品。 I_OCP：36.50A→11.1A 其他部品：MOS管，二极管同之前TI方案，仅反馈回路微调。
D8: Q | E8: NG。 理由：ICOMP ＞5.7V，ICOMP 电流饱和，电流环乘法器失效，固定输出占空比，容易发生过电流。 ※该阈值仅支持在输入85VAC下设定，输入电压越大，阈值越高。 | F8: TI厂家建议。 需要程序配合，程序计算量加大。 （cycle by cycle可否要确认） | G8: 他社（洲钜）有使用实绩。
D9: C | E9: \ | F9: +4.090元
D10: D | E10: \ | F10: 型品2次试作验证。 | G10: 型品2次试作体现。
